Workbook

Sheet 地市透视表
A1: 地市 | B1: 资产条数 | C1: 资产原值（元） | D1: 资产净值（元） | E1: 净值/原值 | F1: 评估价（元）
A2: 金华 | B2: 206 | C2: 829786.72 | D2: 125852.09 | E2: =D2/C2 -> 15.17% | F2: 89504.61
A3: 宁波 | B3: 174 | C3: 530585.19 | D3: 82686.14 | E3: =D3/C3 -> 15.58% | F3: 57144.40
A4: 温州 | B4: 359 | C4: 1110250.56 | D4: 324707.32 | E4: =D4/C4 -> 29.25% | F4: 94559.41
A5: 台州 | B5: 133 | C5: 423269.56 | D5: 59308.91 | E5: =D5/C5 -> 14.01% | F5: 47204.58
A6: 绍兴 | B6: 103 | C6: 590617.27 | D6: 222434.32 | E6: =D6/C6 -> 37.66% | F6: 29058.53
A7: 合计 | B7: =SUM(B2:B6) -> 975 | C7: =SUM(C2:C6) -> 3484509.30 | D7: =SUM(D2:D6) -> 814988.78 | E7: =D7/C7 -> 23.39% | F7: =SUM(F2:F6) -> 317471.53

Sheet 汇总
A1: 地市 | B1: 拍卖批次 | C1: 资产类别名称（大类相同完整度不同的分行填报） | D1: 对应估值清单的分类描述 | E1: 计量单位 | F1: 资产数量 | G1: 总重量（kg） | H1: 完整度/出铜（铝）率（%） | I1: 最低转让单价（含税） | J1: 最低转让总价（含税） | K1: 备注 （主要配件缺失的需要注明）
A2: 金华 | B2: 第三十一批 | C2: 3P空调 | D2: 3匹室内外成套 | E2: 套 | F2: 80 | G2: / | H2: / | I2: 936 | J2: =I2*F2 -> 74880.00 | K2: 铜管
A3: 金华 | B3: 第三十一批 | C3: 壁挂空调 | D3: 2P及2P以下成套空调 | E3: 套 | F3: 11 | G3: / | H3: / | I3: 520 | J3: 5720.00 | K3: 铜管
A4: 金华 | B4: 第三十一批 | C4: 电线电缆(铝) | D4: 铝缆类 | E4: 根 | F4: 13 | G4: 70 | H4: 40% | I4: 17090元/吨×出铝率 | J4: =17090/1000*H4*G4 -> 478.52
A5: 金华 | B5: 第三十一批 | C5: 电线电缆(铜) | D5: 铜缆类 | E5: 根 | F5: 16 | G5: 56 | H5: 40% | I5: 70510元/吨×出铜率 | J5: =70510/1000*H5*G5 -> 1579.42
A6: 金华 | B6: 第三十一批 | C6: 动环监控 | D6: 动环监控 | E6: 个 | F6: 26 | G6: 91 | H6: / | I6: 16.00 | J6: 416.00
A7: 金华 | B7: 第三十一批 | C7: 断路器 | D7: 其他各类铁质为主的报废物资 | E7: 个 | F7: 2 | G7: 0.5 | H7: / | I7: 2270元/吨 | J7: =2270/1000*G7 -> 1.14
A8: 金华 | B8: 第三十一批 | C8: 供电计量设备 | D8: 配电箱类 | E8: 个 | F8: 2 | G8: 0.6 | H8: / | I8: 107.00 | J8: =I8*F8 -> 214.00
A9: 金华 | B9: 第三十一批 | C9: 汇流条 | D9: 其他各类铁质为主的报废物资 | E9: 根 | F9: 3 | G9: 9 | H9: / | I9: 2270元/吨 | J9: 20.43
A10: 金华 | B10: 第三十一批 | C10: 霍尔传感器 | D10: 其他各类铁质为主的报废物资 | E10: 个 | F10: 1 | G10: 0.2 | H10: / | I10: 2270元/吨 | J10: 0.45
A11: 金华 | B11: 第三十一批 | C11: 监控位置模块 | D11: 其他各类铁质为主的报废物资 | E11: 个 | F11: 1 | G11: 0.2 | H11: / | I11: 2270元/吨 | J11: 0.45
A12: 金华 | B12: 第三十一批 | C12: 交流配电箱 | D12: 配电箱类 | E12: 个 | F12: 6 | G12: 90 | H12: / | I12: 107.00 | J12: =I12*F12 -> 642.00
A13: 金华 | B13: 第三十一批 | C13: 门禁配套物资电源转换模块 | D13: 其他各类铁质为主的报废物资 | E13: 个 | F13: 3 | G13: 0.3 | H13: / | I13: 2270元/吨 | J13: =2270/1000*G13 -> 0.68
A14: 金华 | B14: 第三十一批 | C14: 门锁 | D14: 其他各类铁质为主的报废物资 | E14: 个 | F14: 1 | G14: 2.5 | H14: / | I14: 2270元/吨 | J14: 5.68
A15: 金华 | B15: 第三十一批 | C15: 模块 | D15: 其他各类铁质为主的报废物资 | E15: 个 | F15: 12 | G15: 4.8 | H15: / | I15: 2270元/吨 | J15: 10.90
A16: 金华 | B16: 第三十一批 | C16: 配套综合柜 | D16: 其他各类铁质为主的报废物资 | E16: 个 | F16: 2 | G16: 50 | H16: / | I16: 2270元/吨 | J16: 113.50
A17: 金华 | B17: 第三十一批 | C17: 嵌入式开关电源 | D17: 其他各类铁质为主的报废物资 | E17: 个 | F17: 3 | G17: 37.5 | H17: / | I17: 2270元/吨 | J17: 85.13 | K17: 模块
A18: 金华 | B18: 第三十一批 | C18: 熔断器 | D18: 其他各类铁质为主的报废物资 | E18: 个 | F18: 2 | G18: 0.4 | H18: / | I18: 2270元/吨 | J18: 0.91
A19: 金华 | B19: 第三十一批 | C19: 铜牌 | D19: 铜制品 | E19: 个 | F19: 4 | G19: 7.5 | H19: 99% | I19: 70510元/吨×出铜率 | J19: =70510/1000*H19*G19 -> 523.54
A20: 金华 | B20: 第三十一批 | C20: 一体化机柜 | D20: 一体化机柜（风扇型） | E20: 个 | F20: 1 | G20: / | H20: / | I20: 170.00 | J20: =I20*F20 -> 170.00
A21: 金华 | B21: 第三十一批 | C21: 油机切换箱 | D21: 配电箱类 | E21: 个 | F21: 2 | G21: 25 | H21: / | I21: 107.00 | J21: 214.00
A22: 金华 | B22: 第三十一批 | C22: 直流计量终端6分路 | D22: 其他各类铁质为主的报废物资 | E22: 个 | F22: 3 | G22: 0.6 | H22: / | I22: 2270元/吨 | J22: =2270/1000*G22 -> 1.36
A23: 金华 | B23: 第三十一批 | C23: 直流配电设备 | D23: 配电箱类 | E23: 个 | F23: 4 | G23: 12 | H23: / | I23: 107.00 | J23: 428.00
A24: 金华 | B24: 第三十一批 | C24: 智能空调控制器 | D24: 其他各类铁质为主的报废物资 | E24: 个 | F24: 3 | G24: 2.25 | H24: / | I24: 2270元/吨 | J24: 5.11
A25: 金华 | B25: 第三十一批 | C25: 走线架 | D25: 其他各类铁质为主的报废物资 | E25: 个 | F25: 5 | G25: 50 | H25: / | I25: 2270元/吨 | J25: 113.50
A26: 金华 | B26: 第三十一批 | C26: 组合式开关电源 | D26: 组合开关电源柜 | E26: 个 | F26: 6 | G26: / | H26: 45% | I26: 997×完整度+198 | J26: =(997*H26+198)*F26 -> 3879.90 | K26: 模块
A27: 宁波 | B27: 第三十一批 | C27: 2P空调 | D27: 2P及2P以下成套空调 | E27: 台 | F27: 11 | G27: 495 | H27: 0% | I27: 520 | J27: =F27*I27 -> 5720
A28: 宁波 | B28: 第三十一批 | C28: 3P空调 | D28: 3匹室内外成套 | E28: 台 | F28: 47 | G28: 4230 | H28: 0% | I28: 936 | J28: 43992
A29: 宁波 | B29: 第三十一批 | C29: 一体化机柜（风扇型） | D29: 一体化机柜（风扇型） | E29: 套 | F29: 2 | I29: 170 | J29: 340
A30: 宁波 | B30: 第三十一批 | C30: 动环监控 | D30: 动环监控 | E30: 套 | F30: 8 | I30: 16 | J30: 128
A31: 宁波 | B31: 第三十一批 | C31: 配电箱 | D31: 配电箱类 | E31: 个 | F31: 1 | I31: 107 | J31: 107
A32: 宁波 | B32: 第三十一批 | C32: 配电箱 | D32: 配电箱类 | E32: 个 | F32: 8 | I32: 107 | J32: 856
A33: 宁波 | B33: 第三十一批 | C33: 油机转换箱 | D33: 配电箱类 | E33: 个 | F33: 1 | I33: 107 | J33: 107
A34: 宁波 | B34: 第三十一批 | C34: 电表箱 | D34: 配电箱类 | E34: 个 | F34: 3 | I34: 107 | J34: 321
A35: 宁波 | B35: 第三十一批 | C35: 交流计量箱 | D35: 配电箱类 | E35: 个 | F35: 1 | I35: 107 | J35: 107
A36: 宁波 | B36: 第三十一批 | C36: 供电计量设备（电表） | D36: 配电箱类 | E36: 个 | F36: 8 | I36: 107 | J36: 856
A37: 宁波 | B37: 第三十一批 | C37: 低压避雷设施 | D37: 其他铁质为主的报废物资 | E37: 面 | F37: 2 | G37: 180 | I37: 2270元/吨 | J37: =2270/1000*G37 -> 408.60
A38: 宁波 | B38: 第三十一批 | C38: 电控锁 | D38: 其他铁质为主的报废物资 | E38: 个 | F38: 3
A39: 宁波 | B39: 第三十一批 | C39: 电子门锁 | D39: 其他铁质为主的报废物资 | E39: 个 | F39: 3
A40: 宁波 | B40: 第三十一批 | C40: 断路器 | D40: 其他铁质为主的报废物资 | E40: 个 | F40: 5
A41: 宁波 | B41: 第三十一批 | C41: 汇流排 | D41: 其他铁质为主的报废物资 | E41: 个 | F41: 2
A42: 宁波 | B42: 第三十一批 | C42: 霍尔传感器 | D42: 其他铁质为主的报废物资 | E42: 个 | F42: 10
A43: 宁波 | B43: 第三十一批 | C43: 机架 | D43: 其他铁质为主的报废物资 | E43: 个 | F43: 1
A44: 宁波 | B44: 第三十一批 | C44: 机架（RRU架） | D44: 其他铁质为主的报废物资 | E44: 个 | F44: 1
A45: 宁波 | B45: 第三十一批 | C45: 空调控制器 | D45: 其他铁质为主的报废物资 | E45: 个 | F45: 8
A46: 宁波 | B46: 第三十一批 | C46: 模块 | D46: 其他铁质为主的报废物资 | E46: 个 | F46: 4
A47: 宁波 | B47: 第三十一批 | C47: 整流模块 | D47: 其他铁质为主的报废物资 | E47: 个 | F47: 2
A48: 宁波 | B48: 第三十一批 | C48: 直流远供 | D48: 其他铁质为主的报废物资 | E48: 个 | F48: 8
A49: 宁波 | B49: 第三十一批 | C49: 智能设备处理器 | D49: 其他铁质为主的报废物资 | E49: 个 | F49: 1
A50: 宁波 | B50: 第三十一批 | C50: 嵌入式开关电源 | D50: 其他铁质为主的报废物资 | E50: 架 | F50: 8
A51: 宁波 | B51: 第三十一批 | C51: 壁挂式开关电源 | D51: 其他铁质为主的报废物资 | E51: 架 | F51: 3
A52: 宁波 | B52: 第三十一批 | C52: 组合开关电源 | D52: 组合开关电源柜 | E52: 个 | F52: 21 | G52: 945 | H52: 0% | I52: 997×完整度+198 | J52: =(997*H52+198)*F52 -> 4158.00
A53: 宁波 | B53: 第三十一批 | C53: 铝芯电缆 | D53: 铝缆类 | E53: 米 | F53: 1 | G53: 1 | H53: 50% | I53: 17090元/吨×出铝率 | J53: =17090/1000*H53*G53 -> 8.55
A54: 宁波 | B54: 第三十一批 | C54: 铜芯电缆 | D54: 铜缆类 | E54: 米 | F54: 1 | G54: 1 | H54: 50% | I54: 70510元/吨×出铜率 | J54: =70510/1000*H54*G54 -> 35.26
A55: 温州 | B55: 第三十一批 | C55: 2P空调 | D55: 2P及2P以下成套空调 | E55: 台 | F55: 3 | G55: - | I55: 520 | J55: =F55*I55 -> 1560
A56: 温州 | B56: 第三十一批 | C56: 3P空调 | D56: 3匹室内外成套 | E56: 台 | F56: 54 | G56: - | I56: 936 | J56: 50544
A57: 温州 | B57: 第三十一批 | C57: 交流配电箱 | D57: 配电箱类 | E57: 个 | F57: 27 | G57: - | I57: 107 | J57: 2889
A58: 温州 | B58: 第三十一批 | C58: 油机切换箱 | D58: 配电箱类 | E58: 个 | F58: 33 | G58: - | I58: 107 | J58: 3531
A59: 温州 | B59: 第三十一批 | C59: 组合式开关电源 | D59: 组合开关电源柜 | E59: 架 | F59: 32 | G59: - | H59: 10% | I59: 997×完整度+198 | J59: =(997*H59+198)*F59 -> 9526.40
A60: 温州 | B60: 第三十一批 | C60: FSU | D60: 动环监控 | E60: 个 | F60: 38 | G60: - | I60: 16 | J60: =F60*I60 -> 608
A61: 温州 | B61: 第三十一批 | C61: rru架 | D61: 其他铁质为主的报废物资 | E61: 个 | F61: 6 | G61: 120 | I61: 2270元/吨 | J61: =2270/1000*G61 -> 272.40
A62: 温州 | B62: 第三十一批 | C62: 壁挂式开关电源 | D62: 其他铁质为主的报废物资 | E62: 架 | F62: 1 | G62: 14 | I62: 2270元/吨 | J62: 31.78
A63: 温州 | B63: 第三十一批 | C63: 电表 | D63: 配电箱类 | E63: 个 | F63: 2 | G63: 1 | I63: 107 | J63: 214
A64: 温州 | B64: 第三十一批 | C64: 电表箱 | D64: 配电箱类 | E64: 个 | F64: 2 | G64: 10 | I64: 107 | J64: 214
A65: 温州 | B65: 第三十一批 | C65: 电控锁 | D65: 其他铁质为主的报废物资 | E65: 个 | F65: 2 | G65: 1 | I65: 2270元/吨 | J65: 2.27
A66: 温州 | B66: 第三十一批 | C66: 合路器 | D66: 其他铁质为主的报废物资 | E66: 个 | F66: 1 | G66: 1 | I66: 2270元/吨 | J66: 2.27
A67: 温州 | B67: 第三十一批 | C67: 霍尔传感器 | D67: 其他铁质为主的报废物资 | E67: 个 | F67: 1 | G67: 1 | I67: 2270元/吨 | J67: 2.27
A68: 温州 | B68: 第三十一批 | C68: 机柜空调 | D68: 机柜空调 | E68: 个 | F68: 15 | G68: 300 | I68: 10020元/吨 | J68: =10020/1000*G68 -> 3006.00
A69: 温州 | B69: 第三十一批 | C69: 监控模块 | D69: 其他铁质为主的报废物资 | E69: 个 | F69: 22 | G69: 11 | I69: 2270元/吨 | J69: =2270/1000*G69 -> 24.97
A70: 温州 | B70: 第三十一批 | C70: 交流配电箱（散件） | D70: 配电箱类 | E70: 个 | F70: 1 | G70: 20 | I70: 107 | J70: =F70*I70 -> 107
A71: 温州 | B71: 第三十一批 | C71: 空调控制器 | D71: 其他铁质为主的报废物资 | E71: 个 | F71: 11 | G71: 1 | I71: 2270元/吨 | J71: =2270/1000*G71 -> 2.27
A72: 温州 | B72: 第三十一批 | C72: 铝线 | D72: 铝缆类 | E72: 根 | F72: 14 | G72: 56 | H72: 23% | I72: 17090元/吨×出铝率 | J72: =17090/1000*H72*G72 -> 220.12
A73: 温州 | B73: 第三十一批 | C73: 铝线 | D73: 铝缆类 | E73: 米 | F73: 17 | G73: 8 | H73: 23% | I73: 17090元/吨×出铝率 | J73: 31.45
A74: 温州 | B74: 第三十一批 | C74: 铝线 | D74: 铝缆类 | E74: 千克 | F74: 4920 | G74: 4920 | H74: 23% | I74: 17090元/吨×出铝率 | J74: 19339.04
A75: 温州 | B75: 第三十一批 | C75: 门禁模块 | D75: 其他铁质为主的报废物资 | E75: 个 | F75: 10 | G75: 1 | I75: 2270元/吨 | J75: 2.27
A76: 温州 | B76: 第三十一批 | C76: 配套综合柜 | D76: 其他铁质为主的报废物资 | E76: 台 | F76: 4 | G76: 240 | I76: 2270元/吨 | J76: 544.80
A77: 温州 | B77: 第三十一批 | C77: 嵌入式开关电源 | D77: 其他铁质为主的报废物资 | E77: 架 | F77: 6 | G77: 60 | I77: 2270元/吨 | J77: 136.20
A78: 温州 | B78: 第三十一批 | C78: 铜管 | D78: 铜缆类 | E78: 根 | F78: 5 | G78: 5 | H78: 50% | I78: 70510元/吨×出铜率 | J78: =70510/1000*H78*G78 -> 176.28
A79: 温州 | B79: 第三十一批 | C79: 铜管 | D79: 铜缆类 | E79: 米 | F79: 1.5 | G79: 1 | H79: 50% | I79: 70510元/吨×出铜率 | J79: 35.26
A80: 温州 | B80: 第三十一批 | C80: 铜线 | D80: 铜缆类 | E80: 米 | F80: 22 | G80: 22 | H80: 50% | I80: 70510元/吨×出铜率 | J80: 775.61
A81: 温州 | B81: 第三十一批 | C81: 整流模块 | D81: 其他铁质为主的报废物资 | E81: 个 | F81: 70 | G81: 173 | I81: 2270元/吨 | J81: =2270/1000*G81 -> 392.71
A82: 温州 | B82: 第三十一批 | C82: 智能配电单元 | D82: 配电箱类 | E82: 个 | F82: 1 | G82: 1 | I82: 107 | J82: =F82*I82 -> 107
A83: 温州 | B83: 第三十一批 | C83: 智能通风设备 | D83: 其他铁质为主的报废物资 | E83: 个 | F83: 1 | G83: 1 | I83: 2270元/吨 | J83: 2.27
A84: 温州 | B84: 第三十一批 | C84: 走线架 | D84: 其他铁质为主的报废物资 | E84: 个 | F84: 24 | G84: 114 | I84: 2270元/吨 | J84: 258.78
A85: 台州 | B85: 第三十一批 | C85: 2P及2P以下成套空调 | D85: 2P及2P以下成套空调 | E85: 台 | F85: 2 | I85: 520 | J85: 1040.00
A86: 台州 | B86: 第三十一批 | C86: 3匹室内外成套 | D86: 3匹室内外成套 | E86: 台 | F86: 36 | I86: 936 | J86: 33696.00
A87: 台州 | B87: 第三十一批 | C87: 壁挂配电箱 | D87: 配电箱类 | E87: 台 | F87: 2 | G87: 14 | I87: 107 | J87: 214.00
A88: 台州 | B88: 第三十一批 | C88: 壁挂式开关电源 | D88: 其他各类铁质为主的报废物资 | E88: 架 | F88: 1 | G88: 7 | I88: 2270元/吨 | J88: =2270/1000*G88 -> 15.89
A89: 台州 | B89: 第三十一批 | C89: 变压器（铜芯） | D89: 变压器（铜芯）S11-油式 | E89: 台 | F89: 1 | G89: 173 | I89: 13890元/吨 | J89: =13890/1000*G89 -> 2402.97
A90: 台州 | B90: 第三十一批 | C90: 动环监控 | D90: 动环监控 | E90: 个 | F90: 32 | G90: 20 | I90: 16 | J90: =F90*I90 -> 512.00
A91: 台州 | B91: 第三十一批 | C91: 供电计量设备 | D91: 配电箱类 | E91: 个 | F91: 2 | G91: 1 | I91: 107 | J91: 214.00
A92: 台州 | B92: 第三十一批 | C92: 交流配电箱 | D92: 配电箱类 | E92: 个 | F92: 7 | G92: 31 | I92: 107 | J92: 749.00
A93: 台州 | B93: 第三十一批 | C93: 铝芯电缆 | D93: 铝缆类 | E93: 根 | F93: 1 | G93: 12 | H93: 27% | I93: 17090元/吨×出铝率 | J93: 55.38
A94: 台州 | B94: 第三十一批 | C94: 模块 | D94: 其他各类铁质为主的报废物资 | E94: 个 | F94: 10 | G94: 10 | I94: 2270元/吨 | J94: =2270/1000*G94 -> 22.70
A95: 台州 | B95: 第三十一批 | C95: 嵌入式开关电源 | D95: 其他各类铁质为主的报废物资 | E95: 架 | F95: 4 | G95: 15 | I95: 2270元/吨 | J95: 34.05
A96: 台州 | B96: 第三十一批 | C96: 铜芯电缆 | D96: 铜缆类 | E96: 根 | F96: 10 | G96: 32 | H96: 50% | I96: 70510元/吨×出铜率 | J96: =70510/1000*H96*G96 -> 1128.16
A97: 台州 | B97: 第三十一批 | C97: 一体化机柜（风扇型） | D97: 一体化机柜（风扇型） | E97: 个 | F97: 3 | G97: 171 | I97: 170 | J97: =F97*I97 -> 510.00
A98: 台州 | B98: 第三十一批 | C98: 一体化机柜（空调型） | D98: 其他各类铁质为主的报废物资 | E98: 个 | F98: 3 | G98: 243 | I98: 2270元/吨 | J98: 551.61 | K98: 2个（空调被拆走）
A99: 台州 | B99: 第三十一批 | C99: 油机转换箱 | D99: 配电箱类 | E99: 个 | F99: 7 | G99: 31 | I99: 107 | J99: 749.00
A100: 台州 | B100: 第三十一批 | C100: 直流电能计量终端 | D100: 其他各类铁质为主的报废物资 | E100: 个 | F100: 1 | G100: 0.5 | I100: 2270元/吨 | J100: =2270/1000*G100 -> 1.14
A101: 台州 | B101: 第三十一批 | C101: 走线架 | D101: 其他各类铁质为主的报废物资 | E101: 个 | F101: 1 | G101: 17 | I101: 2270元/吨 | J101: 38.59
A102: 台州 | B102: 第三十一批 | C102: 组合开关电源 | D102: 组合开关电源柜 | E102: 架 | F102: 10 | H102: 33% | I102: 997×完整度+198 | J102: =(997*H102+198)*F102 -> 5270.10
A103: 绍兴 | B103: 第三十一批 | C103: 铜线 | D103: 铜缆类 | E103: 米 | F103: 1 | G103: 1 | H103: 23% | I103: 70510元/吨×出铜率 | J103: =70510/1000*H103*G103 -> 16.22 | K103: 称重
A104: 绍兴 | B104: 第三十一批 | C104: 组合式电源 | D104: 组合开关电源柜 | E104: 架 | F104: 17 | G104: / | H104: 0% | I104: 997×完整度+198 | J104: =(997*H104+198)*F104 -> 3366.00 | K104: 不称重，填写完成率
A105: 绍兴 | B105: 第三十一批 | C105: 开关电源 | D105: 其他各类铁质为主的报废物资 | E105: 架 | F105: 1 | G105: 10.2 | I105: 2270元/吨 | J105: 23.15 | K105: 称重
A106: 绍兴 | B106: 第三十一批 | C106: 空调 | D106: 3匹室内外成套 | E106: 台 | F106: 24 | G106: / | I106: 936 | J106: =F106*I106 -> 22464.00 | K106: 套用单价/20套铜管
A107: 绍兴 | B107: 第三十一批 | C107: 直流配电箱 | D107: 配电箱类 | E107: 个 | F107: 1 | G107: 6 | I107: 107 | J107: 107.00 | K107: 称重
A108: 绍兴 | B108: 第三十一批 | C108: 空调 | D108: 2P及2P以下成套空调 | E108: 台 | F108: 2 | G108: / | I108: 520 | J108: 1040.00 | K108: 套用单价/2套铜管
A109: 绍兴 | B109: 第三十一批 | C109: 监控 | D109: 动环监控 | E109: 个 | F109: 36 | G109: / | I109: 16 | J109: 576.00 | K109: 套用单价
A110: 绍兴 | B110: 第三十一批 | C110: 空开 | D110: 其他各类铁质为主的报废物资 | E110: 个 | F110: 1 | G110: 2 | I110: 2270元/吨 | J110: =2270/1000*G110 -> 4.54 | K110: 称重
A111: 绍兴 | B111: 第三十一批 | C111: 门锁 | D111: 其他各类铁质为主的报废物资 | E111: 个 | F111: 1 | G111: 2 | I111: 2270元/吨 | J111: 4.54 | K111: 称重
A112: 绍兴 | B112: 第三十一批 | C112: 配电单元 | D112: 配电箱类 | E112: 个 | F112: 1 | G112: 3 | I112: 107 | J112: =F112*I112 -> 107.00 | K112: 称重
A113: 绍兴 | B113: 第三十一批 | C113: 机柜空调 | D113: 机柜空调 | E113: 个 | F113: 1 | G113: 30 | I113: 10020元/吨 | J113: =10020/1000*G113 -> 300.60 | K113: 称重
A114: 绍兴 | B114: 第三十一批 | C114: 空调控制器 | D114: 其他各类铁质为主的报废物资 | E114: 个 | F114: 2 | G114: 2 | I114: 2270元/吨 | J114: 4.54 | K114: 称重
A115: 绍兴 | B115: 第三十一批 | C115: 供电计量设备 | D115: 配电箱类 | E115: 个 | F115: 1 | G115: 0.5 | I115: 107 | J115: 107.00 | K115: 称重
A116: 绍兴 | B116: 第三十一批 | C116: 传感器 | D116: 其他各类铁质为主的报废物资 | E116: 个 | F116: 2 | G116: 0.25 | I116: 2270元/吨 | J116: =2270/1000*G116 -> 0.57 | K116: 称重
A117: 绍兴 | B117: 第三十一批 | C117: 电表 | D117: 配电箱类 | E117: 个 | F117: 2 | G117: 5 | I117: 107 | J117: 214.00 | K117: 称重
A118: 绍兴 | B118: 第三十一批 | C118: 铝线 | D118: 铝缆类 | E118: 米 | F118: 1032 | G118: 781 | H118: 23% | I118: 17090元/吨×出铝率 | J118: 55.38 | K118: 称重
A119: 绍兴 | B119: 第三十一批 | C119: 交流配电箱 | D119: 配电箱类 | E119: 个 | F119: 2 | G119: / | I119: 107 | J119: =F119*I119 -> 214.00 | K119: 套用单价
A120: 绍兴 | B120: 第三十一批 | C120: 机柜 | D120: 其他各类铁质为主的报废物资 | E120: 个 | F120: 1 | G120: 200 | I120: 2270元/吨 | J120: =2270/1000*G120 -> 454.00 | K120: 称重

Sheet 金华
A1: 序号 | B1: 报废批复文号 | C1: 资产编号 | D1: 资产名称 | E1: 资产类别名称 | F1: 资产原值 （元，不含税） | G1: 资产净值 （元，不含税） | H1: 累计折旧 | I1: 资产数量 | J1: 计量单位 （个/吨/米等） | K1: 单节电池电压（2V/12V） | L1: 规格型号 | M1: 生产厂家 | N1: 站点名称 | O1: 站点编码 | P1: 县市 | Q1: 年份 | R1: 报废批次
A2: 1 | B2: 2024 年金华分公司第27次党委会会议纪要（金华铁塔党委会纪要〔2024〕第31期） | C2: 330700451839 | D2: 供电计量设备 | E2: 通用资产-供电计量设备 | F2: 295.06 | G2: 188.62 | H2: 106.44 | I2: 1 | J2: 个 | L2: 直流计量终端6分路 | N2: 东阳水口村 | O2: 330783908000001421 | P2: 东阳 | Q2: 2024 | R2: 2024B7
A3: 2 | B3: 2024 年金华分公司第27次党委会会议纪要（金华铁塔党委会纪要〔2024〕第31期） | C3: 330700111781 | D3: 交流配电箱 | E3: 电源类 | F3: 3536.5 | G3: 106.1 | H3: 3430.4 | I3: 1 | J3: 个 | L3: XL-21 | N3: 义乌人保公司 | O3: 330782908000000270 | P3: 义乌 | Q3: 2024 | R3: 2024B7
A4: 3 | B4: 2024 年金华分公司第27次党委会会议纪要（金华铁塔党委会纪要〔2024〕第31期） | C4: 330700100602 | D4: 开关电源 | E4: 开关电源 | F4: 4694.3 | G4: 140.83 | H4: 4553.47 | I4: 1 | J4: 架 | L4: 组合式 | N4: 义乌人保公司 | O4: 330782908000000270 | P4: 义乌 | Q4: 2024 | R4: 2024B7
A5: 4 | B5: 2024 年金华分公司第27次党委会会议纪要（金华铁塔党委会纪要〔2024〕第31期） | C5: 330700347619 | D5: 基站机房扩容资产 | E5: 基站构筑物 | F5: 1302.63 | G5: 970.03 | H5: 332.6 | I5: 1 | J5: 个 | L5: 室内走线架600mm室内走线架 | N5: 义乌人保公司 | O5: 330782908000000270 | P5: 义乌 | Q5: 2024 | R5: 2024B7
A6: 5 | B6: 2024 年金华分公司第27次党委会会议纪要（金华铁塔党委会纪要〔2024〕第31期） | C6: 330700336464 | D6: 直流配电设备 | E6: 电源类 | F6: 3459.7 | G6: 103.79 | H6: 3355.91 | I6: 1 | J6: 台 | L6: 1路分10路63A | N6: 义乌人保公司 | O6: 330782908000000270 | P6: 义乌 | Q6: 2024 | R6: 2024B7
A7: 6 | B7: 2024 年金华分公司第27次党委会会议纪要（金华铁塔党委会纪要〔2024〕第31期） | C7: 330700342201 | D7: 直流配电设备 | E7: 电源类 | F7: 3110.6 | G7: 93.32 | H7: 3017.28 | I7: 1 | J7: 台 | L7: 1路分10路63A | N7: 义乌人保公司 | O7: 330782908000000270 | P7: 义乌 | Q7: 2024 | R7: 2024B7
A8: 7 | B8: 2024 年金华分公司第27次党委会会议纪要（金华铁塔党委会纪要〔2024〕第31期） | C8: 330700362281 | D8: 机房配套扩容资产 | E8: 机房配套其他 | F8: 321.56 | G8: 35.66 | H8: 285.9 | I8: 1 | J8: 个 | L8: 普通空调基站智能空调控制器 | N8: 义乌人保公司 | O8: 330782908000000270 | P8: 义乌 | Q8: 2024 | R8: 2024B7
A9: 8 | B9: 2024 年金华分公司第27次党委会会议纪要（金华铁塔党委会纪要〔2024〕第31期） | C9: 330700415747 | D9: 机房配套扩容资产 | E9: 机房配套其他 | F9: 361.48 | G9: 151.92 | H9: 209.56 | I9: 1 | J9: 个 | L9: 普通空调基站智能空调控制器 | N9: 义乌人保公司 | O9: 330782908000000270 | P9: 义乌 | Q9: 2024 | R9: 2024B7
A10: 9 | B10: 2024 年金华分公司第27次党委会会议纪要（金华铁塔党委会纪要〔2024〕第31期） | C10: 330700347840 | D10: 电源扩容资产 | E10: 电源类 | F10: 836.17 | G10: 25.09 | H10: 811.08 | I10: 1 | J10: 个 | L10: 100A熔断器 | N10: 义乌人保公司 | O10: 330782908000000270 | P10: 义乌 | Q10: 2024 | R10: 2024B7
A11: 10 | B11: 2024 年金华分公司第27次党委会会议纪要（金华铁塔党委会纪要〔2024〕第31期） | C11: 330700447382 | D11: 电源扩容资产 | E11: 电源类 | F11: 6.79 | G11: 4.72 | H11: 2.07 | I11: 1 | J11: 个 | L11: 100A熔断器 | N11: 义乌人保公司 | O11: 330782908000000270 | P11: 义乌 | Q11: 2024 | R11: 2024B7
A12: 11 | B12: 2024 年金华分公司第27次党委会会议纪要（金华铁塔党委会纪要〔2024〕第31期） | C12: 330700472632 | D12: 基站机房扩容资产 | E12: 基站构筑物 | F12: 619.17 | G12: 609.17 | H12: 10 | I12: 1 | J12: 个 | L12: 智慧锁 | N12: 永康前园 | O12: 33078401000319 | P12: 永康 | Q12: 2024 | R12: 2024B7
A13: 12 | B13: 2024 年金华分公司第27次党委会会议纪要（金华铁塔党委会纪要〔2024〕第31期） | C13: 330700005846 | D13: 外市电引入 | E13: 电线电缆 | F13: 68749 | G13: 5009.26 | H13: 63739.74 | I13: 1 | J13: 根 | L13: 4x35方2米/根 | N13: 东阳荷栖泽 | O13: 33078300000162 | P13: 东阳 | Q13: 2024 | R13: 2024B7
A14: 13 | B14: 2024 年金华分公司第27次党委会会议纪要（金华铁塔党委会纪要〔2024〕第31期） | C14: 330700311453 | D14: 配电箱 | E14: 电源类 | F14: 5065.96 | G14: 151.98 | H14: 4913.98 | I14: 1 | J14: 个 | L14: 壁挂式380V/100A 内置100KA SPD | N14: 东阳荷栖泽 | O14: 33078300000162 | P14: 东阳 | Q14: 2024 | R14: 2024B7
A15: 14 | B15: 2024 年金华分公司第27次党委会会议纪要（金华铁塔党委会纪要〔2024〕第31期） | C15: 330700311448 | D15: 开关电源 | E15: 开关电源 | F15: 6684.06 | G15: 200.52 | H15: 6483.54 | I15: 1 | J15: 架 | L15: 组合式 | N15: 东阳荷栖泽 | O15: 33078300000162 | P15: 东阳 | Q15: 2024 | R15: 2024B7
A16: 15 | B16: 2024 年金华分公司第27次党委会会议纪要（金华铁塔党委会纪要〔2024〕第31期） | C16: 330700311446 | D16: 空调 | E16: 空调 | F16: 6954.84 | G16: 208.65 | H16: 6746.19 | I16: 1 | J16: 台 | L16: 3P | N16: 东阳荷栖泽 | O16: 33078300000162 | P16: 东阳 | Q16: 2024 | R16: 2024B7
A17: 16 | B17: 2024 年金华分公司第27次党委会会议纪要（金华铁塔党委会纪要〔2024〕第31期） | C17: 330700311449 | D17: 基站用综合柜 | E17: 综合柜 | F17: 2300.21 | G17: 69.01 | H17: 2231.2 | I17: 1 | J17: 台 | L17: 带配电单元的基站用综合柜（600*600*2000mm） | N17: 东阳荷栖泽 | O17: 33078300000162 | P17: 东阳 | Q17: 2024 | R17: 2024B7
A18: 17 | B18: 2024 年金华分公司第27次党委会会议纪要（金华铁塔党委会纪要〔2024〕第31期） | C18: 330700340796 | D18: 电源扩容资产 | E18: 电源类 | F18: 289.54 | G18: 8.69 | H18: 280.85 | I18: 1 | J18: 个 | L18: 供电计量设备 | N18: 东阳荷栖泽 | O18: 33078300000162 | P18: 东阳 | Q18: 2024 | R18: 2024B7
A19: 18 | B19: 2024 年金华分公司第27次党委会会议纪要（金华铁塔党委会纪要〔2024〕第31期） | C19: 330700385064 | D19: 电力引入扩容资产 | E19: 外市电 | F19: 381.86 | G19: 208.9 | H19: 172.96 | I19: 1 | J19: 个 | L19: 直流计量终端6分路 | N19: 东阳荷栖泽 | O19: 33078300000162 | P19: 东阳 | Q19: 2024 | R19: 2024B7
A20: 19 | B20: 2024 年金华分公司第27次党委会会议纪要（金华铁塔党委会纪要〔2024〕第31期） | C20: 330700384408 | D20: 动力及环境监控单元 | E20: 动环 | F20: 3477.76 | G20: 809.25 | H20: 2668.51 | I20: 1 | J20: 个 | L20: 主设备室内型成套设备基本配置模型 | N20: 金东江东工业区 | O20: 330703010000000235 | P20: 金东 | Q20: 2024 | R20: 2024B7
A21: 20 | B21: 2024 年金华分公司第27次党委会会议纪要（金华铁塔党委会纪要〔2024〕第31期） | C21: 330700380908 | D21: 动力及环境监控单元 | E21: 动环 | F21: 4308.56 | G21: 887.74 | H21: 3420.82 | I21: 1 | J21: 个 | L21: 主设备室内型成套设备双柜配置模型 | N21: 金东十八里F | O21: 330703500000001618 | P21: 金东 | Q21: 2024 | R21: 2024B7
A22: 21 | B22: 2024 年金华分公司第27次党委会会议纪要（金华铁塔党委会纪要〔2024〕第31期） | C22: 330700363898 | D22: 动力及环境监控单元 | E22: 动环 | F22: 2593.99 | G22: 287.49 | H22: 2306.5 | I22: 1 | J22: 个 | L22: 主设备室内型成套设备基本配置模型 | N22: 金华东关立交桥 | O22: 330703908000000901 | P22: 金东 | Q22: 2024 | R22: 2024B7
A23: 22 | B23: 2024 年金华分公司第27次党委会会议纪要（金华铁塔党委会纪要〔2024〕第31期） | C23: 330700375330 | D23: 动力及环境监控单元 | E23: 动环 | F23: 3741.74 | G23: 666.7 | H23: 3075.04 | I23: 1 | J23: 个 | L23: 主设备室内型成套设备双柜配置模型 | N23: 金华江东镇L | O23: 330703500000001610 | P23: 金东 | Q23: 2024 | R23: 2024B7
A24: 23 | B24: 2024 年金华分公司第27次党委会会议纪要（金华铁塔党委会纪要〔2024〕第31期） | C24: 330700363902 | D24: 动力及环境监控单元 | E24: 动环 | F24: 2593.99 | G24: 287.49 | H24: 2306.5 | I24: 1 | J24: 个 | L24: 主设备室内型成套设备基本配置模型 | N24: 金华金东下宅二 | O24: 330703908000000477 | P24: 金东 | Q24: 2024 | R24: 2024B7
A25: 24 | B25: 2024 年金华分公司第27次党委会会议纪要（金华铁塔党委会纪要〔2024〕第31期） | C25: 330700363401 | D25: 动力及环境监控单元 | E25: 动环 | F25: 2593.99 | G25: 287.49 | H25: 2306.5 | I25: 1 | J25: 个 | L25: 主设备室内型成套设备基本配置模型 | N25: 金华金东行政中心 | O25: 330703908000000670 | P25: 金东 | Q25: 2024 | R25: 2024B7
A26: 25 | B26: 2024 年金华分公司第27次党委会会议纪要（金华铁塔党委会纪要〔2024〕第31期） | C26: 330700367905 | D26: 动力及环境监控单元 | E26: 动环 | F26: 2681.14 | G26: 405.55 | H26: 2275.59 | I26: 1 | J26: 个 | L26: 主设备室内型成套设备基本配置模型 | N26: 金华汽车东站 | O26: 330703908000000907 | P26: 金东 | Q26: 2024 | R26: 2024B7
A27: 26 | B27: 2024 年金华分公司第27次党委会会议纪要（金华铁塔党委会纪要〔2024〕第31期） | C27: 330700329483 | D27: 一体化机柜 | E27: 综合柜 | F27: 12392.28 | G27: 371.77 | H27: 12020.51 | I27: 1 | J27: 个 | L27: 一体化机柜类型3 | N27: 东阳南马大仁 | O27: 330783908000000338 | P27: 东阳 | Q27: 2024 | R27: 2024B7
A28: 27 | B28: 2024 年金华分公司第27次党委会会议纪要（金华铁塔党委会纪要〔2024〕第31期） | C28: 330700432003 | D28: 外市电引入 | E28: 电线电缆 | F28: 12343.83 | G28: 8927.85 | H28: 3415.98 | I28: 1 | J28: 根 | L28: 25方铝线2米/根 | N28: 东阳南马大仁 | O28: 330783908000000338 | P28: 东阳 | Q28: 2024 | R28: 2024B7
A29: 28 | B29: 2024 年金华分公司第27次党委会会议纪要（金华铁塔党委会纪要〔2024〕第31期） | C29: 330700443574 | D29: 外市电引入 | E29: 电线电缆 | F29: 80.62 | G29: 74.17 | H29: 6.45 | I29: 1 | J29: 根 | L29: 25方铝线2米/根 | N29: 东阳南马大仁 | O29: 330783908000000338 | P29: 东阳 | Q29: 2024 | R29: 2024B7
A30: 29 | B30: 2024 年金华分公司第27次党委会会议纪要（金华铁塔党委会纪要〔2024〕第31期） | C30: 330700339638 | D30: 动力及环境监控单元 | E30: 动环 | F30: 2811.79 | G30: 84.35 | H30: 2727.44 | I30: 1 | J30: 个 | L30: 主设备室内型成套设备双柜配置模型 | N30: 东阳南马大仁 | O30: 330783908000000338 | P30: 东阳 | Q30: 2024 | R30: 2024B7
A31: 30 | B31: 2024 年金华分公司第27次党委会会议纪要（金华铁塔党委会纪要〔2024〕第31期） | C31: 330700316654 | D31: 外市电引入 | E31: 电线电缆 | F31: 24879.06 | G31: 4476.37 | H31: 20402.69 | I31: 1 | J31: 根 | L31: 4x25方铝线3米/根 | N31: 东阳横店下朱村 | O31: 330783500000000148 | P31: 东阳 | Q31: 2024 | R31: 2024B7
A32: 31 | B32: 2024 年金华分公司第27次党委会会议纪要（金华铁塔党委会纪要〔2024〕第31期） | C32: 330700316642 | D32: 交流配电箱 | E32: 电源类 | F32: 4247.86 | G32: 127.44 | H32: 4120.42 | I32: 1 | J32: 个 | L32: 壁挂式380V/100A 内置100KA SPD | N32: 东阳横店下朱村 | O32: 330783500000000148 | P32: 东阳 | Q32: 2024 | R32: 2024B7
A33: 32 | B33: 2024 年金华分公司第27次党委会会议纪要（金华铁塔党委会纪要〔2024〕第31期） | C33: 330700316649 | D33: 组合式高频开关电源-48V/600A高效系统(50A高效模块)-300A | E33: 开关电源 | F33: 13837.79 | G33: 415.13 | H33: 13422.66 | I33: 1 | J33: 架 | L33: 组合式 | N33: 东阳横店下朱村 | O33: 330783500000000148 | P33: 东阳 | Q33: 2024 | R33: 2024B7
A34: 33 | B34: 2024 年金华分公司第27次党委会会议纪要（金华铁塔党委会纪要〔2024〕第31期） | C34: 330700316643 | D34: 基站舒适空调3匹（柜式）（三相）-整机（单冷） | E34: 空调 | F34: 8858.84 | G34: 265.77 | H34: 8593.07 | I34: 1 | J34: 台 | L34: 3P | N34: 东阳横店下朱村 | O34: 330783500000000148 | P34: 东阳 | Q34: 2024 | R34: 2024B7
A35: 34 | B35: 2024 年金华分公司第27次党委会会议纪要（金华铁塔党委会纪要〔2024〕第31期） | C35: 330700316646 | D35: 配套综合柜体（2000*600*600mm） | E35: 综合柜 | F35: 1741.72 | G35: 52.25 | H35: 1689.47 | I35: 1 | J35: 台 | L35: 配套综合柜体（2000*600*600mm） | N35: 东阳横店下朱村 | O35: 330783500000000148 | P35: 东阳 | Q35: 2024 | R35: 2024B7
A36: 35 | B36: 2024 年金华分公司第27次党委会会议纪要（金华铁塔党委会纪要〔2024〕第31期） | C36: 330700316644 | D36: 油机切换箱 | E36: 发电机 | F36: 2569.89 | G36: 77.1 | H36: 2492.79 | I36: 1 | J36: 个 | L36: 端子排：100A/4P | N36: 东阳横店下朱村 | O36: 330783500000000148 | P36: 东阳 | Q36: 2024 | R36: 2024B7
A37: 36 | B37: 2024 年金华分公司第27次党委会会议纪要（金华铁塔党委会纪要〔2024〕第31期） | C37: 330700385062 | D37: 电力引入扩容资产 | E37: 外市电 | F37: 381.86 | G37: 208.9 | H37: 172.96 | I37: 1 | J37: 个 | L37: 霍尔传感器电流型输入50A/输出4-20mA | N37: 东阳横店下朱村 | O37: 330783500000000148 | P37: 东阳 | Q37: 2024 | R37: 2024B7
A38: 37 | B38: 2024 年金华分公司第27次党委会会议纪要（金华铁塔党委会纪要〔2024〕第31期） | C38: 330700341455 | D38: 动力及环境监控单元 | E38: 动环 | F38: 3642.38 | G38: 109.27 | H38: 3533.11 | I38: 1 | J38: 个 | L38: 主设备室内型成套设备基本配置模型 | N38: 东阳横店下朱村 | O38: 330783500000000148 | P38: 东阳 | Q38: 2024 | R38: 2024B7
A39: 38 | B39: 2024 年金华分公司第27次党委会会议纪要（金华铁塔党委会纪要〔2024〕第31期） | C39: 330700493688 | D39: 外市电引入 | E39: 电线电缆 | F39: 161.88 | G39: 154.07 | H39: 7.81 | I39: 2 | J39: 根 | L39: 1x25方红、蓝铜线1.5米/根 | N39: 义乌苏溪张浒村 | O39: 330782908000002216 | P39: 义乌 | Q39: 2024 | R39: 2024B7
A40: 39 | B40: 2024 年金华分公司第27次党委会会议纪要（金华铁塔党委会纪要〔2024〕第31期） | C40: 330700400318 | D40: 外市电引入 | E40: 电线电缆 | F40: 1784.17 | G40: 1101.03 | H40: 683.14 | I40: 1 | J40: 根 | L40: 4x35方铝线1.5米/根 | N40: 义乌苏溪张浒村 | O40: 330782908000002216 | P40: 义乌 | Q40: 2024 | R40: 2024B7
A41: 40 | B41: 2024 年金华分公司第27次党委会会议纪要（金华铁塔党委会纪要〔2024〕第31期） | C41: 330700430579 | D41: 外市电引入 | E41: 电线电缆 | F41: 20591.93 | G41: 14635.05 | H41: 5956.88 | I41: 1 | J41: 根 | L41: 4x35方铝线15米/根 | N41: 义乌美能笔业 | O41: 330782908000002656 | P41: 义乌 | Q41: 2024 | R41: 2024B7
A42: 41 | B42: 2024 年金华分公司第27次党委会会议纪要（金华铁塔党委会纪要〔2024〕第31期） | C42: 330700333705 | D42: 外市电引入 | E42: 电线电缆 | F42: 2828.11 | G42: 353.47 | H42: 2474.64 | I42: 1 | J42: 根 | L42: 4x35方铝线2米/根 | N42: 义乌苏溪张浒村 | O42: 330782908000002216 | P42: 义乌 | Q42: 2024 | R42: 2024B7
A43: 42 | B43: 2024 年金华分公司第27次党委会会议纪要（金华铁塔党委会纪要〔2024〕第31期） | C43: 330700327523 | D43: 组合式开关电源 | E43: 开关电源 | F43: 5458.92 | G43: 163.77 | H43: 5295.15 | I43: 1 | J43: 架 | L43: 嵌入式 | N43: 义乌苏溪张浒村 | O43: 330782908000002216 | P43: 义乌 | Q43: 2024 | R43: 2024B7
A44: 43 | B44: 2024 年金华分公司第27次党委会会议纪要（金华铁塔党委会纪要〔2024〕第31期） | C44: 330700166187 | D44: 油机转换箱 | E44: 发电机 | F44: 346.12 | G44: 10.38 | H44: 335.74 | I44: 1 | J44: 个 | L44: NXK1 | N44: 义乌苏溪张浒村 | O44: 330782908000002216 | P44: 义乌 | Q44: 2024 | R44: 2024B7
A45: 44 | B45: 2024 年金华分公司第27次党委会会议纪要（金华铁塔党委会纪要〔2024〕第31期） | C45: 330700341352 | D45: 动力及环境监控单元 | E45: 动环 | F45: 2811.79 | G45: 84.35 | H45: 2727.44 | I45: 1 | J45: 个 | L45: 主设备室内型成套设备双柜配置模型 | N45: 义乌苏溪张浒村 | O45: 330782908000002216 | P45: 义乌 | Q45: 2024 | R45: 2024B7
A46: 45 | B46: 2024 年金华分公司第27次党委会会议纪要（金华铁塔党委会纪要〔2024〕第31期） | C46: 330700418032 | D46: 机房配套扩容资产 | E46: 机房配套其他 | F46: 467.52 | G46: 196.58 | H46: 270.94 | I46: 1 | J46: 个 | L46: 通信与位置服务模块通信与位置服务模块（全网通版） | N46: 义乌苏溪张浒村 | O46: 330782908000002216 | P46: 义乌 | Q46: 2024 | R46: 2024B7
A47: 46 | B47: 2024 年金华分公司第27次党委会会议纪要（金华铁塔党委会纪要〔2024〕第31期） | C47: 330700435925 | D47: 电源扩容资产 | E47: 电源类 | F47: 2067.07 | G47: 976.93 | H47: 1090.14 | I47: 1 | J47: 个 | L47: 分路直流分路断路器(100A) | N47: 义乌苏溪张浒村 | O47: 330782908000002216 | P47: 义乌 | Q47: 2024 | R47: 2024B7
A48: 47 | B48: 2024 年金华分公司第27次党委会会议纪要（金华铁塔党委会纪要〔2024〕第31期） | C48: 330700442083 | D48: 外市电引入 | E48: 电线电缆 | F48: 30032.69 | G48: 22961.88 | H48: 7070.81 | I48: 1 | J48: 根 | L48: 4x35方铝线33米/根 | N48: 义乌六中北搬迁 | O48: 330782500010002590 | P48: 义乌 | Q48: 2024 | R48: 2024B7
A49: 48 | B49: 2024 年金华分公司第27次党委会会议纪要（金华铁塔党委会纪要〔2024〕第31期） | C49: 330700159680 | D49: 交流配电箱 | E49: 电源类 | F49: 4035.15 | G49: 121.05 | H49: 3914.1 | I49: 1 | J49: 个 | L49: SDZY-3G-ZD | N49: 东阳蒋桥头社区 | O49: 330783908000000761 | P49: 东阳 | Q49: 2024 | R49: 2024B7
A50: 49 | B50: 2024 年金华分公司第27次党委会会议纪要（金华铁塔党委会纪要〔2024〕第31期） | C50: 330700159628 | D50: 开关电源 | E50: 开关电源 | F50: 14312.04 | G50: 429.36 | H50: 13882.68 | I50: 1 | J50: 架 | L50: 组合式 | N50: 东阳蒋桥头社区 | O50: 330783908000000761 | P50: 东阳 | Q50: 2024 | R50: 2024B7
A51: 50 | B51: 2024 年金华分公司第27次党委会会议纪要（金华铁塔党委会纪要〔2024〕第31期） | C51: 330700131751 | D51: 专用空调 | E51: 空调 | F51: 2034.36 | G51: 61.03 | H51: 1973.33 | I51: 1 | J51: 台 | L51: 3P | N51: 东阳蒋桥头社区 | O51: 330783908000000761 | P51: 东阳 | Q51: 2024 | R51: 2024B7
A52: 51 | B52: 2024 年金华分公司第27次党委会会议纪要（金华铁塔党委会纪要〔2024〕第31期） | C52: 330700346119 | D52: 基站机房扩容资产 | E52: 基站构筑物 | F52: 1263.91 | G52: 936.74 | H52: 327.17 | I52: 1 | J52: 个 | L52: 室内走线架400mm室内走线架 | N52: 东阳蒋桥头社区 | O52: 330783908000000761 | P52: 东阳 | Q52: 2024 | R52: 2024B7
A53: 52 | B53: 2024 年金华分公司第27次党委会会议纪要（金华铁塔党委会纪要〔2024〕第31期） | C53: 330700367795 | D53: 机房配套扩容资产 | E53: 机房配套其他 | F53: 290.29 | G53: 43.94 | H53: 246.35 | I53: 1 | J53: 个 | L53: 监控传感器智能门禁配套物资电源转换模块 | N53: 东阳蒋桥头社区 | O53: 330783908000000761 | P53: 东阳 | Q53: 2024 | R53: 2024B7
A54: 53 | B54: 2024 年金华分公司第27次党委会会议纪要（金华铁塔党委会纪要〔2024〕第31期） | C54: 330700331278 | D54: 供电计量设备 | E54: 通用资产-供电计量设备 | F54: 635.42 | G54: 121.76 | H54: 513.66 | I54: 1 | J54: 个 | L54: 供电计量设备 | N54: 东阳蒋桥头社区 | O54: 330783908000000761 | P54: 东阳 | Q54: 2024 | R54: 2024B7
A55: 54 | B55: 2024 年金华分公司第27次党委会会议纪要（金华铁塔党委会纪要〔2024〕第31期） | C55: 330700423756 | D55: 外市电引入 | E55: 电线电缆 | F55: 5200.31 | G55: 3473.68 | H55: 1726.63 | I55: 1 | J55: 根 | L55: 4x25方铝线10米/根 | N55: 永康茶场搬迁 | O55: 330784500010001848 | P55: 永康 | Q55: 2024 | R55: 2024B7
A56: 55 | B56: 2024 年金华分公司第27次党委会会议纪要（金华铁塔党委会纪要〔2024〕第31期） | C56: 330700431801 | D56: 外市电引入 | E56: 电线电缆 | F56: 23565.97 | G56: 16827.97 | H56: 6738 | I56: 1 | J56: 根 | L56: 4x25方铝线12米/根 | N56: 金华金东真彩服饰 | O56: 330703908000000213 | P56: 金东 | Q56: 2024 | R56: 2024B7
A57: 56 | B57: 2024 年金华分公司第27次党委会会议纪要（金华铁塔党委会纪要〔2024〕第31期） | C57: 330700392607 | D57: 外市电引入 | E57: 电线电缆 | F57: 225.76 | G57: 189.99 | H57: 35.77 | I57: 1 | J57: 根 | L57: 50方铜线3米/根 | N57: 金华金东真彩服饰 | O57: 330703908000000213 | P57: 金东 | Q57: 2024 | R57: 2024B7
A58: 57 | B58: 2024 年金华分公司第27次党委会会议纪要（金华铁塔党委会纪要〔2024〕第31期） | C58: 330700494608 | D58: 外市电引入 | E58: 电线电缆 | F58: 511.65 | G58: 480.22 | H58: 31.43 | I58: 1 | J58: 根 | L58: 50方铜线3米/根 | N58: 金华金东真彩服饰 | O58: 330703908000000213 | P58: 金东 | Q58: 2024 | R58: 2024B7
A59: 58 | B59: 2024 年金华分公司第27次党委会会议纪要（金华铁塔党委会纪要〔2024〕第31期） | C59: 330700159517 | D59: 交流配电箱 | E59: 电源类 | F59: 1951.23 | G59: 58.54 | H59: 1892.69 | I59: 1 | J59: 个 | L59: DPJ02 | N59: 金华金东真彩服饰 | O59: 330703908000000213 | P59: 金东 | Q59: 2024 | R59: 2024B7
A60: 59 | B60: 2024 年金华分公司第27次党委会会议纪要（金华铁塔党委会纪要〔2024〕第31期） | C60: 330700119325 | D60: 开关电源 | E60: 开关电源 | F60: 14749.37 | G60: 442.48 | H60: 14306.89 | I60: 1 | J60: 架 | L60: 组合式 | N60: 金华金东真彩服饰 | O60: 330703908000000213 | P60: 金东 | Q60: 2024 | R60: 2024B7
A61: 60 | B61: 2024 年金华分公司第27次党委会会议纪要（金华铁塔党委会纪要〔2024〕第31期） | C61: 330700348758 | D61: 基站机房扩容资产 | E61: 基站构筑物 | F61: 1255.93 | G61: 935.18 | H61: 320.75 | I61: 1 | J61: 个 | L61: 室内走线架400mm室内走线架 | N61: 金华金东真彩服饰 | O61: 330703908000000213 | P61: 金东 | Q61: 2024 | R61: 2024B7
A62: 61 | B62: 2024 年金华分公司第27次党委会会议纪要（金华铁塔党委会纪要〔2024〕第31期） | C62: 330700372380 | D62: 机房配套扩容资产 | E62: 机房配套其他 | F62: 291.14 | G62: 47.98 | H62: 243.16 | I62: 1 | J62: 个 | L62: 监控传感器智能门禁配套物资电源转换模块 | N62: 金华金东真彩服饰 | O62: 330703908000000213 | P62: 金东 | Q62: 2024 | R62: 2024B7
A63: 62 | B63: 2024 年金华分公司第27次党委会会议纪要（金华铁塔党委会纪要〔2024〕第31期） | C63: 330700392606 | D63: 电源扩容资产 | E63: 电源类 | F63: 80.16 | G63: 27.24 | H63: 52.92 | I63: 1 | J63: 个 | L63: 配电单元分路直流分路断路器(100A) | N63: 金华金东真彩服饰 | O63: 330703908000000213 | P63: 金东 | Q63: 2024 | R63: 2024B7
A64: 63 | B64: 2024 年金华分公司第27次党委会会议纪要（金华铁塔党委会纪要〔2024〕第31期） | C64: 330700380641 | D64: 嵌入式开关电源 | E64: 开关电源 | F64: 7201.45 | G64: 2253.43 | H64: 4948.02 | I64: 1 | J64: 架 | L64: 嵌入式 | N64: 东阳樟树下 | O64: 330784908000000898 | P64: 东阳 | Q64: 2024 | R64: 2024B7
A65: 64 | B65: 2024年8月19日总经理专题办公会议纪要 | C65: 330700123943 | D65: 专用空调 | E65: 空调 | F65: 3273.53 | G65: 98.21 | H65: 3175.32 | I65: 1 | J65: 台 | L65: 2P | N65: 金华金东包村 | O65: 330703908000000018 | P65: 金东 | Q65: 2024 | R65: 2024B6
A66: 65 | B66: 2024年8月19日总经理专题办公会议纪要 | C66: 330700148114 | D66: 专用空调 | E66: 空调 | F66: 2581.52 | G66: 77.45 | H66: 2504.07 | I66: 1 | J66: 台 | L66: 2p | N66: 武义麻阳 | O66: 330723908000000573 | P66: 武义 | Q66: 2024 | R66: 2024B6
A67: 66 | B67: 2024年8月19日总经理专题办公会议纪要 | C67: 330700318031 | D67: 普通空调柜式 | E67: 空调 | F67: 6163.16 | G67: 184.89 | H67: 5978.27 | I67: 1 | J67: 台 | L67: 3P | N67: 金华北二环金盾东 | O67: 330703908000000838 | P67: 金东 | Q67: 2024 | R67: 2024B6
A68: 67 | B68: 2024年8月19日总经理专题办公会议纪要 | C68: 330700131621 | D68: 专用空调 | E68: 空调 | F68: 231.75 | G68: 6.95 | H68: 224.8 | I68: 1 | J68: 台 | L68: 3P | N68: 金华金东XFD | O68: 330703908000000614 | P68: 金东 | Q68: 2024 | R68: 2024B6
A69: 68 | B69: 2024年8月19日总经理专题办公会议纪要 | C69: 330700143553 | D69: 专用空调 | E69: 空调 | F69: 652.31 | G69: 19.57 | H69: 632.74 | I69: 1 | J69: 台 | L69: 3P | N69: 金华金东杜宅 | O69: 330703908000000380 | P69: 金东 | Q69: 2024 | R69: 2024B6
A70: 69 | B70: 2024年8月19日总经理专题办公会议纪要 | C70: 330700159214 | D70: 专用空调 | E70: 空调 | F70: 257.5 | G70: 7.73 | H70: 249.77 | I70: 1 | J70: 台 | L70: 3P | N70: 金华金东华顺日用 | O70: 330703908000000320 | P70: 金东 | Q70: 2024 | R70: 2024B6
A71: 70 | B71: 2024年8月19日总经理专题办公会议纪要 | C71: 330700112943 | D71: 专用空调 | E71: 空调 | F71: 8307.75 | G71: 249.23 | H71: 8058.52 | I71: 1 | J71: 台 | L71: 3P | N71: 金华婺城公安局2幢 | O71: 330702908000000870 | P71: 婺城 | Q71: 2024 | R71: 2024B6
A72: 71 | B72: 2024年8月19日总经理专题办公会议纪要 | C72: 330700318980 | D72: 空调 | E72: 空调 | F72: 6844.44 | G72: 205.33 | H72: 6639.11 | I72: 1 | J72: 台 | L72: 3P | N72: 金华婺城杭长盛村 | O72: 330702908000001610 | P72: 婺城 | Q72: 2024 | R72: 2024B6
A73: 72 | B73: 2024年8月19日总经理专题办公会议纪要 | C73: 330700168986 | D73: 专用空调 | E73: 空调 | F73: 206 | G73: 6.18 | H73: 199.82 | I73: 1 | J73: 台 | L73: 3P | N73: 金华婺城开关厂 | O73: 330702908000000910 | P73: 婺城 | Q73: 2024 | R73: 2024B6
A74: 73 | B74: 2024年8月19日总经理专题办公会议纪要 | C74: 330700130631 | D74: 专用空调 | E74: 空调 | F74: 552.65 | G74: 16.58 | H74: 536.07 | I74: 1 | J74: 台 | L74: 3p | N74: 熟溪抱弄口 | O74: 330723908000000310 | P74: 武义 | Q74: 2024 | R74: 2024B6
A75: 74 | B75: 2024年8月19日总经理专题办公会议纪要 | C75: 330700123812 | D75: 专用空调 | E75: 空调 | F75: 51.5 | G75: 1.55 | H75: 49.95 | I75: 1 | J75: 台 | L75: 3p | N75: 武义麻阳 | O75: 330723908000000573 | P75: 武义 | Q75: 2024 | R75: 2024B6
A76: 75 | B76: 2024年8月19日总经理专题办公会议纪要 | C76: 330700143645 | D76: 专用空调 | E76: 空调 | F76: 1260 | G76: 37.8 | H76: 1222.2 | I76: 1 | J76: 台 | L76: 3p | N76: 武义泉溪 | O76: 330723908000000863 | P76: 武义 | Q76: 2024 | R76: 2024B6
A77: 76 | B77: 2024年8月19日总经理专题办公会议纪要 | C77: 330700143646 | D77: 专用空调 | E77: 空调 | F77: 1206 | G77: 36.18 | H77: 1169.82 | I77: 1 | J77: 台 | L77: 3p | N77: 武义泉溪 | O77: 330723908000000863 | P77: 武义 | Q77: 2024 | R77: 2024B6
A78: 77 | B78: 2024年8月19日总经理专题办公会议纪要 | C78: 330700133659 | D78: 专用空调 | E78: 空调 | F78: 4615.25 | G78: 138.46 | H78: 4476.79 | I78: 1 | J78: 台 | L78: 3p | N78: 武义深塘下垄 | O78: 330723908000000702 | P78: 武义 | Q78: 2024 | R78: 2024B6
A79: 78 | B79: 2024 年金华分公司第23次党委会会议纪要（金华铁塔党委会纪要〔2024〕第25期） | C79: 330700157591 | D79: 专用空调 | E79: 空调 | F79: 6750.55 | G79: 202.52 | H79: 6548.03 | I79: 1 | J79: 台 | L79: 3P柜式 | N79: 义乌开发区小学 | O79: 330782908000000602 | P79: 义乌 | Q79: 2024 | R79: 2024B4
A80: 79 | B80: 2024 年金华分公司第23次党委会会议纪要（金华铁塔党委会纪要〔2024〕第25期） | C80: 330700133528 | D80: 专用空调 | E80: 空调 | F80: 5222.06 | G80: 156.66 | H80: 5065.4 | I80: 1 | J80: 台 | L80: 3P柜式 | N80: 义乌青岩刘三 | O80: 330782908000000140 | P80: 义乌 | Q80: 2024 | R80: 2024B4
A81: 80 | B81: 2024 年金华分公司第23次党委会会议纪要（金华铁塔党委会纪要〔2024〕第25期） | C81: 330700134535 | D81: 专用空调 | E81: 空调 | F81: 3666.37 | G81: 109.99 | H81: 3556.38 | I81: 1 | J81: 台 | L81: 3P柜式 | N81: 义乌上楼村 | O81: 330782908000001440 | P81: 义乌 | Q81: 2024 | R81: 2024B4
A82: 81 | B82: 2024 年金华分公司第23次党委会会议纪要（金华铁塔党委会纪要〔2024〕第25期） | C82: 330700301942 | D82: 专用空调 | E82: 空调 | F82: 6684.29 | G82: 200.53 | H82: 6483.76 | I82: 1 | J82: 台 | L82: 2P挂式 | N82: 义乌华溪太子阁 | O82: 330782908000000292 | P82: 义乌 | Q82: 2024 | R82: 2024B4
A83: 82 | B83: 2024 年金华分公司第23次党委会会议纪要（金华铁塔党委会纪要〔2024〕第25期） | C83: 330700302230 | D83: 专用空调 | E83: 空调 | F83: 4900.78 | G83: 147.02 | H83: 4753.76 | I83: 1 | J83: 台 | L83: 3P柜式 | N83: 金华义乌万达酒店SFNR | O83: 330782010000002120 | P83: 义乌 | Q83: 2024 | R83: 2024B4
A84: 83 | B84: 2024 年金华分公司第23次党委会会议纪要（金华铁塔党委会纪要〔2024〕第25期） | C84: 330700302256 | D84: 专用空调 | E84: 空调 | F84: 4860.94 | G84: 145.83 | H84: 4715.11 | I84: 1 | J84: 台 | L84: 3P柜式 | N84: 义乌九联黄古头 | O84: 330782908000001216 | P84: 义乌 | Q84: 2024 | R84: 2024B4
A85: 84 | B85: 2024 年金华分公司第23次党委会会议纪要（金华铁塔党委会纪要〔2024〕第25期） | C85: 330700301912 | D85: 专用空调 | E85: 空调 | F85: 4873.17 | G85: 146.2 | H85: 4726.97 | I85: 1 | J85: 台 | L85: 3P柜式 | N85: 义乌汽车北站 | O85: 330782908000000397 | P85: 义乌 | Q85: 2024 | R85: 2024B4
A86: 85 | B86: 2024 年金华分公司第23次党委会会议纪要（金华铁塔党委会纪要〔2024〕第25期） | C86: 330700302348 | D86: 专用空调 | E86: 空调 | F86: 4879.26 | G86: 146.38 | H86: 4732.88 | I86: 1 | J86: 台 | L86: 3P柜式 | N86: 义乌四贸大道 | O86: 33078201000626 | P86: 义乌 | Q86: 2024 | R86: 2024B4
A87: 86 | B87: 2024 年金华分公司第23次党委会会议纪要（金华铁塔党委会纪要〔2024〕第25期） | C87: 330700301793 | D87: 专用空调 | E87: 空调 | F87: 5524.93 | G87: 165.75 | H87: 5359.18 | I87: 1 | J87: 台 | L87: 3P柜式 | N87: 义乌五柳村 | O87: 33078201000515 | P87: 义乌 | Q87: 2024 | R87: 2024B4
A88: 87 | B88: 2024 年金华分公司第23次党委会会议纪要（金华铁塔党委会纪要〔2024〕第25期） | C88: 330700148085 | D88: 专用空调 | E88: 空调 | F88: 916.53 | G88: 27.5 | H88: 889.03 | I88: 1 | J88: 台 | L88: 1.5P挂式 | N88: 义乌义亭稠义西路175号 | O88: 330782908000001711 | P88: 义乌 | Q88: 2024 | R88: 2024B4
A89: 88 | B89: 2024 年金华分公司第23次党委会会议纪要（金华铁塔党委会纪要〔2024〕第25期） | C89: 330700156559 | D89: 专用空调 | E89: 空调 | F89: 51.5 | G89: 1.55 | H89: 49.95 | I89: 1 | J89: 台 | L89: 1.5P挂式 | N89: 义乌义亭木桥村 | O89: 330782908000002466 | P89: 义乌 | Q89: 2024 | R89: 2024B4
A90: 89 | B90: 2024 年金华分公司第23次党委会会议纪要（金华铁塔党委会纪要〔2024〕第25期） | C90: 330700146547 | D90: 专用空调 | E90: 空调 | F90: 358.54 | G90: 10.76 | H90: 347.78 | I90: 1 | J90: 台 | L90: 3P柜式 | N90: 义乌长府村 | O90: 33078201000594 | P90: 义乌 | Q90: 2024 | R90: 2024B4
A91: 90 | B91: 2024 年金华分公司第23次党委会会议纪要（金华铁塔党委会纪要〔2024〕第25期） | C91: 330700152197 | D91: 专用空调 | E91: 空调 | F91: 3561.72 | G91: 106.85 | H91: 3454.87 | I91: 1 | J91: 台 | L91: 3P柜式 | N91: 义乌东新屋三 | O91: 330782908000001274 | P91: 义乌 | Q91: 2024 | R91: 2024B4
A92: 91 | B92: 2024 年金华分公司第23次党委会会议纪要（金华铁塔党委会纪要〔2024〕第25期） | C92: 330700302335 | D92: 专用空调 | E92: 空调 | F92: 4719.05 | G92: 141.57 | H92: 4577.48 | I92: 1 | J92: 台 | L92: 3P柜式 | N92: 义乌姑塘五联路搬迁 | O92: 330782500010002314 | P92: 义乌 | Q92: 2024 | R92: 2024B4
A93: 92 | B93: 2024 年金华分公司第23次党委会会议纪要（金华铁塔党委会纪要〔2024〕第25期） | C93: 330700302190 | D93: 专用空调 | E93: 空调 | F93: 4873.97 | G93: 146.22 | H93: 4727.75 | I93: 1 | J93: 台 | L93: 3P柜式 | N93: 义乌内陆口岸二 | O93: 330782908000000345 | P93: 义乌 | Q93: 2024 | R93: 2024B4
A94: 93 | B94: 2024 年金华分公司第23次党委会会议纪要（金华铁塔党委会纪要〔2024〕第25期） | C94: 330700301750 | D94: 专用空调 | E94: 空调 | F94: 4978.72 | G94: 149.36 | H94: 4829.36 | I94: 1 | J94: 台 | L94: 3P柜式 | N94: 义乌廿三里晶妃针织 | O94: 330782908000002007 | P94: 义乌 | Q94: 2024 | R94: 2024B4
A95: 94 | B95: 2024 年金华分公司第23次党委会会议纪要（金华铁塔党委会纪要〔2024〕第25期） | C95: 330700121469 | D95: 专用空调 | E95: 空调 | F95: 862.59 | G95: 25.88 | H95: 836.71 | I95: 1 | J95: 台 | L95: 3P柜式 | N95: 义乌平望-2 | O95: 330782908000002714 | P95: 义乌 | Q95: 2024 | R95: 2024B4
A96: 95 | B96: 2024 年金华分公司第23次党委会会议纪要（金华铁塔党委会纪要〔2024〕第25期） | C96: 330700302197 | D96: 专用空调 | E96: 空调 | F96: 1453.85 | G96: 43.62 | H96: 1410.23 | I96: 1 | J96: 台 | L96: 3P柜式 | N96: 义乌万界 | O96: 33078201000537 | P96: 义乌 | Q96: 2024 | R96: 2024B4
A97: 96 | B97: 2024 年金华分公司第23次党委会会议纪要（金华铁塔党委会纪要〔2024〕第25期） | C97: 330700302181 | D97: 专用空调 | E97: 空调 | F97: 4887.64 | G97: 146.63 | H97: 4741.01 | I97: 1 | J97: 台 | L97: 3P柜式 | N97: 义乌吴店四 | O97: 330782908000000862 | P97: 义乌 | Q97: 2024 | R97: 2024B4
A98: 97 | B98: 2024 年金华分公司第23次党委会会议纪要（金华铁塔党委会纪要〔2024〕第25期） | C98: 330700302080 | D98: 专用空调 | E98: 空调 | F98: 231.75 | G98: 6.95 | H98: 224.8 | I98: 1 | J98: 台 | L98: 3P柜式 | N98: 义乌下章村 | O98: 33078201000638 | P98: 义乌 | Q98: 2024 | R98: 2024B4
A99: 98 | B99: 2024 年金华分公司第23次党委会会议纪要（金华铁塔党委会纪要〔2024〕第25期） | C99: 330700154968 | D99: 专用空调 | E99: 空调 | F99: 4634 | G99: 139.02 | H99: 4494.98 | I99: 1 | J99: 台 | L99: 3P柜式 | N99: 义乌雅文楼东 | O99: 330782908000000914 | P99: 义乌 | Q99: 2024 | R99: 2024B4
A100: 99 | B100: 2024 年金华分公司第24次党委会会议纪要（金华铁塔党委会纪要〔2024〕第26期） | C100: 330700308062 | D100: 空调 | E100: 空调 | F100: 6624.83 | G100: 198.74 | H100: 6426.09 | I100: 1 | J100: 台 | L100: 3P柜式 | N100: 义乌云宣塑料北 | O100: 33078200000455 | P100: 义乌 | Q100: 2024 | R100: 2024B5
A101: 100 | B101: 2024 年金华分公司第23次党委会会议纪要（金华铁塔党委会纪要〔2024〕第25期） | C101: 330700302043 | D101: 专用空调 | E101: 空调 | F101: 5119.77 | G101: 153.59 | H101: 4966.18 | I101: 1 | J101: 台 | L101: 3P柜式 | N101: 义乌赵龙重工 | O101: 33078201000529 | P101: 义乌 | Q101: 2024 | R101: 2024B4
A102: 101 | B102: 2024 年金华分公司第27次党委会会议纪要（金华铁塔党委会纪要〔2024〕第31期） | C102: 330700141918 | D102: 外市电引入 | E102: 电线电缆 | F102: 21370.72 | G102: 3059.55 | H102: 18311.17 | I102: 1 | J102: 根 | L102: 5x35方铝线1米/根 | N102: 磐安新渥山干 | O102: 330727908000000141 | P102: 磐安 | Q102: 2024 | R102: 2024B7
A103: 102 | B103: 2024 年金华分公司第27次党委会会议纪要（金华铁塔党委会纪要〔2024〕第31期） | C103: 330700330909 | D103: 开关电源（整机或机架） | E103: 开关电源 | F103: 6639.9 | G103: 199.2 | H103: 6440.7 | I103: 1 | J103: 架 | L103: 嵌入式 | N103: 磐安新渥山干 | O103: 330727908000000141 | P103: 磐安 | Q103: 2024 | R103: 2024B7
A104: 103 | B104: 2024 年金华分公司第27次党委会会议纪要（金华铁塔党委会纪要〔2024〕第31期） | C104: 330700340953 | D104: 机房配套扩容资产 | E104: 机房配套其他 | F104: 858.04 | G104: 25.74 | H104: 832.3 | I104: 1 | J104: 个 | L104: 主设备室外型拉远站用FSU设备常温220V/240V型 | N104: 磐安新渥山干 | O104: 330727908000000141 | P104: 磐安 | Q104: 2024 | R104: 2024B7
A105: 104 | B105: 2024 年金华分公司第27次党委会会议纪要（金华铁塔党委会纪要〔2024〕第31期） | C105: 330700503308 | D105: 外市电引入 | E105: 电线电缆 | F105: 15757 | G105: 14577.24 | H105: 1179.76 | I105: 1 | J105: 根 | L105: 4x16铝线5米/根 | N105: 东阳木棉田 | O105: 330783908000000977 | P105: 东阳 | Q105: 2024 | R105: 2024B7
A106: 105 | B106: 2024 年金华分公司第27次党委会会议纪要（金华铁塔党委会纪要〔2024〕第31期） | C106: 330700153156 | D106: 交流配电箱 | E106: 电源类 | F106: 4325.93 | G106: 129.78 | H106: 4196.15 | I106: 1 | J106: 个 | L106: WELL-SD01威尔 | N106: 东阳木棉田 | O106: 330783908000000977 | P106: 东阳 | Q106: 2024 | R106: 2024B7
A107: 106 | B107: 2024 年金华分公司第27次党委会会议纪要（金华铁塔党委会纪要〔2024〕第31期） | C107: 330700159658 | D107: 开关电源 | E107: 开关电源 | F107: 5049.32 | G107: 151.48 | H107: 4897.84 | I107: 1 | J107: 架 | L107: 组合式 | N107: 东阳木棉田 | O107: 330783908000000977 | P107: 东阳 | Q107: 2024 | R107: 2024B7
A108: 107 | B108: 2024 年金华分公司第27次党委会会议纪要（金华铁塔党委会纪要〔2024〕第31期） | C108: 330700346185 | D108: 基站机房扩容资产 | E108: 基站构筑物 | F108: 1263.91 | G108: 936.74 | H108: 327.17 | I108: 1 | J108: 个 | L108: 室内走线架400mm室内走线架 | N108: 东阳木棉田 | O108: 330783908000000977 | P108: 东阳 | Q108: 2024 | R108: 2024B7
A109: 108 | B109: 2024 年金华分公司第27次党委会会议纪要（金华铁塔党委会纪要〔2024〕第31期） | C109: 330700330675 | D109: 直流配电箱 | E109: 电源类 | F109: 9295.33 | G109: 278.86 | H109: 9016.47 | I109: 1 | J109: 台 | L109: 直流配电设备 | N109: 东阳木棉田 | O109: 330783908000000977 | P109: 东阳 | Q109: 2024 | R109: 2024B7
A110: 109 | B110: 2024 年金华分公司第27次党委会会议纪要（金华铁塔党委会纪要〔2024〕第31期） | C110: 330700331411 | D110: 直流配电箱 | E110: 电源类 | F110: 6197.87 | G110: 185.94 | H110: 6011.93 | I110: 1 | J110: 台 | L110: 直流配电设备 | N110: 东阳木棉田 | O110: 330783908000000977 | P110: 东阳 | Q110: 2024 | R110: 2024B7
A111: 110 | B111: 2024 年金华分公司第27次党委会会议纪要（金华铁塔党委会纪要〔2024〕第31期） | C111: 330700355771 | D111: 机房配套扩容资产 | E111: 机房配套其他 | F111: 288 | G111: 12.52 | H111: 275.48 | I111: 1 | J111: 个 | L111: 监控传感器智能门禁配套物资电源转换模块 | N111: 东阳木棉田 | O111: 330783908000000977 | P111: 东阳 | Q111: 2024 | R111: 2024B7
A112: 111 | B112: 2024 年金华分公司第27次党委会会议纪要（金华铁塔党委会纪要〔2024〕第31期） | C112: 330700364004 | D112: 机房配套扩容资产 | E112: 机房配套其他 | F112: 321.56 | G112: 35.66 | H112: 285.9 | I112: 1 | J112: 个 | L112: 普通空调基站智能空调控制器 | N112: 东阳木棉田 | O112: 330783908000000977 | P112: 东阳 | Q112: 2024 | R112: 2024B7
A113: 112 | B113: 2024 年金华分公司第27次党委会会议纪要（金华铁塔党委会纪要〔2024〕第31期） | C113: 330700385045 | D113: 电力引入扩容资产 | E113: 外市电 | F113: 381.86 | G113: 208.9 | H113: 172.96 | I113: 1 | J113: 个 | L113: 直流计量终端6分路 | N113: 东阳木棉田 | O113: 330783908000000977 | P113: 东阳 | Q113: 2024 | R113: 2024B7
A114: 113 | B114: 2024 年金华分公司第23次党委会会议纪要（金华铁塔党委会纪要〔2024〕第25期） | C114: 330700131636 | D114: 专用空调 | E114: 空调 | F114: 257.5 | G114: 7.73 | H114: 249.77 | I114: 1 | J114: 台 | L114: 2P | N114: 永康高圳房地产 | O114: 330784908000000366 | P114: 永康 | Q114: 2024 | R114: 2024B4
A115: 114 | B115: 2024年8月19日总经理专题办公会议纪要 | C115: 330700301861 | D115: 专用空调 | E115: 空调 | F115: 8925.41 | G115: 267.76 | H115: 8657.65 | I115: 1 | J115: 台 | L115: 2P | N115: 永康芝英砚口L | O115: 330784908000000955 | P115: 永康 | Q115: 2024 | R115: 2024B6
A116: 115 | B116: 2024年8月19日总经理专题办公会议纪要 | C116: 330700339964 | D116: 普通空调柜式 | E116: 空调 | F116: 6180.47 | G116: 185.41 | H116: 5995.06 | I116: 1 | J116: 台 | L116: 3P | N116: 永康百秧畈 | O116: 33078401000269 | P116: 永康 | Q116: 2024 | R116: 2024B6
A117: 116 | B117: 2024 年金华分公司第27次党委会会议纪要（金华铁塔党委会纪要〔2024〕第31期） | C117: 330700339950 | D117: 普通空调柜式 | E117: 空调 | F117: 6180.47 | G117: 185.41 | H117: 5995.06 | I117: 1 | J117: 台 | L117: 3P | N117: 永康陈路塘 | O117: 330784908000000286 | P117: 永康 | Q117: 2024 | R117: 2024B7
A118: 117 | B118: 2024 年金华分公司第27次党委会会议纪要（金华铁塔党委会纪要〔2024〕第31期） | C118: 330700317942 | D118: 普通空调壁挂 | E118: 空调 | F118: 3489.44 | G118: 104.68 | H118: 3384.76 | I118: 1 | J118: 台 | L118: 3P | N118: 永康大园东 | O118: 330784908000000855 | P118: 永康 | Q118: 2024 | R118: 2024B7
A119: 118 | B119: 2024年8月19日总经理专题办公会议纪要 | C119: 330700157700 | D119: 专用空调 | E119: 空调 | F119: 2981.39 | G119: 89.44 | H119: 2891.95 | I119: 1 | J119: 台 | L119: 3P | N119: 永康东方雅苑 | O119: 330784908000000390 | P119: 永康 | Q119: 2024 | R119: 2024B6
A120: 119 | B120: 2024年8月19日总经理专题办公会议纪要 | C120: 330700124473 | D120: 专用空调 | E120: 空调 | F120: 257.5 | G120: 7.73 | H120: 249.77 | I120: 1 | J120: 台 | L120: 3P | N120: 永康东塔路 | O120: 330784908000000993 | P120: 永康 | Q120: 2024 | R120: 2024B6
A121: 120 | B121: 2024年8月19日总经理专题办公会议纪要 | C121: 330700317964 | D121: 普通空调柜式 | E121: 空调 | F121: 6214.66 | G121: 186.44 | H121: 6028.22 | I121: 1 | J121: 台 | L121: 3P | N121: 永康东塔路-2 | O121: 330784908000000534 | P121: 永康 | Q121: 2024 | R121: 2024B6
A122: 121 | B122: 2024年8月19日总经理专题办公会议纪要 | C122: 330700304996 | D122: 空调 | E122: 空调 | F122: 7405.83 | G122: 222.17 | H122: 7183.66 | I122: 1 | J122: 台 | L122: 3P | N122: 永康方岩中学 | O122: 33078401000333 | P122: 永康 | Q122: 2024 | R122: 2024B6
A123: 122 | B123: 2024 年金华分公司第23次党委会会议纪要（金华铁塔党委会纪要〔2024〕第25期） | C123: 330700113053 | D123: 专用空调 | E123: 空调 | F123: 10080 | G123: 302.4 | H123: 9777.6 | I123: 1 | J123: 台 | L123: 3P | N123: 永康高圳房地产 | O123: 330784908000000366 | P123: 永康 | Q123: 2024 | R123: 2024B4
A124: 123 | B124: 2024 年金华分公司第27次党委会会议纪要（金华铁塔党委会纪要〔2024〕第31期） | C124: 330700165157 | D124: 专用空调 | E124: 空调 | F124: 3489.47 | G124: 104.68 | H124: 3384.79 | I124: 1 | J124: 台 | L124: 3P | N124: 永康古山大园东 | O124: 330784908000001485 | P124: 永康 | Q124: 2024 | R124: 2024B7
A125: 124 | B125: 2024 年金华分公司第27次党委会会议纪要（金华铁塔党委会纪要〔2024〕第31期） | C125: 330700305086 | D125: 空调 | E125: 空调 | F125: 7066.43 | G125: 211.99 | H125: 6854.44 | I125: 1 | J125: 台 | L125: 3P | N125: 永康古山墁塘东 | O125: 33078400000002 | P125: 永康 | Q125: 2024 | R125: 2024B7
A126: 125 | B126: 2024年8月19日总经理专题办公会议纪要 | C126: 330700151257 | D126: 专用空调 | E126: 空调 | F126: 412 | G126: 12.36 | H126: 399.64 | I126: 1 | J126: 台 | L126: 3P | N126: 永康河头大厦 | O126: 330784908000000628 | P126: 永康 | Q126: 2024 | R126: 2024B6
A127: 126 | B127: 2024年8月19日总经理专题办公会议纪要 | C127: 330700108976 | D127: 专用空调 | E127: 空调 | F127: 5552.36 | G127: 166.57 | H127: 5385.79 | I127: 1 | J127: 台 | L127: 3P | N127: 永康会展中心二 | O127: 330784908000000255 | P127: 永康 | Q127: 2024 | R127: 2024B6
A128: 127 | B128: 2024年8月19日总经理专题办公会议纪要 | C128: 330700318002 | D128: 普通空调柜式 | E128: 空调 | F128: 5466.96 | G128: 164.01 | H128: 5302.95 | I128: 1 | J128: 台 | L128: 3P | N128: 永康荆山陈 | O128: 330784908000000421 | P128: 永康 | Q128: 2024 | R128: 2024B6
A129: 128 | B129: 2024 年金华分公司第27次党委会会议纪要（金华铁塔党委会纪要〔2024〕第31期） | C129: 330700009158 | D129: 空调 | E129: 空调 | F129: 7471.29 | G129: 224.14 | H129: 7247.15 | I129: 1 | J129: 台 | L129: 3P | N129: 永康前杭东 | O129: 330784010000000344 | P129: 永康 | Q129: 2024 | R129: 2024B7
A130: 129 | B130: 2024年8月19日总经理专题办公会议纪要 | C130: 330700163384 | D130: 专用空调 | E130: 空调 | F130: 371.45 | G130: 11.14 | H130: 360.31 | I130: 1 | J130: 台 | L130: 3P | N130: 永康桥下镇 | O130: 330784908000001299 | P130: 永康 | Q130: 2024 | R130: 2024B6
A131: 130 | B131: 2024 年金华分公司第27次党委会会议纪要（金华铁塔党委会纪要〔2024〕第31期） | C131: 330700151286 | D131: 专用空调 | E131: 空调 | F131: 2480.27 | G131: 74.41 | H131: 2405.86 | I131: 1 | J131: 台 | L131: 3P | N131: 永康邵童 | O131: 330784908000000744 | P131: 永康 | Q131: 2024 | R131: 2024B7
A132: 131 | B132: 2024 年金华分公司第27次党委会会议纪要（金华铁塔党委会纪要〔2024〕第31期） | C132: 330700007991 | D132: 空调 | E132: 空调 | F132: 7492.67 | G132: 224.78 | H132: 7267.89 | I132: 1 | J132: 台 | L132: 3P | N132: 永康石马殿 | O132: 33078400000053 | P132: 永康 | Q132: 2024 | R132: 2024B7
A133: 132 | B133: 2024 年金华分公司第27次党委会会议纪要（金华铁塔党委会纪要〔2024〕第31期） | C133: 330700152937 | D133: 专用空调 | E133: 空调 | F133: 4895.48 | G133: 146.86 | H133: 4748.62 | I133: 1 | J133: 台 | L133: 3P | N133: 永康体育馆 | O133: 330784908000000340 | P133: 永康 | Q133: 2024 | R133: 2024B7
A134: 133 | B134: 2024年8月19日总经理专题办公会议纪要 | C134: 330700312559 | D134: 空调 | E134: 空调 | F134: 5976.32 | G134: 179.29 | H134: 5797.03 | I134: 1 | J134: 台 | L134: 3P | N134: 永康五星物流 | O134: 330784010000000357 | P134: 永康 | Q134: 2024 | R134: 2024B6
A135: 134 | B135: 2024 年金华分公司第27次党委会会议纪要（金华铁塔党委会纪要〔2024〕第31期） | C135: 330700152162 | D135: 专用空调 | E135: 空调 | F135: 5293 | G135: 158.79 | H135: 5134.21 | I135: 1 | J135: 台 | L135: 3P | N135: 永康雅庄-2 | O135: 330784908000001311 | P135: 永康 | Q135: 2024 | R135: 2024B7
A136: 135 | B136: 2024 年金华分公司第27次党委会会议纪要（金华铁塔党委会纪要〔2024〕第31期） | C136: 330700121446 | D136: 专用空调 | E136: 空调 | F136: 257.5 | G136: 7.73 | H136: 249.77 | I136: 1 | J136: 台 | L136: 3P | N136: 永康芝英工业园 | O136: 330784908000000379 | P136: 永康 | Q136: 2024 | R136: 2024B7
A137: 136 | B137: 2024年8月19日总经理专题办公会议纪要 | C137: 330700121368 | D137: 专用空调 | E137: 空调 | F137: 2160 | G137: 64.8 | H137: 2095.2 | I137: 1 | J137: 台 | L137: 3P | N137: 永康舟山道坦 | O137: 330784908000001060 | P137: 永康 | Q137: 2024 | R137: 2024B6
A138: 137 | B138: 2024年8月19日总经理专题办公会议纪要 | C138: 330700121310 | D138: 专用空调 | E138: 空调 | F138: 4757 | G138: 142.71 | H138: 4614.29 | I138: 1 | J138: 台 | L138: 3P | N138: 永康舟一 | O138: 330784908000000617 | P138: 永康 | Q138: 2024 | R138: 2024B6
A139: 138 | B139: 2024 年金华分公司第27次党委会会议纪要（金华铁塔党委会纪要〔2024〕第31期） | C139: 330700301858 | D139: 专用空调 | E139: 空调 | F139: 8925.41 | G139: 267.76 | H139: 8657.65 | I139: 1 | J139: 台 | L139: 2P | N139: 浦江前吴袅溪 | O139: 330726908000000569 | P139: 浦江 | Q139: 2024 | R139: 2024B7
A140: 139 | B140: 2024 年金华分公司第27次党委会会议纪要（金华铁塔党委会纪要〔2024〕第31期） | C140: 330700165258 | D140: 专用空调 | E140: 空调 | F140: 103 | G140: 3.09 | H140: 99.91 | I140: 1 | J140: 台 | L140: 2P | N140: 浦江檀溪寺前 | O140: 330726908000000889 | P140: 浦江 | Q140: 2024 | R140: 2024B7
A141: 140 | B141: 2024 年金华分公司第27次党委会会议纪要（金华铁塔党委会纪要〔2024〕第31期） | C141: 330700112889 | D141: 专用空调 | E141: 空调 | F141: 270 | G141: 8.1 | H141: 261.9 | I141: 1 | J141: 台 | L141: 2P | N141: 浦江塘雪 | O141: 330726908000000526 | P141: 浦江 | Q141: 2024 | R141: 2024B7
A142: 141 | B142: 2024 年金华分公司第27次党委会会议纪要（金华铁塔党委会纪要〔2024〕第31期） | C142: 330700159103 | D142: 专用空调 | E142: 空调 | F142: 103 | G142: 3.09 | H142: 99.91 | I142: 1 | J142: 台 | L142: 3P | N142: 浦江诚兴纺织 | O142: 330726908000000178 | P142: 浦江 | Q142: 2024 | R142: 2024B7
A143: 142 | B143: 2024 年金华分公司第27次党委会会议纪要（金华铁塔党委会纪要〔2024〕第31期） | C143: 330700143325 | D143: 专用空调 | E143: 空调 | F143: 375.98 | G143: 11.28 | H143: 364.7 | I143: 1 | J143: 台 | L143: 3P | N143: 浦江佛堂殿 | O143: 330726908000000803 | P143: 浦江 | Q143: 2024 | R143: 2024B7
A144: 143 | B144: 2024 年金华分公司第27次党委会会议纪要（金华铁塔党委会纪要〔2024〕第31期） | C144: 330700133618 | D144: 专用空调 | E144: 空调 | F144: 257.5 | G144: 7.73 | H144: 249.77 | I144: 1 | J144: 台 | L144: 3P | N144: 浦江黄宅三 | O144: 330726908000000271 | P144: 浦江 | Q144: 2024 | R144: 2024B7
A145: 144 | B145: 2024 年金华分公司第27次党委会会议纪要（金华铁塔党委会纪要〔2024〕第31期） | C145: 330700133619 | D145: 专用空调 | E145: 空调 | F145: 257.5 | G145: 7.73 | H145: 249.77 | I145: 1 | J145: 台 | L145: 3P | N145: 浦江黄宅三 | O145: 330726908000000271 | P145: 浦江 | Q145: 2024 | R145: 2024B7
A146: 145 | B146: 2024 年金华分公司第27次党委会会议纪要（金华铁塔党委会纪要〔2024〕第31期） | C146: 330700130532 | D146: 专用空调 | E146: 空调 | F146: 231.75 | G146: 6.95 | H146: 224.8 | I146: 1 | J146: 台 | L146: 3P | N146: 浦江南山电器 | O146: 330726908000000728 | P146: 浦江 | Q146: 2024 | R146: 2024B7
A147: 146 | B147: 2024 年金华分公司第27次党委会会议纪要（金华铁塔党委会纪要〔2024〕第31期） | C147: 330700341651 | D147: 普通空调柜式 | E147: 空调 | F147: 6180.47 | G147: 185.41 | H147: 5995.06 | I147: 1 | J147: 台 | L147: 3P | N147: 浦江前于水阁 | O147: 330726908000000724 | P147: 浦江 | Q147: 2024 | R147: 2024B7
A148: 147 | B148: 2024 年金华分公司第27次党委会会议纪要（金华铁塔党委会纪要〔2024〕第31期） | C148: 330700320041 | D148: 空调 | E148: 空调 | F148: 7900.07 | G148: 237 | H148: 7663.07 | I148: 1 | J148: 台 | L148: 3P | N148: 浦江沈里村 | O148: 33072600000226 | P148: 浦江 | Q148: 2024 | R148: 2024B7
A149: 148 | B149: 2024 年金华分公司第27次党委会会议纪要（金华铁塔党委会纪要〔2024〕第31期） | C149: 330700133709 | D149: 专用空调 | E149: 空调 | F149: 5455.88 | G149: 163.68 | H149: 5292.2 | I149: 1 | J149: 台 | L149: 3P | N149: 浦江徐店 | O149: 330726908000000298 | P149: 浦江 | Q149: 2024 | R149: 2024B7
A150: 149 | B150: 2024 年金华分公司第27次党委会会议纪要（金华铁塔党委会纪要〔2024〕第31期） | C150: 330700171291 | D150: 专用空调 | E150: 空调 | F150: 257.5 | G150: 7.73 | H150: 249.77 | I150: 1 | J150: 台 | L150: 3P | N150: 浦江徐店 | O150: 330726908000000298 | P150: 浦江 | Q150: 2024 | R150: 2024B7
A151: 150 | B151: 2024 年金华分公司第27次党委会会议纪要（金华铁塔党委会纪要〔2024〕第31期） | C151: 330700306181 | D151: 空调 | E151: 空调 | F151: 8258.7 | G151: 247.76 | H151: 8010.94 | I151: 1 | J151: 台 | L151: 3P | N151: 浦江中央畈 | O151: 33072600000232 | P151: 浦江 | Q151: 2024 | R151: 2024B7
A152: 151 | B152: 2024年8月19日总经理专题办公会议纪要 | C152: 330700319109 | D152: 动环监控设备 | E152: 动环 | F152: 4570.12 | G152: 137.1 | H152: 4433.02 | I152: 1 | J152: 个 | L152: 标准配置 | N152: 兰溪黄店百步岩村 | O152: 33078101000158 | P152: 兰溪 | Q152: 2024 | R152: 2024B6
A153: 152 | B153: 2024年8月19日总经理专题办公会议纪要 | C153: 330700340550 | D153: 动力及环境监控单元 | E153: 动环 | F153: 2925.06 | G153: 87.75 | H153: 2837.31 | I153: 1 | J153: 个 | L153: 主设备室内型成套设备基本配置模型 | N153: 兰溪黄店余粮山 | O153: 330781908000000697 | P153: 兰溪 | Q153: 2024 | R153: 2024B6
A154: 153 | B154: 2024 年金华分公司第23次党委会会议纪要（金华铁塔党委会纪要〔2024〕第25期） | C154: 330700315948 | D154: 动环监控设备 | E154: 动环 | F154: 4244.32 | G154: 127.33 | H154: 4116.99 | I154: 1 | J154: 个 | L154: 室内宏站 | N154: 兰溪火车站货场 | O154: 330781500000000065 | P154: 兰溪 | Q154: 2024 | R154: 2024B4
A155: 154 | B155: 2024年8月19日总经理专题办公会议纪要 | C155: 330700335451 | D155: 动环监控设备FSU | E155: 动环 | F155: 3461.19 | G155: 103.84 | H155: 3357.35 | I155: 1 | J155: 个 | L155: 主设备室内型成套设备基本配置模型 | N155: 兰溪龙门行政村 | O155: 33078101000189 | P155: 兰溪 | Q155: 2024 | R155: 2024B6
A156: 155 | B156: 2024年8月19日总经理专题办公会议纪要 | C156: 330700349587 | D156: 动力及环境监控单元 | E156: 动环 | F156: 2869.22 | G156: 86.08 | H156: 2783.14 | I156: 1 | J156: 个 | L156: 主设备室内型成套设备基本配置模型 | N156: 兰溪马涧-2 | O156: 330781908000001013 | P156: 兰溪 | Q156: 2024 | R156: 2024B6
A157: 156 | B157: 2024年8月19日总经理专题办公会议纪要 | C157: 330700317626 | D157: 动环监控设备 | E157: 动环 | F157: 4666.26 | G157: 139.99 | H157: 4526.27 | I157: 1 | J157: 个 | L157: 标准配置 | N157: 兰溪女埠初中 | O157: 33078100000153 | P157: 兰溪 | Q157: 2024 | R157: 2024B6
A158: 157 | B158: 2024 年金华分公司第23次党委会会议纪要（金华铁塔党委会纪要〔2024〕第25期） | C158: 330700315513 | D158: 动环监控设备 | E158: 动环 | F158: 4480.76 | G158: 134.42 | H158: 4346.34 | I158: 1 | J158: 个 | L158: 标准配置 | N158: 兰溪西山寺新村 | O158: 33078100000145 | P158: 兰溪 | Q158: 2024 | R158: 2024B4
A159: 158 | B159: 2024年8月19日总经理专题办公会议纪要 | C159: 330700311972 | D159: 动环监控设备 | E159: 动环 | F159: 3613.61 | G159: 108.41 | H159: 3505.2 | I159: 1 | J159: 个 | L159: 标准配置 | N159: 兰溪下高北 | O159: 330781010000000235 | P159: 兰溪 | Q159: 2024 | R159: 2024B6
A160: 159 | B160: 2024年8月19日总经理专题办公会议纪要 | C160: 330700309795 | D160: 动环监控设备 | E160: 动环 | F160: 4025.45 | G160: 120.76 | H160: 3904.69 | I160: 1 | J160: 个 | L160: 室内宏站 | N160: 兰溪下金北 | O160: 330781500000000043 | P160: 兰溪 | Q160: 2024 | R160: 2024B6
A161: 160 | B161: 2024年8月19日总经理专题办公会议纪要 | C161: 330700336423 | D161: 动力及环境监控单元 | E161: 动环 | F161: 3240.62 | G161: 97.22 | H161: 3143.4 | I161: 1 | J161: 个 | L161: 主设备室内型成套设备基本配置模型 | N161: 兰溪夏李村南 | O161: 330781908000000477 | P161: 兰溪 | Q161: 2024 | R161: 2024B6
A162: 161 | B162: 2024 年金华分公司第23次党委会会议纪要（金华铁塔党委会纪要〔2024〕第25期） | C162: 330700312534 | D162: 动环监控设备 | E162: 动环 | F162: 3512.76 | G162: 105.38 | H162: 3407.38 | I162: 1 | J162: 个 | L162: 标准配置 | N162: 兰溪香格里拉 | O162: 33078101000223 | P162: 兰溪 | Q162: 2024 | R162: 2024B4
A163: 162 | B163: 2024 年金华分公司第23次党委会会议纪要（金华铁塔党委会纪要〔2024〕第25期） | C163: 330700317645 | D163: 动环监控设备 | E163: 动环 | F163: 4140.06 | G163: 124.2 | H163: 4015.86 | I163: 1 | J163: 个 | L163: 室内宏站 | N163: 兰溪永昌董塘村 | O163: 330781500000000050 | P163: 兰溪 | Q163: 2024 | R163: 2024B4
A164: 163 | B164: 2024 年金华分公司第23次党委会会议纪要（金华铁塔党委会纪要〔2024〕第25期） | C164: 330700317257 | D164: 动环监控设备 | E164: 动环 | F164: 4063.53 | G164: 121.91 | H164: 3941.62 | I164: 1 | J164: 个 | L164: 室内宏站 | N164: 兰溪云山茶坞东南 | O164: 330781500000000042 | P164: 兰溪 | Q164: 2024 | R164: 2024B4
A165: 164 | B165: 2024 年金华分公司第23次党委会会议纪要（金华铁塔党委会纪要〔2024〕第25期） | C165: 330700315539 | D165: 动环监控设备 | E165: 动环 | F165: 4945.23 | G165: 148.36 | H165: 4796.87 | I165: 1 | J165: 个 | L165: 室内宏站 | N165: 兰溪云山街道陈家井村 | O165: 330781500000000012 | P165: 兰溪 | Q165: 2024 | R165: 2024B4
A166: 165 | B166: 2024年8月19日总经理专题办公会议纪要 | C166: 330700339553 | D166: 动力及环境监控单元 | E166: 动环 | F166: 2527.8 | G166: 75.83 | H166: 2451.97 | I166: 1 | J166: 个 | L166: 主设备室内型成套设备 | N166: 兰溪朱家-2 | O166: 330781908000000885 | P166: 兰溪 | Q166: 2024 | R166: 2024B6
A167: 166 | B167: 2024年8月19日总经理专题办公会议纪要 | C167: 330700108085 | D167: 专用空调 | E167: 空调 | F167: 684 | G167: 20.52 | H167: 663.48 | I167: 1 | J167: 台 | L167: 3P | N167: 兰溪赤溪东徐 | O167: 330781908000000804 | P167: 兰溪 | Q167: 2024 | R167: 2024B6
A168: 167 | B168: 2024 年金华分公司第27次党委会会议纪要（金华铁塔党委会纪要〔2024〕第31期） | C168: 330700121317 | D168: 专用空调 | E168: 空调 | F168: 5101.25 | G168: 153.04 | H168: 4948.21 | I168: 1 | J168: 台 | L168: 3P | N168: 兰溪丁家村 | O168: 330781908000000566 | P168: 兰溪 | Q168: 2024 | R168: 2024B7
A169: 168 | B169: 2024年8月19日总经理专题办公会议纪要 | C169: 330700152870 | D169: 专用空调 | E169: 空调 | F169: 2373.97 | G169: 71.22 | H169: 2302.75 | I169: 1 | J169: 台 | L169: 3P | N169: 兰溪横木 | O169: 330781908000000552 | P169: 兰溪 | Q169: 2024 | R169: 2024B6
A170: 169 | B170: 2024 年金华分公司第27次党委会会议纪要（金华铁塔党委会纪要〔2024〕第31期） | C170: 330700341915 | D170: 普通空调柜式 | E170: 空调 | F170: 6180.47 | G170: 185.41 | H170: 5995.06 | I170: 1 | J170: 台 | L170: 3P | N170: 兰溪横溪2 | O170: 330781908000001044 | P170: 兰溪 | Q170: 2024 | R170: 2024B7
A171: 170 | B171: 2024年8月19日总经理专题办公会议纪要 | C171: 330700123963 | D171: 专用空调 | E171: 空调 | F171: 3294.4 | G171: 98.83 | H171: 3195.57 | I171: 1 | J171: 台 | L171: 3P | N171: 兰溪灵洞 | O171: 330781908000000176 | P171: 兰溪 | Q171: 2024 | R171: 2024B6
A172: 171 | B172: 2024年8月19日总经理专题办公会议纪要 | C172: 330700301594 | D172: 专用空调 | E172: 空调 | F172: 4734.29 | G172: 142.03 | H172: 4592.26 | I172: 1 | J172: 台 | L172: 2P | N172: 兰溪灵洞 | O172: 330781908000000176 | P172: 兰溪 | Q172: 2024 | R172: 2024B6
A173: 172 | B173: 2024年8月19日总经理专题办公会议纪要 | C173: 330700309801 | D173: 空调 | E173: 空调 | F173: 6274.16 | G173: 188.22 | H173: 6085.94 | I173: 1 | J173: 台 | L173: 3P | N173: 兰溪长连村 | O173: 330781500000000063 | P173: 兰溪 | Q173: 2024 | R173: 2024B6
A174: 173 | B174: 2024 年金华分公司第27次党委会会议纪要（金华铁塔党委会纪要〔2024〕第31期） | C174: 330700121268 | D174: 专用空调 | E174: 空调 | F174: 1225.45 | G174: 36.76 | H174: 1188.69 | I174: 1 | J174: 台 | L174: 3P | N174: 兰溪墩头-2 | O174: 330781908000000848 | P174: 兰溪 | Q174: 2024 | R174: 2024B7
A175: 174 | B175: 2024年8月19日总经理专题办公会议纪要 | C175: 330700301684 | D175: 专用空调 | E175: 空调 | F175: 6510.99 | G175: 195.33 | H175: 6315.66 | I175: 1 | J175: 台 | L175: 3P | N175: 兰溪兰江胡店 | O175: 330781700000112026 | P175: 兰溪 | Q175: 2024 | R175: 2024B6
A176: 175 | B176: 2024 年金华分公司第27次党委会会议纪要（金华铁塔党委会纪要〔2024〕第31期） | C176: 330700341676 | D176: 普通空调柜式 | E176: 空调 | F176: 6361.3 | G176: 190.84 | H176: 6170.46 | I176: 1 | J176: 台 | L176: 3P | N176: 兰溪行知学院教学楼 | O176: 330781500000000119 | P176: 兰溪 | Q176: 2024 | R176: 2024B7
A177: 176 | B177: 2024 年金华分公司第27次党委会会议纪要（金华铁塔党委会纪要〔2024〕第31期） | C177: 330700310988 | D177: 基站舒适空调3匹（柜式）（三相）-整机（单冷） | E177: 空调 | F177: 8115.71 | G177: 243.47 | H177: 7872.24 | I177: 1 | J177: 台 | L177: 3P | N177: 兰溪中吴 | O177: 33078101000195 | P177: 兰溪 | Q177: 2024 | R177: 2024B7
A178: 177 | B178: 2024年8月19日总经理专题办公会议纪要 | C178: 330700112306 | D178: 专用空调 | E178: 空调 | F178: 4395.91 | G178: 131.88 | H178: 4264.03 | I178: 1 | J178: 台 | L178: 3P | N178: 兰溪女埠下潘砖瓦厂 | O178: 330781908000000827 | P178: 兰溪 | Q178: 2024 | R178: 2024B6
A179: 178 | B179: 2024 年金华分公司第23次党委会会议纪要（金华铁塔党委会纪要〔2024〕第25期） | C179: 330700151275 | D179: 专用空调 | E179: 空调 | F179: 2064.73 | G179: 61.94 | H179: 2002.79 | I179: 1 | J179: 台 | L179: 3P | N179: 兰溪轻工业园三 | O179: 330781908000000363 | P179: 兰溪 | Q179: 2024 | R179: 2024B4
A180: 179 | B180: / | C180: 330700330909ZLMK01 | D180: 模块 | E180: 模块 | F180: / | G180: / | H180: / | I180: 1 | J180: 个 | L180: 普效30A | N180: 磐安新渥山干 | O180: 330727908000000141 | P180: 磐安 | Q180: 2024 | R180: /
A181: 180 | B181: / | C181: 330700336206ZLMK02 | D181: 模块 | E181: 模块 | F181: / | G181: / | H181: / | I181: 1 | J181: 个 | L181: 普效30A | N181: 磐安新渥山干 | O181: 330727908000000141 | P181: 磐安 | Q181: 2024 | R181: /
A182: 181 | B182: / | C182: 330700159658ZLMK01 | D182: 模块 | E182: 模块 | F182: / | G182: / | H182: / | I182: 2 | J182: 个 | L182: 整流模块NPR/50A | N182: 东阳木棉田 | O182: 330783908000000977 | P182: 东阳 | Q182: 2024 | R182: /
A183: 182 | B183: / | C183: 330700169577ZLMK01 | D183: 模块 | E183: 模块 | F183: / | G183: / | H183: / | I183: 1 | J183: 个 | L183: 30A模块(NPR48-3G) | N183: 永康泽塘工业区 | O183: 330784908000000297 | P183: 永康 | Q183: 2024 | R183: /
A184: 183 | B184: / | C184: 330700169577ZLMK02 | D184: 模块 | E184: 模块 | F184: / | G184: / | H184: / | I184: 1 | J184: 个 | L184: 30A模块(NPR48-3G) | N184: 永康泽塘工业区 | O184: 330784908000000297 | P184: 永康 | Q184: 2024 | R184: /
A185: 184 | B185: / | C185: 330700169577ZLMK03 | D185: 模块 | E185: 模块 | F185: / | G185: / | H185: / | I185: 1 | J185: 个 | L185: 30A模块(NPR48-3G) | N185: 永康泽塘工业区 | O185: 330784908000000297 | P185: 永康 | Q185: 2024 | R185: /
A186: 185 | B186: / | C186: 330700169577ZLMK04 | D186: 模块 | E186: 模块 | F186: / | G186: / | H186: / | I186: 1 | J186: 个 | L186: 30A模块(NPR48-3G) | N186: 永康泽塘工业区 | O186: 330784908000000297 | P186: 永康 | Q186: 2024 | R186: /
A187: 186 | B187: / | C187: 330700146154ZLMK02 | D187: 模块 | E187: 模块 | F187: / | G187: / | H187: / | I187: 1 | J187: 个 | L187: 30A模块(NPR48-3G) | N187: 永康方岩十一号路 | O187: 330784500000000064 | P187: 永康 | Q187: 2024 | R187: /
A188: 187 | B188: / | C188: 330700146154ZLMK01 | D188: 模块 | E188: 模块 | F188: / | G188: / | H188: / | I188: 1 | J188: 个 | L188: 50A模块(NPR48-ES) | N188: 永康方岩十一号路 | O188: 330784500000000064 | P188: 永康 | Q188: 2024 | R188: /
A189: 188 | B189: / | C189: 330700304213ZLMK01 | D189: 模块 | E189: 模块 | F189: / | G189: / | H189: / | I189: 1 | J189: 个 | L189: 50A模块(NPR48-ES) | N189: 永康方岩十一号路 | O189: 330784500000000064 | P189: 永康 | Q189: 2024 | R189: /
A190: 189 | B190: / | C190: 330700304213ZLMK02 | D190: 模块 | E190: 模块 | F190: / | G190: / | H190: / | I190: 1 | J190: 个 | L190: 50A模块(NPR48-ES) | N190: 永康方岩十一号路 | O190: 330784500000000064 | P190: 永康 | Q190: 2024 | R190: /
A191: 190 | B191: / | C191: 无 | D191: 外市电引入 | E191: 电线电缆 | F191: / | G191: / | H191: / | I191: 2 | J191: 根 | L191: 1x16方铜线2米/根 | N191: 磐安新渥山干 | O191: 330727908000000141 | P191: 磐安 | Q191: 2024 | R191: /
A192: 191 | B192: / | C192: 无 | D192: 外市电引入 | E192: 电线电缆 | F192: / | G192: / | H192: / | I192: 1 | J192: 根 | L192: 2x6方铜线2米/根 | N192: 磐安新渥山干 | O192: 330727908000000141 | P192: 磐安 | Q192: 2024 | R192: /
A193: 192 | B193: / | C193: 无 | D193: 外市电引入 | E193: 电线电缆 | F193: / | G193: / | H193: / | I193: 1 | J193: 根 | L193: 35方铜线3米/根 | N193: 东阳木棉田 | O193: 330783908000000977 | P193: 东阳 | Q193: 2024 | R193: /
A194: 193 | B194: / | C194: 无 | D194: 外市电引入 | E194: 电线电缆 | F194: / | G194: / | H194: / | I194: 1 | J194: 根 | L194: 70方铜线3米/根 | N194: 东阳木棉田 | O194: 330783908000000977 | P194: 东阳 | Q194: 2024 | R194: /
A195: 194 | B195: / | C195: 无 | D195: 外市电引入 | E195: 电线电缆 | F195: / | G195: / | H195: / | I195: 1 | J195: 根 | L195: 95方铜线5米/根 | N195: 东阳木棉田 | O195: 330783908000000977 | P195: 东阳 | Q195: 2024 | R195: /
A196: 195 | B196: / | C196: 无 | D196: 基站机房扩容资产 | E196: 基站构筑物 | F196: / | G196: / | H196: / | I196: 1 | J196: 个 | L196: 走线架 | N196: 东阳木棉田 | O196: 330783908000000977 | P196: 东阳 | Q196: 2024 | R196: /
A197: 196 | B197: / | C197: 无 | D197: 汇流条 | E197: 汇流条 | F197: / | G197: / | H197: / | I197: 1 | J197: 段 | L197: 汇流条 | N197: 东阳木棉田 | O197: 330783908000000977 | P197: 东阳 | Q197: 2024 | R197: /
A198: 197 | B198: / | C198: 无 | D198: 铜牌 | E198: 铜牌 | F198: / | G198: / | H198: / | I198: 1 | J198: 段 | L198: 接地铜牌 | N198: 东阳木棉田 | O198: 330783908000000977 | P198: 东阳 | Q198: 2024 | R198: /
A199: 198 | B199: / | C199: 无 | D199: 外市电引入 | E199: 电线电缆 | F199: / | G199: / | H199: / | I199: 2 | J199: 根 | L199: 1x95方铜线6米/根 | N199: 永康泽塘工业区 | O199: 330784908000000297 | P199: 永康 | Q199: 2024 | R199: /
A200: 199 | B200: / | C200: 无 | D200: 外市电引入 | E200: 电线电缆 | F200: / | G200: / | H200: / | I200: 1 | J200: 根 | L200: 4x25方铜线5米/根 | N200: 永康泽塘工业区 | O200: 330784908000000297 | P200: 永康 | Q200: 2024 | R200: /
... 7 more rows

Sheet 宁波
A1: 序号 | B1: 报废批复文号 | C1: 资产编号 | D1: 批次 | E1: 资产名称 | F1: 资产类别名称 | G1: 资产原值 | H1: 资产净值 | I1: 累计折旧 | J1: 资产数量 | K1: 计量单位 （个/吨/米等） | L1: 单节电池电压（2V/12V） | M1: 规格型号 | N1: 生产厂家 | O1: 站点名称 | P1: 站点编码
A2: 1 | B2: 总经理办公会纪要〔2024〕第 48 期 | C2: 330200135420 | E2: 交流配电箱 | F2: 交流配电箱 | G2: 2409.78 | H2: 72.29 | I2: 2337.49 | J2: 1 | K2: 个 | M2: JXF | N2: 宁波华通电器集团有限公司 | P2: 330281908000000334
A3: 2 | B3: 总经理办公会纪要〔2024〕第 48 期 | C3: 330200153974 | E3: 组合式开关电源 | F3: 组合式开关电源 | G3: 2454.29 | H3: 73.63 | I3: 2380.66 | J3: 1 | K3: 个 | M3: 48V-720A(30A模块)-90 | N3: 施威特克电源（中国）公司 | P3: 330281908000000334
A4: 3 | B4: 总经理办公会纪要〔2024〕第 48 期 | C4: 330200327562 | E4: 普通空调柜式 | F4: 基站空调柜式 | G4: 8434.17 | H4: 253.03 | I4: 8181.14 | J4: 1 | K4: 台 | M4: 3P单冷三相整机 | P4: 330281908000000334
A5: 4 | B5: 总经理办公会纪要〔2024〕第 48 期 | C5: 330200386877 | E5: 电源扩容资产 | F5: 电源扩容资产 | G5: 713.93 | H5: 146.41 | I5: 567.52 | J5: 1 | K5: 个 | M5: 低压智能电表三相四路 | P5: 330281908000000334
A6: 5 | B6: 总经理办公会纪要〔2024〕第 48 期 | C6: 330200151931 | E6: 专用空调 | F6: 基站空调柜式 | G6: 231.75 | H6: 6.95 | I6: 224.8 | J6: 1 | K6: 台 | M6: RF75W-L(S) | N6: 上海三菱电机上菱空调机电器有限公司 | P6: 330212908000001115
A7: 6 | B7: 总经理办公会纪要〔2024〕第 48 期 | C7: 330200151447 | E7: 专用空调 | F7: 基站空调柜式 | G7: 257.5 | H7: 7.73 | I7: 249.77 | J7: 1 | K7: 台 | M7: LF75WGT | N7: 三菱重工海尔空调有限公司 | P7: 330212908000001115
A8: 7 | B8: 总经理办公会纪要〔2024〕第 48 期 | C8: 330200113744 | E8: 整流设备-组合开关电源 | F8: 组合式开关电源 | G8: 898.2 | H8: 26.95 | I8: 871.25 | J8: 1 | K8: 个 | M8: 48V-400A(50A模块)-200A | N8: 艾默生 | P8: 330212908000000916
A9: 8 | B9: 总经理办公会纪要〔2024〕第 48 期 | C9: 330200325447 | E9: (杭州中恒)-开关电源及电源模块-开关电源 | F9: 壁挂式开关电源 | G9: 5310.97 | H9: 159.33 | I9: 5151.64 | J9: 1 | K9: 架 | M9: 壁挂式开关电源32A/3P*1 | N9: 杭州中恒电气股份有限公司 | P9: 330205500000000044
A10: 9 | B10: 总经理办公会纪要〔2024〕第 48 期 | C10: 330200306307 | E10: 开关电源 | F10: 组合式开关电源 | G10: 3792.26 | H10: 113.77 | I10: 3678.49 | J10: 1 | K10: 个 | M10: 开关电源配套设备--壁挂式开关电源系统---48V | N10: 中恒 | P10: 330212908000001960
A11: 10 | B11: 总经理办公会纪要〔2024〕第 48 期 | C11: 330200110829 | E11: 组合开关电源 | F11: 组合式开关电源 | G11: 382.2 | H11: 11.47 | I11: 370.73 | J11: 1 | K11: 个 | M11: 48V-600A(50A模块)-200A | N11: 中兴通讯股份有限公司 | P11: 330225908000000583
A12: 11 | B12: 总经理办公会纪要〔2024〕第 48 期 | C12: 330200356520 | E12: 组合式开关电源 | F12: 组合式开关电源 | G12: 6959.55 | H12: 208.79 | I12: 6750.76 | J12: 1 | K12: 个 | M12: 48V/600A高效系统(50A高效模块)150A | P12: 330205500000000142
A13: 12 | B13: 总经理办公会纪要〔2024〕第 48 期 | C13: 330200142783 | E13: 交流配电设备 | F13: 交流配电设备 | G13: 1318.06 | H13: 39.54 | I13: 1278.52 | J13: 1 | K13: 个 | M13: DPJ-380V-100A-X-S | N13: 宁波隆兴电信设备制造有限公司 | P13: 330226908000000734
A14: 13 | B14: 总经理办公会纪要〔2024〕第 48 期 | C14: 330200151198 | E14: 专用空调 | F14: 基站空调壁挂 | G14: 1867.09 | H14: 56.01 | I14: 1811.08 | J14: 1 | K14: 台 | M14: KF-50G-JH1(R2) | N14: 广州华凌空调设备有限公司 | P14: 330226908000000734
A15: 14 | B15: 总经理办公会纪要〔2024〕第 48 期 | C15: 330200404377 | E15: 电力引入扩容资产 | F15: 电力引入扩容资产 | G15: 729.35 | H15: 434.53 | I15: 294.82 | J15: 1 | K15: 个 | M15: 供电计量设备低压智能电表单相单路远程抄表 | P15: 330226908000000734
A16: 15 | B16: 总经理办公会纪要〔2024〕第 48 期 | C16: 330200351256 | E16: 动力及环境监控单元 | F16: 动力及环境监控单元 | G16: 3567.74 | H16: 107.03 | I16: 3460.71 | J16: 1 | K16: 套 | M16: 主设备室内型成套设备基本配置模型 | P16: 330226908000000734
A17: 16 | B17: 总经理办公会纪要〔2024〕第 48 期 | C17: 330200310914 | E17: (甬发)-配电箱-交流配电箱 | F17: 交流配电箱 | G17: 4735.14 | H17: 142.05 | I17: 4593.09 | J17: 1 | K17: 个 | M17: 壁挂式380V/100A 内置100KA SPD（2路输入） | N17: 宁波甬发通信设备制造有限公司 | P17: 330212500000000273
A18: 17 | B18: 总经理办公会纪要〔2024〕第 48 期 | C18: 330200310911 | E18: (融汇)-基站用综合柜-基站用综合柜 | F18: 配套机架/机柜 | G18: 1789.1 | H18: 53.67 | I18: 1735.43 | J18: 1 | K18: 个 | M18: 带配电单元的基站用综合柜（600*600*2000mm） | N18: 浙江融汇通信设备有限公司 | P18: 330212500000000273
A19: 18 | B19: 总经理办公会纪要〔2024〕第 48 期 | C19: 330200353080 | E19: 动力及环境监控单元 | F19: 动力及环境监控单元 | G19: 2723.07 | H19: 81.69 | I19: 2641.38 | J19: 1 | K19: 套 | M19: 主设备室内型成套设备基本配置模型 | P19: 330212500000000273
A20: 19 | B20: 总经理办公会纪要〔2024〕第 48 期 | C20: 330200338536 | E20: 嵌入式开关电源 | F20: 嵌入式开关电源 | G20: 4285.37 | H20: 128.56 | I20: 4156.81 | J20: 1 | K20: 架 | M20: 48V/300A高效系统(50A高效模块，共用电源系统，三相交流输入)100A | P20: 330225500010001652
A21: 20 | B21: 总经理办公会纪要〔2024〕第 48 期 | C21: 330200129447 | E21: 整流设备-组合开关电源 | F21: 组合式开关电源 | G21: 1146.6 | H21: 34.4 | I21: 1112.2 | J21: 1 | K21: 个 | M21: 48V-600A(50A模块)-200A | N21: 中兴 | P21: 330225908000000527
A22: 21 | B22: 总经理办公会纪要〔2024〕第 48 期 | C22: 330200102215 | E22: 普通空调 | F22: 基站空调壁挂 | G22: 51.5 | H22: 1.55 | I22: 49.95 | J22: 1 | K22: 台 | M22: KFR-50G-BP | N22: 上海大金 | P22: 330211908000000531
A23: 22 | B23: 总经理办公会纪要〔2024〕第 48 期 | C23: 330200151006 | E23: 通用空调-通用空调 | F23: 基站空调柜式 | G23: 864 | H23: 25.92 | I23: 838.08 | J23: 1 | K23: 台 | M23: FVY71LQVLB | N23: 上海大金 | P23: 330206908000000774
A24: 23 | B24: 总经理办公会纪要〔2024〕第 48 期 | C24: 330200121150 | E24: 空调节能设备 | F24: 基站专用空调 | G24: 2307.87 | H24: 69.24 | I24: 2238.63 | J24: 1 | K24: 台 | M24: 新风AWBS-XF-1800-02 | N24: 奥维通信股份有限公司 | P24: 330225908000000527
A25: 24 | B25: 总经理办公会纪要〔2024〕第 48 期 | C25: 330200309831 | E25: 专用空调 | F25: 基站专用空调 | G25: 4703.15 | H25: 141.09 | I25: 4562.06 | J25: 1 | K25: 台 | M25: 3P柜机 | N25: 华凌 | P25: 330226010000000790
A26: 25 | B26: 总经理办公会纪要〔2024〕第 48 期 | C26: 330200357239 | E26: 普通空调柜式 | F26: 基站空调柜式 | G26: 5982.88 | H26: 179.49 | I26: 5803.39 | J26: 1 | K26: 台 | M26: 3P单冷三相整机 | P26: 330211500000000170
A27: 26 | B27: 总经理办公会纪要〔2024〕第 48 期 | C27: 330200352992 | E27: 普通空调柜式 | F27: 基站空调柜式 | G27: 6117.82 | H27: 183.53 | I27: 5934.29 | J27: 1 | K27: 台 | M27: 3P单冷三相整机 | P27: 330211908000000468
A28: 27 | B28: 总经理办公会纪要〔2024〕第 48 期 | C28: 330200352866 | E28: 普通空调柜式 | F28: 基站空调柜式 | G28: 6117.82 | H28: 183.53 | I28: 5934.29 | J28: 1 | K28: 台 | M28: 3P单冷三相整机 | P28: 330211908000000531
A29: 28 | B29: 总经理办公会纪要〔2024〕第 48 期 | C29: 330200147226 | E29: 专用空调 | F29: 基站空调柜式 | G29: 5904.66 | H29: 177.14 | I29: 5727.52 | J29: 1 | K29: 台 | M29: KF-75L-3R | N29: 广东海信科龙空调有限公司 | P29: 330226908000001023
A30: 29 | B30: 总经理办公会纪要〔2024〕第 48 期 | C30: 330200151505 | E30: 普通空调 | F30: 基站空调柜式 | G30: 5528.64 | H30: 165.86 | I30: 5362.78 | J30: 1 | K30: 台 | M30: PS-3JAKT-S | N30: 大金 | P30: 330226908000000258
A31: 30 | B31: 总经理办公会纪要〔2024〕第 48 期 | C31: 330200152285 | E31: 专用空调 | F31: 基站空调柜式 | G31: 103 | H31: 3.09 | I31: 99.91 | J31: 1 | K31: 台 | M31: RF73WDT | N31: 三菱重工海尔空调有限公司 | P31: 330225010000000730
A32: 31 | B32: 总经理办公会纪要〔2024〕第 48 期 | C32: 330200304479 | E32: 机房空调机 | F32: 基站空调柜式 | G32: 7335.2 | H32: 220.06 | I32: 7115.14 | J32: 1 | K32: 台 | M32: LF75WGT | N32: 三菱海尔 | P32: 330206908000001102
A33: 32 | B33: 总经理办公会纪要〔2024〕第 48 期 | C33: 330200332197 | E33: (杭州中恒)-开关电源及电源模块-开关电源 | F33: 壁挂式开关电源 | G33: 6345.85 | H33: 190.38 | I33: 6155.47 | J33: 1 | K33: 架 | M33: 壁挂式开关电源32A/3P*1 | N33: 杭州中恒电气股份有限公司 | P33: 330211500000000011
A34: 33 | B34: 总经理办公会纪要〔2024〕第 48 期 | C34: 330200420767 | E34: 电源扩容资产 | F34: 电源扩容资产 | G34: 5537.28 | H34: 2406.37 | I34: 3130.91 | J34: 1 | K34: 个 | M34: 直流远供远端供电单元1500W | P34: 330211908001900338
A35: 34 | B35: 总经理办公会纪要〔2024〕第 48 期 | C35: 330200418599 | E35: 电源扩容资产 | F35: 电源扩容资产 | G35: 3138.52 | H35: 1320.28 | I35: 1818.24 | J35: 1 | K35: 个 | M35: 直流远供远端供电单元1500W | P35: 330211500000001585
A36: 35 | B36: 总经理办公会纪要〔2024〕第 48 期 | C36: 330200402637 | E36: 电源扩容资产 | F36: 电源扩容资产 | G36: 10915.75 | H36: 3271.57 | I36: 7644.18 | J36: 1 | K36: 个 | M36: 直流远供远端供电单元1500W | P36: 330211908000000543
A37: 36 | B37: 总经理办公会纪要〔2024〕第 48 期 | C37: 330200104785 | E37: 组合开关电源 | F37: 组合式开关电源 | G37: 287.4 | H37: 8.62 | I37: 278.78 | J37: 1 | K37: 个 | M37: IMPS81013 | N37: 杭州中恒电源有限公司 | P37: 330282908000000197
A38: 37 | B38: 总经理办公会纪要〔2024〕第 48 期 | C38: 330200128117 | E38: 普通空调 | F38: 基站空调柜式 | G38: 312 | H38: 9.36 | I38: 302.64 | J38: 1 | K38: 台 | M38: PS-3JAKT-S | N38: 上海三菱电机 | P38: 330282908000000197
A39: 38 | B39: 总经理办公会纪要〔2024〕第 48 期 | C39: 330200372334 | E39: 动力及环境监控单元 | F39: 动力及环境监控单元 | G39: 3163.17 | H39: 222.74 | I39: 2940.43 | J39: 1 | K39: 套 | M39: 主设备室外型成套设备双柜配置模型（不含烟感及红外） | P39: 330282908000000197
A40: 39 | B40: 总经理办公会纪要〔2024〕第 48 期 | C40: 330200146753 | E40: 组合式开关电源 | F40: 组合式开关电源 | G40: 666 | H40: 19.98 | I40: 646.02 | J40: 1 | K40: 个 | M40: 48V-600A(30A模块)-120 | N40: 施威特克电源（中国）公司 | P40: 330283908000000382
A41: 40 | B41: 总经理办公会纪要〔2024〕第 48 期 | C41: 330200332087 | E41: 开关电源（整机或机架） | F41: 组合式开关电源 | G41: 7823.05 | H41: 234.69 | I41: 7588.36 | J41: 1 | K41: 个 | M41: 落地式开关电源-48V/600A方案A | N41: 中达电通股份有限公司 | P41: 33021201000183
A42: 41 | B42: 总经理办公会纪要〔2024〕第 48 期 | C42: 330200347420 | E42: 交流配电箱 | F42: 交流配电箱 | G42: 2555.91 | H42: 76.68 | I42: 2479.23 | J42: 1 | K42: 个 | M42: 交流配电箱三相（含市电油机手动转换开关）380V/100A室内型 | P42: 330211500000000133
A43: 42 | B43: 总经理办公会纪要〔2024〕第 48 期 | C43: 330200347415 | E43: 嵌入式开关电源 | F43: 嵌入式开关电源 | G43: 5159.15 | H43: 154.77 | I43: 5004.38 | J43: 1 | K43: 架 | M43: 48V/300A高效系统(50A高效模块，共用电源系统，三相交流输入)150A | P43: 330211500000000133
A44: 43 | B44: 总经理办公会纪要〔2024〕第 48 期 | C44: 330200347424 | E44: 普通空调壁挂 | F44: 基站空调壁挂 | G44: 3712.55 | H44: 111.38 | I44: 3601.17 | J44: 1 | K44: 台 | M44: 2P单冷单相整机 | P44: 330211500000000133
A45: 44 | B45: 总经理办公会纪要〔2024〕第 48 期 | C45: 330200347417 | E45: 动力及环境监控单元 | F45: 动力及环境监控单元 | G45: 3566.6 | H45: 107 | I45: 3459.6 | J45: 1 | K45: 套 | M45: 主设备室内型成套设备基本配置模型 | P45: 330211500000000133
A46: 45 | B46: 总经理办公会纪要〔2024〕第 48 期 | C46: 330200364398 | E46: 机房配套扩容资产 | F46: 机房配套扩容资产 | G46: 390.03 | H46: 11.7 | I46: 378.33 | J46: 1 | K46: 个 | M46: 普通空调基站智能空调控制器 | P46: 330211500000000133
A47: 46 | B47: 总经理办公会纪要〔2024〕第 48 期 | C47: 330200139430 | E47: 组合开关电源 | F47: 组合式开关电源 | G47: 287.4 | H47: 8.62 | I47: 278.78 | J47: 1 | K47: 个 | M47: IMPS81013 | N47: 杭州中恒电源有限公司 | P47: 330282908000000186
A48: 47 | B48: 总经理办公会纪要〔2024〕第 48 期 | C48: 330200136743 | E48: 普通空调 | F48: 基站空调柜式 | G48: 288 | H48: 8.64 | I48: 279.36 | J48: 1 | K48: 台 | M48: FVY71DQV2CB | N48: 大金空调有限公司 | P48: 330282908000000186
A49: 48 | B49: 总经理办公会纪要〔2024〕第 48 期 | C49: 330200136744 | E49: 分体空调 | F49: 基站空调柜式 | G49: 312 | H49: 9.36 | I49: 302.64 | J49: 1 | K49: 台 | M49: PS-3JAKT-S | N49: 上海三菱电机 | P49: 330282908000000186
A50: 49 | B50: 总经理办公会纪要〔2024〕第 48 期 | C50: 330200308369 | E50: 基站监控 | F50: 动力及环境监控单元 | G50: 17779.25 | H50: 533.38 | I50: 17245.87 | J50: 1 | K50: 套 | M50: IPLU0006EM | N50: 艾默生 | P50: 330282908000000186
A51: 50 | B51: 总经理办公会纪要〔2024〕第 48 期 | C51: 330200373057 | E51: 机房配套扩容资产 | F51: 机房配套扩容资产 | G51: 322.22 | H51: 22.7 | I51: 299.52 | J51: 1 | K51: 套 | M51: 灯控监控单元灯控监控单元 | P51: 330282908000000186
A52: 51 | B52: 总经理办公会纪要〔2024〕第 48 期 | C52: 330200410754 | E52: 电源扩容资产 | F52: 电源扩容资产 | G52: 5404.68 | H52: 2055.92 | I52: 3348.76 | J52: 1 | K52: 个 | M52: 直流远供远端供电单元1500W | P52: 330212908000001975
A53: 52 | B53: 总经理办公会纪要〔2024〕第 48 期 | C53: 330200135360 | E53: 直流配电设备 | F53: 交流配电箱 | G53: 3823.76 | H53: 114.71 | I53: 3709.05 | J53: 1 | K53: 个 | M53: JXF | N53: 宁波华通电器集团有限公司 | P53: 330282908000001149
A54: 53 | B54: 总经理办公会纪要〔2024〕第 48 期 | C54: 330200136828 | E54: 专用空调 | F54: 基站空调柜式 | G54: 103 | H54: 3.09 | I54: 99.91 | J54: 1 | K54: 台 | M54: LF75WGT | N54: 三菱重工海尔空调有限公司 | P54: 330282908000001149
A55: 54 | B55: 总经理办公会纪要〔2024〕第 48 期 | C55: 330200113675 | E55: 专用空调 | F55: 基站空调壁挂 | G55: 128.75 | H55: 3.86 | I55: 124.89 | J55: 1 | K55: 台 | M55: RFD50GW | N55: 三菱重工海尔空调有限公司 | P55: 330282908000001149
A56: 55 | B56: 总经理办公会纪要〔2024〕第 48 期 | C56: 330200388624 | E56: 机房配套扩容资产 | F56: 机房配套扩容资产 | G56: 738.94 | H56: 161.54 | I56: 577.4 | J56: 1 | K56: 个 | M56: 普通空调基站智能空调控制器 | P56: 330282908000001149
A57: 56 | B57: 总经理办公会纪要〔2024〕第 48 期 | C57: 330200103813 | E57: 组合式开关电源 | F57: 组合式开关电源 | G57: 430.21 | H57: 12.91 | I57: 417.3 | J57: 1 | K57: 个 | M57: 48V-600A（50A模块）-100 | N57: 施威特克电源（中国）公司 | P57: 330282908000001084
A58: 57 | B58: 总经理办公会纪要〔2024〕第 48 期 | C58: 330200332870 | E58: 开关电源（整机或机架） | F58: 组合式开关电源 | G58: 7082.85 | H58: 212.49 | I58: 6870.36 | J58: 1 | K58: 个 | M58: 落地式开关电源-48V/600A方案A | N58: 中达电通股份有限公司 | P58: 33028200000011
A59: 58 | B59: 总经理办公会纪要〔2024〕第 48 期 | C59: 330200333294 | E59: 电源机柜一体化电源柜120A-120A（总容量-实际容量） | F59: 一体化电源柜 | G59: 15437.8 | H59: 463.13 | I59: 14974.67 | J59: 1 | K59: 架 | M59: 电源机柜一体化电源柜120A-120A（总容量-实际容量） | N59: 杭州中恒电气股份有限公司 | P59: 330282500000000203
A60: 59 | B60: 总经理办公会纪要〔2024〕第 48 期 | C60: 330200405433 | E60: 电源扩容资产 | F60: 电源扩容资产 | G60: 9251.43 | H60: 3018.41 | I60: 6233.02 | J60: 1 | K60: 个 | M60: 直流远供远端供电单元1500W | P60: 330282500000000203
A61: 60 | B61: 总经理办公会纪要〔2024〕第 48 期 | C61: 330200140808 | E61: 交流配电箱 | F61: 交流配电箱 | G61: 3376.36 | H61: 101.29 | I61: 3275.07 | J61: 1 | K61: 个 | M61: NXK1 | N61: 正泰电气股份有限公司 | P61: 330282908000000533
A62: 61 | B62: 总经理办公会纪要〔2024〕第 48 期 | C62: 330200140809 | E62: 组合开关电源 | F62: 组合式开关电源 | G62: 299.4 | H62: 8.98 | I62: 290.42 | J62: 1 | K62: 个 | M62: 48V-600A(50A模块)-200A | N62: 艾默生网络能源有限公司 | P62: 330282908000000533
A63: 62 | B63: 总经理办公会纪要〔2024〕第 48 期 | C63: 330200121339 | E63: 油机发电外围设备-油机转换屏 | F63: 油机转换箱 | G63: 606.67 | H63: 18.2 | I63: 588.47 | J63: 1 | K63: 个 | M63: ZBX5-F | N63: 变换器油机切换箱正泰 | P63: 330282908000000533
A64: 63 | B64: 总经理办公会纪要〔2024〕第 48 期 | C64: 330200348851 | E64: 动力及环境监控单元 | F64: 动力及环境监控单元 | G64: 2804.94 | H64: 84.15 | I64: 2720.79 | J64: 1 | K64: 套 | M64: 主设备室内型成套设备基本配置模型 | P64: 330282908000000533
A65: 64 | B65: 总经理办公会纪要〔2024〕第 48 期 | C65: 330200363891 | E65: 机房配套扩容资产 | F65: 机房配套扩容资产 | G65: 390.03 | H65: 11.7 | I65: 378.33 | J65: 1 | K65: 个 | M65: 普通空调基站智能空调控制器 | P65: 330282908000000533
A66: 65 | B66: 总经理办公会纪要〔2024〕第 48 期 | C66: 330200419692 | E66: 机房配套扩容资产 | F66: 机房配套扩容资产 | G66: 321.83 | H66: 135.36 | I66: 186.47 | J66: 1 | K66: 个 | M66: 普通空调基站智能空调控制器 | P66: 330282908000000533
A67: 66 | B67: 总经理办公会纪要〔2024〕第 48 期 | C67: 330200121338 | E67: 其它电源设备-过压保护器 | F67: 低压避雷设施 | G67: 640.33 | H67: 19.21 | I67: 621.12 | J67: 1 | K67: 面 | M67: YD80K385-3+1J | N67: 深圳盾牌 | P67: 330282908000000533
A68: 67 | B68: 总经理办公会纪要〔2024〕第 48 期 | C68: 330200100621 | E68: 专用空调 | F68: 基站空调柜式 | G68: 257.5 | H68: 7.73 | I68: 249.77 | J68: 1 | K68: 台 | M68: KF-72LW-HV10S(5) | N68: 广州华凌空调设备有限公司 | P68: 330281908000000552
A69: 68 | B69: 总经理办公会纪要〔2024〕第 48 期 | C69: 330200391739 | E69: 机房配套扩容资产 | F69: 机房配套扩容资产 | G69: 412.17 | H69: 95.69 | I69: 316.48 | J69: 1 | K69: 个 | M69: 普通空调基站智能空调控制器 | P69: 330281908000000552
A70: 69 | B70: 总经理办公会纪要〔2024〕第 48 期 | C70: 330200327226 | E70: 普通空调壁挂 | F70: 基站空调壁挂 | G70: 4824.23 | H70: 144.73 | I70: 4679.5 | J70: 1 | K70: 台 | M70: 2P单冷单相整机 | P70: 330281500000000219
A71: 70 | B71: 总经理办公会纪要〔2024〕第 48 期 | C71: 330200307563 | E71: 专用空调 | F71: 基站专用空调 | G71: 4117.08 | H71: 123.51 | I71: 3993.57 | J71: 1 | K71: 台 | M71: 3P柜机 | N71: 华凌 | P71: 33028101000577
A72: 71 | B72: 总经理办公会纪要〔2024〕第 48 期 | C72: 330200306268 | E72: 专用空调 | F72: 基站专用空调 | G72: 4679.11 | H72: 140.37 | I72: 4538.74 | J72: 1 | K72: 台 | M72: 3P柜机 | N72: 华凌 | P72: 33020401000152
A73: 72 | B73: 总经理办公会纪要〔2024〕第 48 期 | C73: 330200304979 | E73: 空调 | F73: 基站空调柜式 | G73: 354.86 | H73: 10.65 | I73: 344.21 | J73: 1 | K73: 台 | M73: 空调 | N73: 无 | P73: 330212500000000221
A74: 73 | B74: 总经理办公会纪要〔2024〕第 48 期 | C74: 330200303739 | E74: 专用空调 | F74: 基站专用空调 | G74: 4117.08 | H74: 123.51 | I74: 3993.57 | J74: 1 | K74: 台 | M74: 3P柜机 | N74: 华凌 | P74: 33020501000315
A75: 74 | B75: 总经理办公会纪要〔2024〕第 48 期 | C75: 330200145359 | E75: 专用空调 | F75: 基站空调柜式 | G75: 215.12 | H75: 6.45 | I75: 208.67 | J75: 1 | K75: 台 | M75: RF73WDT | N75: 三菱重工海尔空调有限公司 | P75: 330212010000001276
A76: 75 | B76: 总经理办公会纪要〔2024〕第 48 期 | C76: 330200303756 | E76: 专用空调 | F76: 基站专用空调 | G76: 4679.11 | H76: 140.37 | I76: 4538.74 | J76: 1 | K76: 台 | M76: 3P柜机 | N76: 华凌 | P76: 33020501000305
A77: 76 | B77: 总经理办公会纪要〔2024〕第 48 期 | C77: 330200327826 | E77: 普通空调柜式 | F77: 基站空调柜式 | G77: 7585.49 | H77: 227.56 | I77: 7357.93 | J77: 1 | K77: 台 | M77: 3P单冷三相整机 | P77: 330205908000000604
A78: 77 | B78: 总经理办公会纪要〔2024〕第 48 期 | C78: 330200314445 | E78: (北京融和创)-空调及空调零部件-空调 | F78: 基站空调柜式 | G78: 6230.48 | H78: 186.91 | I78: 6043.57 | J78: 1 | K78: 台 | M78: 3P 三相柜式（单冷） | N78: 北京融和创科技有限公司 | P78: 330212500000000344
A79: 78 | B79: 总经理办公会纪要〔2024〕第 48 期 | C79: 330200339234 | E79: 嵌入式开关电源 | F79: 嵌入式开关电源 | G79: 4584.39 | H79: 137.53 | I79: 4446.86 | J79: 1 | K79: 架 | M79: 48V/300A高效系统(50A高效模块，共用电源系统，三相交流输入)100A | P79: 330206500000000202
A80: 79 | B80: 总经理办公会纪要〔2024〕第 48 期 | C80: 330200110855 | E80: 组合式开关电源 | F80: 组合式开关电源 | G80: 3657.66 | H80: 109.73 | I80: 3547.93 | J80: 1 | K80: 个 | M80: 48V-600A(50A模块)-150 | N80: 施威特克电源（中国）公司 | P80: 330206908000000285
A81: 80 | B81: 总经理办公会纪要〔2024〕第 48 期 | C81: 330200144859 | E81: 交流配电设备 | F81: 交流配电设备 | G81: 3630.83 | H81: 108.92 | I81: 3521.91 | J81: 1 | K81: 个 | M81: DPJ-380V-100A-X-S | N81: 宁波隆兴电信设备制造有限公司 | P81: 330282908000000944
A82: 81 | B82: 总经理办公会纪要〔2024〕第 48 期 | C82: 330200153971 | E82: 组合式开关电源 | F82: 组合式开关电源 | G82: 291.9 | H82: 8.76 | I82: 283.14 | J82: 1 | K82: 个 | M82: 48V-100A(30A模块)-90 | N82: 杭州中恒电气股份有限公司 | P82: 330282908000000944
A83: 82 | B83: 总经理办公会纪要〔2024〕第 48 期 | C83: 330200151272 | E83: 专用空调 | F83: 基站空调柜式 | G83: 4096.57 | H83: 122.9 | I83: 3973.67 | J83: 1 | K83: 台 | M83: KF-72LW-JH1SN(R2) | N83: 广州华凌空调设备有限公司 | P83: 330282908000000944
A84: 83 | B84: 总经理办公会纪要〔2024〕第 48 期 | C84: 330200335079 | E84: 开关电源（整机或机架） | F84: 嵌入式开关电源 | G84: 6225.89 | H84: 186.78 | I84: 6039.11 | J84: 1 | K84: 架 | M84: 嵌入式高频开关电源-48V/300A高效系统 | N84: 北京动力源科技股份有限公司 | P84: 330212500000000276
A85: 84 | B85: 总经理办公会纪要〔2024〕第 48 期 | C85: 330200335080 | E85: 开关电源（整机或机架） | F85: 嵌入式开关电源 | G85: 6225.89 | H85: 186.78 | I85: 6039.11 | J85: 1 | K85: 架 | M85: 嵌入式高频开关电源-48V/300A高效系统 | N85: 北京动力源科技股份有限公司 | P85: 330212500000000276
A86: 85 | B86: 总经理办公会纪要〔2024〕第 48 期 | C86: 330200144794 | E86: 组合开关电源 | F86: 组合式开关电源 | G86: 1270.18 | H86: 38.11 | I86: 1232.07 | J86: 1 | K86: 架 | M86: 48V-120A(30A模块)-60A | N86: 易达威锐电源设备科技（东莞） | P86: 330203908000000364
A87: 86 | B87: 总经理办公会纪要〔2024〕第 48 期 | C87: 330200425552 | E87: 电源扩容资产 | F87: 电源扩容资产 | G87: 6214.47 | H87: 2865.49 | I87: 3348.98 | J87: 1 | K87: 个 | M87: 直流远供远端供电单元1500W | P87: 330203500010001806
A88: 87 | B88: 总经理办公会纪要〔2024〕第 40 期 | C88: 330200469168 | E88: 一体化机柜-800*800*1800mm-1500W交流空调-一体化综合柜-标配应急通风组件室外产品型号调整-申请编码 | F88: 一体化机柜 | G88: 5648.58 | H88: 4508.89 | I88: 1139.69 | J88: 1 | K88: 套 | P88: 330212908000001978
A89: 88 | B89: 总经理办公会纪要〔2024〕第 40 期 | C89: 330200469171 | E89: 一体化机柜-800*800*1800mm-1500W交流空调-一体化综合柜-标配应急通风组件室外产品型号调整-申请编码 | F89: 一体化机柜 | G89: 5648.6 | H89: 4508.91 | I89: 1139.69 | J89: 1 | K89: 套 | P89: 330212908000001978
A90: 89 | B90: 总经理办公会纪要〔2023〕第56期 | C90: 330200465035 | E90: 基站机房扩容资产 | F90: 基站机房扩容资产 | G90: 7913.41 | H90: 7738.69 | I90: 174.72 | J90: 1 | K90: 米 | M90: 1KV以下电力电缆铜芯阻燃聚氯乙烯绝缘聚氯乙烯护套软电缆ZA-RVV 1*95mm2黄绿 | P90: 330212500010002569
A91: 90 | B91: 总经理办公会纪要〔2024〕第 44 期 | C91: 330200355118 | E91: 嵌入式开关电源 | F91: 嵌入式开关电源 | G91: 8186.79 | H91: 245.6 | I91: 7941.19 | J91: 1 | K91: 架 | M91: 48V/300A高效系统(50A高效模块，共用电源系统，三相交流输入)150A | P91: 330211500000000110
A92: 91 | B92: 总经理办公会纪要〔2023〕第43期 | C92: 330200410967 | E92: 机房配套扩容资产 | F92: 机房配套扩容资产 | G92: 201.85 | H92: 112.01 | I92: 89.84 | J92: 1 | K92: 个 | M92: 监控传感器智能门禁配套物资简易锁(一体化柜) | P92: 330226010000000821
A93: 92 | B93: 宁波铁塔党委会纪要〔2023〕第 10 期 | C93: 330200412296 | E93: 电源扩容资产 | F93: 电源扩容资产 | G93: 715.9 | H93: 426.57 | I93: 289.33 | J93: 1 | K93: 个 | M93: 低压智能电表三相四路 | P93: 330204010000000236
A94: 93 | B94: 宁波铁塔党委会纪要〔2023〕第 10 期 | C94: 330200390452 | E94: 电源扩容资产 | F94: 电源扩容资产 | G94: 719.24 | H94: 321.95 | I94: 397.29 | J94: 1 | K94: 个 | M94: 低压智能电表三相四路 | P94: 330282908000000735
A95: 94 | B95: 宁波铁塔党委会纪要〔2023〕第 10 期 | C95: 330200395879 | E95: 电源扩容资产 | F95: 电源扩容资产 | G95: 713.93 | H95: 338.75 | I95: 375.18 | J95: 1 | K95: 个 | M95: 低压智能电表三相四路 | P95: 330211500000000030
A96: 95 | B96: 总经理办公会纪要〔2023〕第56期 | C96: 330200421826 | E96: 电源扩容资产 | F96: 电源扩容资产 | G96: 715.15 | H96: 425.95 | I96: 289.2 | J96: 1 | K96: 个 | M96: 低压智能电表三相四路 | P96: 330225908000000340
A97: 96 | B97: 宁波铁塔党委会纪要〔2023〕第 10 期 | C97: 330200453148 | E97: 电源扩容资产 | F97: 电源扩容资产 | G97: 730.62 | H97: 684.75 | I97: 45.87 | J97: 1 | K97: 个 | M97: 低压智能电表三相四路 | P97: 330211500010001664
A98: 97 | B98: 宁波铁塔党委会纪要〔2023〕第 10 期 | C98: 330200393492 | E98: 电源扩容资产 | F98: 电源扩容资产 | G98: 703.38 | H98: 324.3 | I98: 379.08 | J98: 1 | K98: 个 | M98: 低压智能电表三相四路 | P98: 330206908000000125
A99: 98 | B99: 宁波铁塔总经理办公会纪要〔2023〕第 66 期 | C99: 330200425255 | E99: 电源扩容资产 | F99: 电源扩容资产 | G99: 3813.36 | H99: 2272.15 | I99: 1541.21 | J99: 1 | K99: 个 | M99: 组合式高频开关电源配件整流模块50A高效 | P99: 330212010000001315
A100: 99 | B100: 总经理办公会纪要〔2023〕第46期 | C100: 330200392299 | E100: 电源扩容资产 | F100: 电源扩容资产 | G100: 4078.1 | H100: 1767.69 | I100: 2310.41 | J100: 1 | K100: 个 | M100: 整流模块高效模块75A嵌入式智能电源-75A高效整流模块 | P100: 33022500000465
A101: 100 | B101: 总经理办公会纪要〔2023〕第 42 期 | C101: 330200397484 | E101: 电源扩容资产 | F101: 电源扩容资产 | G101: 6673.96 | H101: 3167.41 | I101: 3506.55 | J101: 1 | K101: 个 | M101: 整流模块高效模块75A嵌入式智能电源-75A高效整流模块 | P101: 330211908000000677
A102: 101 | B102: 总经理办公会纪要〔2023〕第56期 | C102: 330200389250 | E102: 机房配套扩容资产 | F102: 机房配套扩容资产 | G102: 360.48 | H102: 149.6 | I102: 210.88 | J102: 1 | K102: 个 | M102: 普通空调基站智能空调控制器控制器红外模块 | P102: 330225908000000340
A103: 102 | B103: 总经理办公会纪要〔2023〕第43期 | C103: 330200469996 | E103: 外市电引入 | F103: 外市电引入 | G103: 13306.96 | H103: 12722.19 | I103: 584.77 | J103: 1 | K103: 米 | P103: 330212500010002569
A104: 103 | B104: 宁波铁塔党委会纪要〔2023〕第 10 期 | C104: 330200380017 | E104: 电源扩容资产 | F104: 电源扩容资产 | G104: 687.59 | H104: 233.57 | I104: 454.02 | J104: 1 | K104: 个 | M104: 通用配件电表箱250mm*400mm*140mm | P104: 330281908000000922
A105: 104 | B105: 宁波铁塔党委会纪要〔2023〕第 10 期 | C105: 330200421800 | E105: 电源扩容资产 | F105: 电源扩容资产 | G105: 715.15 | H105: 454.84 | I105: 260.31 | J105: 1 | K105: 个 | M105: 通用配件电表箱250mm*400mm*140mm | P105: 330206908000000372
A106: 105 | B106: 宁波铁塔党委会纪要〔2023〕第 10 期 | C106: 330200434753 | E106: 电源扩容资产 | F106: 电源扩容资产 | G106: 713.93 | H106: 560.01 | I106: 153.92 | J106: 1 | K106: 个 | M106: 通用配件电表箱250mm*400mm*140mm | P106: 330206908000000537
A107: 106 | B107: 宁波铁塔总经理办公会纪要〔2023〕第 66 期 | C107: 330200367743 | E107: 机房配套扩容资产 | F107: 机房配套扩容资产 | G107: 1690.83 | H107: 278.47 | I107: 1412.36 | J107: 1 | K107: 个 | M107: RRU安装架室内RRU安装架 | P107: 330211908000000004
A108: 107 | B108: 总经理办公会纪要〔2023〕第60期 | C108: 330200377469 | E108: 电力引入扩容资产 | F108: 电力引入扩容资产 | G108: 385.5 | H108: 217.16 | I108: 168.34 | J108: 1 | K108: 个 | M108: 霍尔传感器电流型输入200A/输出4-20mA | P108: 33021201000876
A109: 108 | B109: 浙江铁塔财务〔2023〕40 号 | C109: 330200377517 | E109: 电力引入扩容资产 | F109: 电力引入扩容资产 | G109: 517.82 | H109: 283.37 | I109: 234.45 | J109: 1 | K109: 个 | M109: 霍尔传感器电流型输入100A/输出4-20mA | P109: 330212908000000574
A110: 109 | B110: 宁波铁塔党委会纪要〔2023〕第 10 期 | C110: 330200375664 | E110: 电力引入扩容资产 | F110: 电力引入扩容资产 | G110: 392.55 | H110: 234.03 | I110: 158.52 | J110: 1 | K110: 个 | M110: 霍尔传感器电流型输入100A/输出4-20mA | P110: 33021201000900
A111: 110 | B111: 宁波铁塔总经理办公会纪要〔2023〕第 66 期 | C111: 330200410129 | E111: 电力引入扩容资产 | F111: 电力引入扩容资产 | G111: 534.97 | H111: 375.02 | I111: 159.95 | J111: 1 | K111: 个 | M111: 霍尔传感器电流型输入200A/输出4-20mA | P111: 330212010000001315
A112: 111 | B112: 总经理办公会纪要〔2024〕第 3 期 | C112: 330200377454 | E112: 电力引入扩容资产 | F112: 电力引入扩容资产 | G112: 378.45 | H112: 200.88 | I112: 177.57 | J112: 1 | K112: 个 | M112: 霍尔传感器电流型输入100A/输出4-20mA | P112: 33021200000484
A113: 112 | B113: 宁波铁塔党委会纪要〔2023〕第 10 期 | C113: 330200390186 | E113: 电力引入扩容资产 | F113: 电力引入扩容资产 | G113: 397.97 | H113: 265.95 | I113: 132.02 | J113: 1 | K113: 个 | M113: 霍尔传感器电流型输入100A/输出4-20mA | P113: 330282908000000735
A114: 113 | B114: 宁波铁塔总经理办公会纪要〔2023〕第 66 期 | C114: 330200385380 | E114: 电力引入扩容资产 | F114: 电力引入扩容资产 | G114: 390.92 | H114: 232.92 | I114: 158 | J114: 1 | K114: 个 | M114: 霍尔传感器电流型输入50A/输出4-20mA | P114: 330211908000000004
A115: 114 | B115: 宁波铁塔党委会纪要〔2023〕第 10 期 | C115: 330200376944 | E115: 电力引入扩容资产 | F115: 电力引入扩容资产 | G115: 383.68 | H115: 228.68 | I115: 155 | J115: 1 | K115: 个 | M115: 霍尔传感器电流型输入100A/输出4-20mA | P115: 330206908000000537
A116: 115 | B116: 宁波铁塔党委会纪要〔2023〕第 10 期 | C116: 330200413151 | E116: 电源扩容资产 | F116: 电源扩容资产 | G116: 3427.45 | H116: 2042.16 | I116: 1385.29 | J116: 1 | K116: 个 | M116: 直流远供远端供电单元1500W | P116: 33021201000900
A117: 116 | B117: 总经理办公会纪要〔2024〕第 3 期 | C117: 330200423182 | E117: 电源扩容资产 | F117: 电源扩容资产 | G117: 852.12 | H117: 461.8 | I117: 390.32 | J117: 1 | K117: 个 | M117: 通用配件断路器带漏电保护器开关380V/63A(带自动吸合) | P117: 330212908000000719
A118: 117 | B118: 浙江铁塔财务〔2023〕40 号 | C118: 330200423169 | E118: 电源扩容资产 | F118: 电源扩容资产 | G118: 852.12 | H118: 484.76 | I118: 367.36 | J118: 1 | K118: 个 | M118: 通用配件断路器带漏电保护器开关380V/63A(带自动吸合) | P118: 330212908000000466
A119: 118 | B119: 宁波铁塔总经理办公会纪要〔2023〕第 66 期 | C119: 330200431978 | E119: 电源扩容资产 | F119: 电源扩容资产 | G119: 840 | H119: 556.9 | I119: 283.1 | J119: 1 | K119: 个 | M119: 通用配件断路器带漏电保护器开关380V/63A(带自动吸合) | P119: 330211908000000004
A120: 119 | B120: 宁波铁塔党委会纪要〔2023〕第 10 期 | C120: 330200423024 | E120: 电源扩容资产 | F120: 电源扩容资产 | G120: 852.12 | H120: 553.64 | I120: 298.48 | J120: 1 | K120: 个 | M120: 通用配件断路器带漏电保护器开关380V/63A(带自动吸合) | P120: 330211500000000030
A121: 120 | B121: 宁波铁塔党委会纪要〔2023〕第 10 期 | C121: 330200431356 | E121: 电源扩容资产 | F121: 电源扩容资产 | G121: 840 | H121: 624.92 | I121: 215.08 | J121: 1 | K121: 个 | M121: 通用配件断路器带漏电保护器开关380V/63A(带自动吸合) | P121: 330211908000000368
A122: 121 | B122: 总经理办公会纪要〔2024〕第 17 期 | C122: 330200403753 | E122: 交流计量箱 | F122: 交流计量箱 | G122: 666.94 | H122: 20.01 | I122: 646.93 | J122: 1 | K122: 个 | M122: 交流计量箱 | P122: 330226908000000923
A123: 122 | B123: 宁波铁塔总经理办公会纪要〔2023〕第 66 期 | C123: 330200433455 | E123: 基站机房扩容资产 | F123: 基站机房扩容资产 | G123: 5120.5 | H123: 4739.62 | I123: 380.88 | J123: 1 | K123: 个 | M123: 门装热交换器80W/K | P123: 330211908000000121
A124: 123 | B124: 总经理办公会纪要〔2024〕第 48 期 | C124: 330200338394 | E124: 嵌入式开关电源 | F124: 嵌入式开关电源 | G124: 4226.78 | H124: 126.8 | I124: 4099.98 | J124: 1 | K124: 架 | M124: 48V/300A高效系统(50A高效模块，共用电源系统，三相交流输入)100A | P124: 330212500000000424
A125: 124 | B125: 总经理办公会纪要〔2024〕第 48 期 | C125: 330200115764 | E125: 组合开关电源 | F125: 组合式开关电源 | G125: 2268.98 | H125: 68.07 | I125: 2200.91 | J125: 1 | K125: 个 | M125: PS48300-25 | N125: 华为 | P125: 330226908000000260
A126: 125 | B126: 总经理办公会纪要〔2024〕第 48 期 | C126: 330200119343 | E126: 空调-普通空调 | F126: 基站空调柜式 | G126: 257.5 | H126: 7.73 | I126: 249.77 | J126: 1 | K126: 台 | M126: KFR-75L | N126: 上海大金 | P126: 330226908000000260
A127: 126 | B127: 总经理办公会纪要〔2024〕第 48 期 | C127: 330200399280 | E127: 机房配套扩容资产 | F127: 机房配套扩容资产 | G127: 360.48 | H127: 103.05 | I127: 257.43 | J127: 1 | K127: 个 | M127: 普通空调基站智能空调控制器控制器红外模块 | P127: 330226908000000260
A128: 127 | B128: 总经理办公会纪要〔2024〕第 48 期 | C128: 330200141274 | E128: 其它电源设备-过压保护器（浪涌抑制器） | F128: 低压避雷设施 | G128: 800.13 | H128: 24 | I128: 776.13 | J128: 1 | K128: 面 | M128: YD100K385 | N128: DOWIN | P128: 330226908000000260
A129: 128 | B129: 总经理办公会纪要〔2024〕第 48 期 | C129: 330200305293 | E129: 组合开关电源 | F129: 组合式开关电源 | G129: 12151.87 | H129: 364.56 | I129: 11787.31 | J129: 1 | K129: 个 | M129: IMPS81013 | N129: 杭州中恒电器股份有限公司 | P129: 330212908000000243
A130: 129 | B130: 总经理办公会纪要〔2024〕第 48 期 | C130: 330200145456 | E130: 通用空调 | F130: 基站空调柜式 | G130: 288 | H130: 8.64 | I130: 279.36 | J130: 1 | K130: 台 | M130: FVY71DQV2CB | N130: 宁波大众空调电器有限公司 | P130: 330212908000000869
A131: 130 | B131: 总经理办公会纪要〔2024〕第 48 期 | C131: 330200128142 | E131: 空调机 | F131: 基站空调柜式 | G131: 4944 | H131: 148.32 | I131: 4795.68 | J131: 1 | K131: 台 | M131: FVY71LQVLB | N131: 大金 | P131: 330225908000000973
A132: 131 | B132: 总经理办公会纪要〔2024〕第 48 期 | C132: 330200355829 | E132: 普通空调壁挂 | F132: 基站空调壁挂 | G132: 3697.66 | H132: 110.93 | I132: 3586.73 | J132: 1 | K132: 台 | M132: 2P单冷单相整机 | P132: 330211500000000116
A133: 132 | B133: 总经理办公会纪要〔2024〕第 48 期 | C133: 330200326150 | E133: (杭州振东)-空调及空调零部件-空调 | F133: 基站空调柜式 | G133: 5804.45 | H133: 174.13 | I133: 5630.32 | J133: 1 | K133: 台 | M133: 3P 三相柜式（单冷） | N133: 杭州振东暖通设备贸易有限公司 | P133: 33028301000080
A134: 133 | B134: 总经理办公会纪要〔2024〕第 48 期 | C134: 330200354617 | E134: 普通空调壁挂 | F134: 基站空调壁挂 | G134: 4217.33 | H134: 126.52 | I134: 4090.81 | J134: 1 | K134: 台 | M134: 2P单冷单相整机 | P134: 330283908000000414
A135: 134 | B135: 总经理办公会纪要〔2024〕第 48 期 | C135: 330200132900 | E135: 室内机 | F135: 基站空调柜式 | G135: 1523.59 | H135: 45.71 | I135: 1477.88 | J135: 1 | K135: 台 | M135: RFD-50GW | N135: 海尔 | P135: 330211908000000582
A136: 135 | B136: 总经理办公会纪要〔2024〕第 48 期 | C136: 330200346740 | E136: 普通空调壁挂 | F136: 基站空调壁挂 | G136: 3687.88 | H136: 110.64 | I136: 3577.24 | J136: 1 | K136: 台 | M136: 2P单冷单相整机 | P136: 330211500000000154
A137: 136 | B137: 总经理办公会纪要〔2024〕第 48 期 | C137: 330200102126 | E137: 专用空调 | F137: 基站空调柜式 | G137: 4256.27 | H137: 127.69 | I137: 4128.58 | J137: 1 | K137: 台 | M137: LF75WGT | N137: 三菱重工海尔空调有限公司 | P137: 330211010000000563
A138: 137 | B138: 总经理办公会纪要〔2024〕第 48 期 | C138: 330200310250 | E138: 专用空调 | F138: 基站专用空调 | G138: 4703.15 | H138: 141.09 | I138: 4562.06 | J138: 1 | K138: 台 | M138: 基站单冷三相空调.5KWW.柜式.380V.定频.无. | N138: 华凌 | P138: 33028300000142
A139: 138 | B139: 总经理办公会纪要〔2024〕第 48 期 | C139: 330200117836 | E139: 专用空调 | F139: 基站空调柜式 | G139: 2417.16 | H139: 72.51 | I139: 2344.65 | J139: 1 | K139: 台 | M139: RF73WDT | N139: 三菱重工海尔空调有限公司 | P139: 330212010000001254
A140: 139 | B140: 总经理办公会纪要〔2024〕第 48 期 | C140: 330200132245 | E140: 专用空调 | F140: 基站空调柜式 | G140: 9301.86 | H140: 279.06 | I140: 9022.8 | J140: 1 | K140: 台 | M140: RF75W-L(S) | N140: 上海三菱电机上菱空调机电器有限公司 | P140: 330212908001901062
A141: 140 | B141: 总经理办公会纪要〔2024〕第 48 期 | C141: 330200335241 | E141: 空调 | F141: 基站空调柜式 | G141: 6484.42 | H141: 194.53 | I141: 6289.89 | J141: 1 | K141: 台 | M141: 3P三相柜式（单冷） | N141: 杭州振东暖通设备贸易有限公司 | P141: 33028200000842
A142: 141 | B142: 总经理办公会纪要〔2024〕第 48 期 | C142: 330200134060 | E142: 普通空调 | F142: 基站空调柜式 | G142: 5395 | H142: 161.85 | I142: 5233.15 | J142: 1 | K142: 台 | M142: KF-75LW-STK-N3(K12) | N142: 杭州振东暖通设备贸易有限公司 | P142: 330282908000000500
A143: 142 | B143: 总经理办公会纪要〔2024〕第 48 期 | C143: 330200134061 | E143: 普通空调 | F143: 基站空调柜式 | G143: 5395 | H143: 161.85 | I143: 5233.15 | J143: 1 | K143: 台 | M143: KF-75LW-STK-N3(K12) | N143: 杭州振东暖通设备贸易有限公司 | P143: 330282908000000500
A144: 143 | B144: 总经理办公会纪要〔2024〕第 48 期 | C144: 330200004922 | E144: 普通空调柜式 | F144: 基站空调柜式 | G144: 6008.72 | H144: 180.26 | I144: 5828.46 | J144: 1 | K144: 台 | M144: 3P 三相柜式（单冷） | P144: 330211500000000008
A145: 144 | B145: 总经理办公会纪要〔2024〕第 48 期 | C145: 330200145455 | E145: 普通空调 | F145: 基站空调柜式 | G145: 1287.69 | H145: 38.63 | I145: 1249.06 | J145: 1 | K145: 台 | M145: KFR-75LW-3RF(G01) | N145: 杭州振东暖通空调设备贸易 | P145: 330212908000000869
A146: 145 | B146: 总经理办公会纪要〔2024〕第 48 期 | C146: 330200333710 | E146: 普通空调壁挂 | F146: 基站空调壁挂 | G146: 3654.22 | H146: 109.63 | I146: 3544.59 | J146: 1 | K146: 台 | M146: 2P单冷单相整机 | P146: 330211500000000135
A147: 146 | B147: 总经理办公会纪要〔2024〕第 48 期 | C147: 330200109218 | E147: 奉化中医院X01-01分体式 | F147: 基站空调柜式 | G147: 3034.25 | H147: 91.03 | I147: 2943.22 | J147: 1 | K147: 台 | M147: LF75W | N147: 三菱重工海尔（青岛）空调机有限公司 | P147: 330283908000000794
A148: 147 | B148: 总经理办公会纪要〔2024〕第 48 期 | C148: 330200328221 | E148: 普通空调柜式 | F148: 基站空调柜式 | G148: 6349.27 | H148: 190.48 | I148: 6158.79 | J148: 1 | K148: 台 | M148: 3P单冷三相整机 | P148: 33028200000521
A149: 148 | B149: 总经理办公会纪要〔2024〕第 48 期 | C149: 330200150541 | E149: 专用空调 | F149: 基站空调柜式 | G149: 210 | H149: 6.3 | I149: 203.7 | J149: 1 | K149: 台 | M149: LF75WGT | N149: 三菱重工海尔空调有限公司 | P149: 330212908000001229
A150: 149 | B150: 总经理办公会纪要〔2024〕第 48 期 | C150: 330200152284 | E150: 专用空调 | F150: 基站空调柜式 | G150: 103 | H150: 3.09 | I150: 99.91 | J150: 1 | K150: 台 | M150: LF75WGT | N150: 三菱重工海尔空调有限公司 | P150: 330282010000001093
A151: 150 | B151: 总经理办公会纪要〔2024〕第 48 期 | C151: 330200136945 | E151: 专用空调 | F151: 基站空调柜式 | G151: 154.5 | H151: 4.64 | I151: 149.86 | J151: 1 | K151: 台 | M151: RF73WDT | N151: 三菱重工海尔空调有限公司 | P151: 330282908000001165
A152: 151 | B152: 总经理办公会纪要〔2024〕第 48 期 | C152: 330200120910 | E152: 专用空调 | F152: 基站空调柜式 | G152: 358.54 | H152: 10.76 | I152: 347.78 | J152: 1 | K152: 台 | M152: LF75WGT | N152: 三菱重工海尔空调有限公司 | P152: 330225908000000130
A153: 152 | B153: 总经理办公会纪要〔2024〕第 48 期 | C153: 330200132267 | E153: 专用空调 | F153: 基站空调壁挂 | G153: 154.5 | H153: 4.64 | I153: 149.86 | J153: 1 | K153: 台 | M153: KF-52GW | N153: 上海三菱电机上菱空调机电器有限公司 | P153: 330283908000000019
A154: 153 | B154: 总经理办公会纪要〔2024〕第 48 期 | C154: 330200306742 | E154: 组合开关电源 | F154: 组合式开关电源 | G154: 12151.87 | H154: 364.56 | I154: 11787.31 | J154: 1 | K154: 个 | M154: INPS81013 | N154: 中恒 | P154: 330225908000000781
A155: 154 | B155: 总经理办公会纪要〔2024〕第 48 期 | C155: 330200372693 | E155: 机房配套扩容资产 | F155: 机房配套扩容资产 | G155: 315.03 | H155: 17.94 | I155: 297.09 | J155: 1 | K155: 个 | M155: 监控传感器智能门禁配套物资电源转换模块 | P155: 330225908000000781
A156: 155 | B156: 总经理办公会纪要〔2024〕第 48 期 | C156: 330200343477 | E156: 整流模块 | F156: 整流模块 | G156: 5972.41 | H156: 179.17 | I156: 5793.24 | J156: 1 | K156: 个 | M156: (杭州中恒)-开关电源及电源模块-开关电源模块 | N156: 杭州中恒电气股份有限公司 | P156: 330225908000000781
A157: 156 | B157: 总经理办公会纪要〔2024〕第 48 期 | C157: 330200372692 | E157: 基站构筑物扩容资产 | F157: 基站构筑物扩容资产 | G157: 414.25 | H157: 316.01 | I157: 98.24 | J157: 1 | K157: 个 | M157: 电控锁 | P157: 330225908000000781
A158: 157 | B158: 总经理办公会纪要〔2024〕第 48 期 | C158: 330200390179 | E158: 机房配套扩容资产 | F158: 机房配套扩容资产 | G158: 360.48 | H158: 83.63 | I158: 276.85 | J158: 1 | K158: 个 | M158: 普通空调基站智能空调控制器控制器红外模块 | P158: 330225908000000781
A159: 158 | B159: 总经理办公会纪要〔2024〕第 48 期 | C159: 330200310190 | E159: 开关电源 | F159: 组合式开关电源 | G159: 5465.89 | H159: 163.98 | I159: 5301.91 | J159: 1 | K159: 个 | M159: 机架30A，48V壁挂开关电源架 | N159: 中恒 | P159: 33020600000200
A160: 159 | B160: 总经理办公会纪要〔2024〕第 48 期 | C160: 330200319447 | E160: 普通空调柜式 | F160: 基站空调柜式 | G160: 5111.84 | H160: 153.36 | I160: 4958.48 | J160: 1 | K160: 台 | M160: 3P海信普通柜式空调 | N160: 海信（山东）空调有限公司 | P160: 33020600000200
A161: 160 | B161: 总经理办公会纪要〔2024〕第 48 期 | C161: 330200303705 | E161: 基站及环境监控设备 | F161: 动力及环境监控单元 | G161: 1730.16 | H161: 51.9 | I161: 1678.26 | J161: 1 | K161: 套 | M161: 动力及环境监控单元 | N161: 高新兴 | P161: 33020600000200
A162: 161 | B162: 总经理办公会纪要〔2024〕第 48 期 | C162: 330200381867 | E162: 电源扩容资产 | F162: 电源扩容资产 | G162: 685.13 | H162: 103.57 | I162: 581.56 | J162: 1 | K162: 个 | M162: 通用配件电表箱250mm*400mm*140mm | P162: 33020600000200
A163: 162 | B163: 总经理办公会纪要〔2024〕第 48 期 | C163: 330200377038 | E163: 电力引入扩容资产 | F163: 电力引入扩容资产 | G163: 383.68 | H163: 179.08 | I163: 204.6 | J163: 1 | K163: 个 | M163: 霍尔传感器电流型输入200A/输出4-20mA | P163: 33020600000200
A164: 163 | B164: 总经理办公会纪要〔2024〕第 48 期 | C164: 330200150917 | E164: 交流配电设备 | F164: 交流配电设备 | G164: 1318.06 | H164: 39.54 | I164: 1278.52 | J164: 1 | K164: 个 | M164: JXF | N164: 宁波华通电器集团有限公司 | P164: 330282908000000902
A165: 164 | B165: 总经理办公会纪要〔2024〕第 48 期 | C165: 330200100211 | E165: 整流机架 | F165: 组合式开关电源 | G165: 576 | H165: 17.28 | I165: 558.72 | J165: 1 | K165: 个 | M165: 48V-300A(30A模块)-90 | N165: 施威特克电源（中国）公司 | P165: 330282908000000902
A166: 165 | B166: 总经理办公会纪要〔2024〕第 48 期 | C166: 330200312233 | E166: (自购-器材厂)-直流配电箱 | F166: 直流配电设备 | G166: 3976.85 | H166: 119.31 | I166: 3857.54 | J166: 1 | K166: 个 | M166: 350*350*100 | N166: 浙江省邮电器材公司杭州设备分公司 | P166: 330282908000000902
A167: 166 | B167: 总经理办公会纪要〔2024〕第 48 期 | C167: 330200372700 | E167: 机房配套扩容资产 | F167: 机房配套扩容资产 | G167: 315.03 | H167: 17.94 | I167: 297.09 | J167: 1 | K167: 个 | M167: 监控传感器智能门禁配套物资电源转换模块 | P167: 330282908000000902
A168: 167 | B168: 总经理办公会纪要〔2024〕第 48 期 | C168: 330200372701 | E168: 基站构筑物扩容资产 | F168: 基站构筑物扩容资产 | G168: 414.25 | H168: 316.01 | I168: 98.24 | J168: 1 | K168: 个 | M168: 电控锁 | P168: 330282908000000902
A169: 168 | B169: 总经理办公会纪要〔2024〕第 48 期 | C169: 330200385137 | E169: 机房配套扩容资产 | F169: 机房配套扩容资产 | G169: 320.92 | H169: 61.53 | I169: 259.39 | J169: 1 | K169: 个 | M169: 普通空调基站智能空调控制器 | P169: 330282908000000902
A170: 169 | B170: 总经理办公会纪要〔2024〕第 48 期 | C170: 330200390595 | E170: 电力引入扩容资产 | F170: 电力引入扩容资产 | G170: 307.94 | H170: 163.44 | I170: 144.5 | J170: 1 | K170: 个 | M170: 霍尔传感器电流型输入100A/输出4-20mA | P170: 330282908000000902
A171: 170 | B171: 总经理办公会纪要〔2024〕第 44 期 | C171: 330200361677 | E171: 基站机房扩容资产 | F171: 基站机房扩容资产 | G171: 149.79 | H171: 98.92 | I171: 50.87 | J171: 1 | K171: 个 | M171: 室外接地汇流排-16孔 | P171: 330226500000000220
A172: 171 | B172: 总经理办公会纪要〔2024〕第 44 期 | C172: 330200373660 | E172: 基站构筑物扩容资产 | F172: 基站构筑物扩容资产 | G172: 468.53 | H172: 350.2 | I172: 118.33 | J172: 1 | K172: 个 | M172: 室外接地汇流排-16孔 | P172: 330226500000000220
A173: 172 | B173: 总经理办公会纪要〔2024〕第 44 期 | C173: 330200128892 | E173: 组合式开关电源 | F173: 组合式开关电源 | G173: 898.5 | H173: 26.96 | I173: 871.54 | J173: 1 | K173: 个 | M173: 48V-600A（30A模块）-90 | N173: 杭州中恒电气股份有限公司 | P173: 330205908000000476
A174: 173 | B174: 总经理办公会纪要〔2024〕第 40 期 | C174: 330200305153 | E174: 开关电源 | F174: 组合式开关电源 | G174: 8885.68 | H174: 266.57 | I174: 8619.11 | J174: 1 | K174: 个 | M174: 48V分立式开关电源直流配电架 | N174: 中恒 | P174: 330212500000000016
A175: 174 | C175: 无资产编码 | E175: 直流远供 | F175: 直流远供 | J175: 1 | K175: 个

Sheet 温州
A1: 序号 | B1: 报废批复文号 | C1: 资产编号 | D1: 资产名称 | E1: 资产类别名称 | F1: 资产原值 （元，不含税） | G1: 资产净值 （元，不含税） | H1: 累计折旧 | I1: 资产数量 | J1: 计量单位 （个/吨/米等） | K1: 规格型号 | L1: 生产厂家 | M1: 站点名称 | N1: 站点编码 | O1: 提供人 | P1: 备注
A2: 1 | B2: 总经理办公会纪要〔2023〕第 21 期 | C2: 330300134234 | D2: 3P空调 | E2: 3P空调 | F2: 360.5 | G2: 10.82 | H2: 349.68 | I2: 1.00 | J2: 台 | K2: 3P | L2: 大金 | M2: 苍南龙港新湖绿都-2 | N2: 330327908000000716 | O2: 王智淳 | P2: 铜管1条1米
A3: 2 | B3: 总经理办公会纪要〔2023〕第 21 期 | C3: 330300149469 | D3: 3P空调 | E3: 3P空调 | F3: 4000.57 | G3: 120.02 | H3: 3880.55 | I3: 1.00 | J3: 台 | K3: 3P | L3: 三菱 | M3: 苍南龙港新湖绿都-2 | N3: 330327908000000716 | O3: 王智淳 | P3: 铜管1条1米
A4: 3 | B4: 温州铁塔党委会纪要〔2024〕第25期 | C4: 330300109455 | D4: 组合式开关电源 | E4: 组合式开关电源 | F4: 4591.47 | G4: 137.74 | H4: 4453.73 | I4: 1.00 | J4: 架 | K4: 组合式 | L4: 施威特克 | M4: 永嘉岩坦叶坑 | N4: 330324908000000471 | O4: 蔡煌湖
A5: 4 | B5: 温州铁塔党委会纪要〔2024〕第25期 | C5: 330300121192 | D5: 3P空调 | E5: 3P空调 | F5: 358.54 | G5: 10.76 | H5: 347.78 | I5: 1.00 | J5: 台 | K5: 3P | L5: 无 | M5: 苍南五凤新利村 | N5: 330327908000000749 | O5: 蔡煌湖 | P5: 铜管1条1米
A6: 5 | B6: 温州铁塔党委会纪要〔2024〕第25期 | C6: 330300137351 | D6: 3P空调 | E6: 3P空调 | F6: 2666.6 | G6: 80 | H6: 2586.6 | I6: 1.00 | J6: 台 | K6: 3P | L6: 无 | M6: 苍南五凤新利村 | N6: 330327908000000749 | O6: 蔡煌湖 | P6: 铜管1条1米
A7: 6 | B7: 温州铁塔党委会纪要〔2024〕第25期 | C7: 330300133309 | D7: 3P空调 | E7: 3P空调 | F7: 3880.68 | G7: 116.42 | H7: 3764.26 | I7: 1.00 | J7: 台 | K7: 3P | L7: 科龙 | M7: 苍南龙港方鼎包装 | N7: 330327908000001341 | O7: 蔡煌湖 | P7: 铜管1条1米
A8: 7 | B8: 温州铁塔党委会纪要〔2024〕第25期 | C8: 330300169573 | D8: 3P空调 | E8: 3P空调 | F8: 2686.7 | G8: 80.6 | H8: 2606.1 | I8: 1.00 | J8: 台 | K8: 3P | L8: 华凌 | M8: 苍南龙港方鼎包装 | N8: 330327908000001341 | O8: 蔡煌湖 | P8: 铜管1条1米
A9: 8 | B9: 温州铁塔党委会纪要〔2024〕第25期 | C9: 330300336211 | D9: 3P空调 | E9: 3P空调 | F9: 6976.07 | G9: 209.28 | H9: 6766.79 | I9: 1.00 | J9: 台 | K9: 3P | L9: 志高 | M9: 苍南巴艚陈处 | N9: 330327908000000680 | O9: 蔡煌湖
A10: 9 | B10: 温州铁塔党委会纪要〔2024〕第25期 | C10: 330300143052 | D10: 3P空调 | E10: 3P空调 | F10: 5381.64 | G10: 161.45 | H10: 5220.19 | I10: 1.00 | J10: 台 | K10: 3P | L10: 三菱 | M10: 苍南巴艚陈处 | N10: 330327908000000680 | O10: 蔡煌湖
A11: 10 | B11: 温州铁塔党委会纪要〔2024〕第25期 | C11: 330300162977 | D11: 2P空调 | E11: 2P空调 | F11: 257.5 | G11: 7.73 | H11: 249.77 | I11: 1.00 | J11: 台 | K11: 2P | L11: 海尔 | M11: 苍南龙港百有街 | N11: 330327908000000861 | O11: 蔡煌湖 | P11: 铜管1条1米
A12: 11 | B12: 总经理办公会纪要〔2024〕第32期 | C12: 330300367212 | D12: FSU | E12: FSU | F12: 2903.63 | G12: 87.11 | H12: 2816.52 | I12: 1.00 | J12: 个 | K12: 主设备室内型成套设备 | L12: 中兴 | M12: 泰顺司前台边 | N12: 33032901000024 | O12: 蔡煌湖 | P12: 无配件
A13: 12 | B13: 总经理办公会纪要〔2024〕第32期 | C13: 330300367188 | D13: FSU | E13: FSU | F13: 2903.63 | G13: 87.11 | H13: 2816.52 | I13: 1.00 | J13: 个 | K13: 主设备室内型成套设备 | L13: 中兴 | M13: 泰顺泗溪南 | N13: 33032901000030 | O13: 蔡煌湖 | P13: 无配件
A14: 13 | B14: 总经理办公会纪要〔2024〕第32期 | C14: 330300367226 | D14: FSU | E14: FSU | F14: 2903.63 | G14: 87.11 | H14: 2816.52 | I14: 1.00 | J14: 个 | K14: 主设备室内型成套设备 | L14: 中兴 | M14: 泰顺筱村东 | N14: 330329500000000006 | O14: 蔡煌湖 | P14: 无配件
A15: 14 | B15: 温州铁塔党委会纪要〔2024〕第27期 | C15: 330300387630 | D15: 合路器 | E15: 合路器 | F15: 2975.94 | G15: 209.56 | H15: 2766.38 | I15: 1.00 | J15: 个 | K15: 电池合路器三端口电池合路器不带分客户组放电功能 | L15: 无 | M15: 苍南南洋印刷 | N15: 330327908000001201 | O15: 蔡煌湖
A16: 15 | B16: 温州铁塔党委会纪要〔2024〕第27期 | C16: 330300111517 | D16: 组合式开关电源 | E16: 组合式开关电源 | F16: 3685.28 | G16: 110.56 | H16: 3574.72 | I16: 1.00 | J16: 架 | K16: 组合式 | L16: 中达 | M16: 文成桂山桂库 | N16: 330328908000000166 | O16: 蔡煌湖
A17: 16 | B17: 温州铁塔党委会纪要〔2024〕第27期 | C17: 330300119543 | D17: 组合式开关电源 | E17: 组合式开关电源 | F17: 3454.89 | G17: 103.65 | H17: 3351.24 | I17: 1.00 | J17: 架 | K17: 组合式 | L17: 施威特克 | M17: 文成上斜 | N17: 330328908000000210 | O17: 蔡煌湖
A18: 17 | B18: 温州铁塔党委会纪要〔2024〕第27期 | C18: 330300335883 | D18: 嵌入式开关电源 | E18: 嵌入式开关电源 | F18: 6562.8 | G18: 196.88 | H18: 6365.92 | I18: 1.00 | J18: 架 | K18: 嵌入式 | L18: 中恒 | M18: 四海山林场 | N18: 33032401000138 | O18: 蔡煌湖
A19: 18 | B19: 温州铁塔党委会纪要〔2024〕第27期 | C19: 330300164192 | D19: 嵌入式开关电源 | E19: 嵌入式开关电源 | F19: 2082.02 | G19: 62.46 | H19: 2019.56 | I19: 1.00 | J19: 架 | K19: 嵌入式 | L19: 中恒 | M19: 永嘉大若岩十二峰 | N19: 330324908000000387 | O19: 蔡煌湖
A20: 19 | B20: 温州铁塔党委会纪要〔2024〕第27期 | C20: 330300117912 | D20: 组合式开关电源 | E20: 组合式开关电源 | F20: 12833.68 | G20: 385.01 | H20: 12448.67 | I20: 1.00 | J20: 架 | K20: 组合式 | L20: 中恒 | M20: 文成玉壶茗？村 | N20: 330328908000000405 | O20: 蔡煌湖 | P20: 少配件机柜严重变形
A21: 20 | B21: 温州铁塔党委会纪要〔2024〕第27期 | C21: 330300164331 | D21: 壁挂式开关电源 | E21: 壁挂式开关电源 | F21: 5083.32 | G21: 152.5 | H21: 4930.82 | I21: 1.00 | J21: 架 | K21: 壁挂式 | L21: 无 | M21: 乐清龙西东加岙 | N21: 330382908000000717 | O21: 蔡煌湖
A22: 21 | B22: 温州铁塔党委会纪要〔2024〕第27期 | C22: 330300141626 | D22: 组合式开关电源 | E22: 组合式开关电源 | F22: 4650.87 | G22: 139.53 | H22: 4511.34 | I22: 1.00 | J22: 架 | K22: 组合式 | L22: 无 | M22: 乐清龙西山岙头 | N22: 330382908000001577 | O22: 蔡煌湖 | P22: 无背板
A23: 22 | B23: 温州铁塔党委会纪要〔2024〕第27期 | C23: 330300100229 | D23: 组合式开关电源 | E23: 组合式开关电源 | F23: 8944.23 | G23: 268.33 | H23: 8675.9 | I23: 1.00 | J23: 架 | K23: 组合式 | L23: 无 | M23: 甬台温高铁定头港拉远 | N23: 33038201000338 | O23: 蔡煌湖 | P23: 少配件少门板
A24: 23 | B24: 温州铁塔党委会纪要〔2024〕第27期 | C24: 330300154238 | D24: 组合式开关电源 | E24: 组合式开关电源 | F24: 1661.29 | G24: 49.84 | H24: 1611.45 | I24: 1.00 | J24: 架 | K24: 组合式 | L24: 中兴 | M24: 温州滨海工业区四 | N24: 330303908000000668 | O24: 蔡煌湖 | P24: 少配件
A25: 24 | B25: 温州铁塔党委会纪要〔2024〕第27期 | C25: 330300387390 | D25: 嵌入式开关电源 | E25: 嵌入式开关电源 | F25: 6793.57 | G25: 203.81 | H25: 6589.76 | I25: 1.00 | J25: 架 | K25: 嵌入式 | L25: 中达 | M25: 龙湾瑶溪南洋大道南洋公园 | N25: 330303500000001712 | O25: 蔡煌湖
A26: 25 | B26: 温州铁塔党委会纪要〔2024〕第27期 | C26: 330300332624 | D26: 嵌入式开关电源 | E26: 嵌入式开关电源 | F26: 6189.5 | G26: 185.68 | H26: 6003.82 | I26: 1.00 | J26: 架 | K26: 嵌入式 | L26: 中恒 | M26: 瑞安南洋集团西 | N26: 330381500000000016 | O26: 蔡煌湖
A27: 26 | B27: 温州铁塔党委会纪要〔2024〕第27期 | C27: 330300144514 | D27: 组合式开关电源 | E27: 组合式开关电源 | F27: 789.55 | G27: 23.69 | H27: 765.86 | I27: 1.00 | J27: 架 | K27: 组合式 | L27: 中恒 | M27: 瑞安联大化工 | N27: 330381908000000367 | O27: 蔡煌湖
A28: 27 | B28: 温州铁塔党委会纪要〔2024〕第27期 | C28: 330300169475 | D28: 组合式开关电源 | E28: 组合式开关电源 | F28: 758.95 | G28: 22.77 | H28: 736.18 | I28: 1.00 | J28: 架 | K28: 组合式 | L28: 施威特克 | M28: 瑞安永安均路 | N28: 330381908000000225 | O28: 蔡煌湖 | P28: 无背板
A29: 28 | B29: 温州铁塔党委会纪要〔2024〕第27期 | C29: 330300169476 | D29: 组合式开关电源 | E29: 组合式开关电源 | F29: 4138.27 | G29: 124.15 | H29: 4014.12 | I29: 1.00 | J29: 架 | K29: 组合式 | L29: 施威特克 | M29: 瑞安林溪大坪 | N29: 330381908000000587 | O29: 蔡煌湖 | P29: 无背板
A30: 29 | B30: 温州铁塔党委会纪要〔2024〕第27期 | C30: 330300347790 | D30: 组合式开关电源 | E30: 组合式开关电源 | F30: 6788.64 | G30: 203.66 | H30: 6584.98 | I30: 1.00 | J30: 架 | K30: 组合式 | L30: 无 | M30: 瑞安绕城高速西线陶山 | N30: 330381500000000354 | O30: 蔡煌湖 | P30: 少背板
A31: 30 | B31: 温州铁塔党委会纪要〔2024〕第27期 | C31: 330300353386_1 | D31: 嵌入式开关电源 | E31: 嵌入式开关电源 | F31: 2978.82 | G31: 89.37 | H31: 2889.45 | I31: 1.00 | J31: 架 | K31: 嵌入式 | L31: 无 | M31: 苍南矾山新省道西 | N31: 330327010000000174 | O31: 蔡煌湖 | P31: 少配件
A32: 31 | B32: 温州铁塔党委会纪要〔2024〕第27期 | C32: 330300158856 | D32: 组合式开关电源 | E32: 组合式开关电源 | F32: 10427.01 | G32: 312.81 | H32: 10114.2 | I32: 1.00 | J32: 架 | K32: 组合式 | L32: 中兴 | M32: 瑞安莘塍富民路 | N32: 330381908000001314 | O32: 蔡煌湖 | P32: 少背板
A33: 32 | B33: 温州铁塔党委会纪要〔2024〕第27期 | C33: 330300331682_2 | D33: 嵌入式开关电源 | E33: 嵌入式开关电源 | F33: 2118.32 | G33: 63.55 | H33: 2054.77 | I33: 1.00 | J33: 架 | K33: 嵌入式 | L33: 中恒 | M33: 瑞安场桥龟山东 | N33: 330381500000000136 | O33: 蔡煌湖
A34: 33 | B34: 温州铁塔党委会纪要〔2024〕第27期 | C34: 330300385759 | D34: 组合式开关电源 | E34: 组合式开关电源 | F34: 9690.1 | G34: 290.7 | H34: 9399.4 | I34: 1.00 | J34: 架 | K34: 组合式 | L34: 中达 | M34: 瑞安马屿镇江桥 | N34: 330381500000001827 | O34: 蔡煌湖 | P34: 少背板
A35: 34 | B35: 温州铁塔党委会纪要〔2024〕第27期 | C35: 330300107711 | D35: 组合式开关电源 | E35: 组合式开关电源 | F35: 786.6 | G35: 23.6 | H35: 763 | I35: 1.00 | J35: 架 | K35: 组合式 | L35: 施威特克 | M35: 瑞安洪地 | N35: 330381908000000164 | O35: 蔡煌湖 | P35: 无背板少配件
A36: 35 | B36: 温州铁塔党委会纪要〔2024〕第27期 | C36: 330300127848 | D36: 3P空调 | E36: 3P空调 | F36: 291 | G36: 8.73 | H36: 282.27 | I36: 1.00 | J36: 台 | K36: 3P | L36: 大金 | M36: 温州潘桥镇政府 | N36: 330304908000000219 | O36: 蔡煌湖
A37: 36 | B37: 温州铁塔党委会纪要〔2024〕第27期 | C37: 330300171127 | D37: 3P空调 | E37: 3P空调 | F37: 2403.33 | G37: 72.1 | H37: 2331.23 | I37: 1.00 | J37: 台 | K37: 3P | L37: 三洋 | M37: 温州瓯海林溪金山 | N37: 330381908000000139 | O37: 蔡煌湖 | P37: 外机无盖板
A38: 37 | B38: 温州铁塔党委会纪要〔2024〕第27期 | C38: 330300135879 | D38: 3P空调 | E38: 3P空调 | F38: 2124.23 | G38: 63.73 | H38: 2060.5 | I38: 1.00 | J38: 台 | K38: 3P | L38: 无 | M38: 平阳鳌江中保大楼 | N38: 330326908000000681 | O38: 蔡煌湖
A39: 38 | B39: 温州铁塔党委会纪要〔2024〕第27期 | C39: 330300106254 | D39: 3P空调 | E39: 3P空调 | F39: 291 | G39: 8.73 | H39: 282.27 | I39: 1.00 | J39: 台 | K39: 3P | L39: 大金 | M39: 瑞安罗凤中北工业区 | N39: 330381908000001653 | O39: 蔡煌湖 | P39: 铜管1条1米
A40: 39 | B40: 温州铁塔党委会纪要〔2024〕第27期 | C40: 330300327240 | D40: 3P空调 | E40: 3P空调 | F40: 8040.78 | G40: 241.22 | H40: 7799.56 | I40: 1.00 | J40: 台 | K40: 3P | L40: 美的 | M40: 泰顺包垟林岙 | N40: 330329908000000682 | O40: 蔡煌湖 | P40: 外机无盖板铜管1条1米
A41: 40 | B41: 温州铁塔党委会纪要〔2024〕第27期 | C41: 330300171243 | D41: 3P空调 | E41: 3P空调 | F41: 360.5 | G41: 10.82 | H41: 349.68 | I41: 1.00 | J41: 台 | K41: 3P | L41: 无 | M41: 瑞安桐浦云祥 | N41: 330381908000000512 | O41: 蔡煌湖
A42: 41 | B42: 温州铁塔党委会纪要〔2024〕第27期 | C42: 330300383977 | D42: 2P空调 | E42: 2P空调 | F42: 4261.3 | G42: 127.84 | H42: 4133.46 | I42: 1.00 | J42: 台 | K42: 2P | L42: 美的 | M42: 瑞安陶山碧山桐利搬迁 | N42: 330381500000001699 | O42: 蔡煌湖 | P42: 铜管1条1米
A43: 42 | B43: 温州铁塔党委会纪要〔2024〕第27期 | C43: 330300106123 | D43: 3P空调 | E43: 3P空调 | F43: 4221 | G43: 126.63 | H43: 4094.37 | I43: 1.00 | J43: 台 | K43: 3P | L43: 海尔 | M43: 瑞安潮基 | N43: 330381908000000421 | O43: 蔡煌湖
A44: 43 | B44: 温州铁塔党委会纪要〔2024〕第27期 | C44: 330300334105 | D44: 3P空调 | E44: 3P空调 | F44: 7779.4 | G44: 233.38 | H44: 7546.02 | I44: 1.00 | J44: 台 | K44: 3P | L44: 美的 | M44: 泰顺县三魁镇薛内村 | N44: 330329010000000077 | O44: 蔡煌湖 | P44: 外机少配件铜管1条1米
A45: 44 | B45: 温州铁塔党委会纪要〔2024〕第27期 | C45: 330300170950 | D45: 3P空调 | E45: 3P空调 | F45: 4626 | G45: 138.78 | H45: 4487.22 | I45: 1.00 | J45: 台 | K45: 3P | L45: 大金 | M45: 永嘉西溪盛岙 | N45: 330324908000000795 | O45: 蔡煌湖
A46: 45 | B46: 温州铁塔党委会纪要〔2024〕第27期 | C46: 330300106037 | D46: 3P空调 | E46: 3P空调 | F46: 3829.11 | G46: 114.87 | H46: 3714.24 | I46: 1.00 | J46: 台 | K46: 3P | L46: 华凌 | M46: 永嘉石染雷付 | N46: 330324908000000776 | O46: 蔡煌湖
A47: 46 | B47: 温州铁塔党委会纪要〔2024〕第27期 | C47: 330300165106 | D47: 3P空调 | E47: 3P空调 | F47: 291 | G47: 8.73 | H47: 282.27 | I47: 1.00 | J47: 台 | K47: 3P | L47: 大金 | M47: 永嘉张溪乡基站 | N47: 330324908000000292 | O47: 蔡煌湖 | P47: 铜管1条1米
A48: 47 | B48: 温州铁塔党委会纪要〔2024〕第27期 | C48: 330300155012 | D48: 3P空调 | E48: 3P空调 | F48: 15 | G48: 0.45 | H48: 14.55 | I48: 1.00 | J48: 台 | K48: 3P | L48: 科龙 | M48: 泰顺东溪下洋 | N48: 330329908000000213 | O48: 蔡煌湖
A49: 48 | B49: 温州铁塔党委会纪要〔2024〕第27期 | C49: 330300134245 | D49: 3P空调 | E49: 3P空调 | F49: 360.5 | G49: 10.82 | H49: 349.68 | I49: 1.00 | J49: 台 | K49: 3P | L49: 大金 | M49: 泰顺联坑 | N49: 330329908000000679 | O49: 蔡煌湖 | P49: 外机破损严重变形
A50: 49 | B50: 温州铁塔党委会纪要〔2024〕第27期 | C50: 330300134435 | D50: 3P空调 | E50: 3P空调 | F50: 5490.23 | G50: 164.71 | H50: 5325.52 | I50: 1.00 | J50: 台 | K50: 3P | L50: 华凌 | M50: 泰顺泗溪前坪头 | N50: 330329908000000552 | O50: 蔡煌湖 | P50: 少配件
A51: 50 | B51: 温州铁塔党委会纪要〔2024〕第27期 | C51: 330300134291 | D51: 3P空调 | E51: 3P空调 | F51: 5025 | G51: 150.75 | H51: 4874.25 | I51: 1.00 | J51: 台 | K51: 3P | L51: 华凌 | M51: 泰顺红岩隧道 | N51: 330329908000000405 | O51: 蔡煌湖 | P51: 铜管1条1米
A52: 51 | B52: 温州铁塔党委会纪要〔2024〕第27期 | C52: 330300111351 | D52: 3P空调 | E52: 3P空调 | F52: 3172.3 | G52: 95.17 | H52: 3077.13 | I52: 1.00 | J52: 台 | K52: 3P | L52: 华凌 | M52: 瑞安莘塍上山根搬迁 | N52: 330381500000000459 | O52: 蔡煌湖 | P52: 外机破损变形铜管1条1米
A53: 52 | B53: 温州铁塔党委会纪要〔2024〕第27期 | C53: 330300342692 | D53: 3P空调 | E53: 3P空调 | F53: 6509.09 | G53: 195.27 | H53: 6313.82 | I53: 1.00 | J53: 台 | K53: 3P | L53: 无 | M53: 瑞安莘塍南洋工业区 | N53: 330381908000001433 | O53: 蔡煌湖
A54: 53 | B54: 温州铁塔党委会纪要〔2024〕第27期 | C54: 330300162839 | D54: 3P空调 | E54: 3P空调 | F54: 4626 | G54: 138.78 | H54: 4487.22 | I54: 1.00 | J54: 台 | K54: 3P | L54: 无 | M54: 瑞安林溪傍山-2 | N54: 330381908000000395 | O54: 蔡煌湖
A55: 54 | B55: 温州铁塔党委会纪要〔2024〕第27期 | C55: 330300127849 | D55: 3P空调 | E55: 3P空调 | F55: 291 | G55: 8.73 | H55: 282.27 | I55: 1.00 | J55: 台 | K55: 3P | L55: 大金 | M55: 温州潘桥镇政府 | N55: 330304908000000219 | O55: 蔡煌湖
A56: 55 | B56: 温州铁塔党委会纪要〔2024〕第27期 | C56: 330300106255 | D56: 3P空调 | E56: 3P空调 | F56: 857.86 | G56: 25.74 | H56: 832.12 | I56: 1.00 | J56: 台 | K56: 3P | L56: 大金 | M56: 瑞安罗凤中北工业区 | N56: 330381908000001653 | O56: 蔡煌湖 | P56: 铜管1条1米
A57: 56 | B57: 温州铁塔党委会纪要〔2024〕第27期 | C57: 330300110426 | D57: 3P空调 | E57: 3P空调 | F57: 5222.06 | G57: 156.66 | H57: 5065.4 | I57: 1.00 | J57: 台 | K57: 3P | L57: 华凌 | M57: 瑞安潮基 | N57: 330381908000000421 | O57: 蔡煌湖 | P57: 外机破损严重
A58: 57 | B58: 温州铁塔党委会纪要〔2024〕第27期 | C58: 330300373548 | D58: 3P空调 | E58: 3P空调 | F58: 6109.43 | G58: 183.28 | H58: 5926.15 | I58: 1.00 | J58: 台 | K58: 3P | L58: 海悟 | M58: 泰顺雅阳镇政府 | N58: 330329908000000367 | O58: 蔡煌湖
A59: 58 | B59: 温州铁塔党委会纪要〔2024〕第27期 | C59: 330300367366 | D59: FSU | E59: FSU | F59: 4130.06 | G59: 123.9 | H59: 4006.16 | I59: 1.00 | J59: 个 | K59: 主设备室外型成套设备 | L59: 中兴 | M59: 泰顺百丈中心 | N59: 33032901000060 | O59: 蔡煌湖 | P59: 无配件
A60: 59 | B60: 温州铁塔党委会纪要〔2024〕第27期 | C60: 330300367526 | D60: FSU | E60: FSU | F60: 4130.06 | G60: 123.9 | H60: 4006.16 | I60: 1.00 | J60: 个 | K60: 主设备室外型成套设备 | L60: 中兴 | M60: 泰顺翁山 | N60: 330329908000000026 | O60: 蔡煌湖 | P60: 无配件
A61: 60 | B61: 温州铁塔党委会纪要〔2024〕第27期 | C61: 330300382305 | D61: FSU | E61: FSU | F61: 1156.66 | G61: 34.7 | H61: 1121.96 | I61: 1.00 | J61: 个 | K61: 主设备室外型拉远站用FSU设备常温48V直流型 | L61: 无 | M61: 乐清龙西东加岙 | N61: 330382908000000717 | O61: 蔡煌湖
A62: 61 | B62: 温州铁塔党委会纪要〔2024〕第27期 | C62: 330300367250 | D62: FSU | E62: FSU | F62: 2903.63 | G62: 87.11 | H62: 2816.52 | I62: 1.00 | J62: 个 | K62: 主设备室内型成套设备 | L62: 中兴 | M62: 泰顺彭溪伙爬岭 | N62: 33032901000031 | O62: 蔡煌湖
A63: 62 | B63: 温州铁塔党委会纪要〔2024〕第27期 | C63: 330300367288 | D63: FSU | E63: FSU | F63: 2903.63 | G63: 87.11 | H63: 2816.52 | I63: 1.00 | J63: 个 | K63: 主设备室内型成套设备 | L63: 中兴 | M63: 泰顺县三魁镇薛内村 | N63: 330329010000000077 | O63: 蔡煌湖 | P63: 无配件
A64: 63 | B64: 温州铁塔党委会纪要〔2024〕第27期 | C64: 330300367182 | D64: FSU | E64: FSU | F64: 2903.63 | G64: 87.11 | H64: 2816.52 | I64: 1.00 | J64: 个 | K64: 主设备室内型成套设备 | L64: 中兴 | M64: 泰顺县雅阳镇吴家墩村 | N64: 33032900000026 | O64: 蔡煌湖 | P64: 无配件
A65: 64 | B65: 温州铁塔党委会纪要〔2024〕第27期 | C65: 330300367120 | D65: FSU | E65: FSU | F65: 2922.5 | G65: 87.68 | H65: 2834.82 | I65: 1.00 | J65: 个 | K65: 主设备室内型成套设备 | L65: 中兴 | M65: 泰顺深窟 | N65: 330329010000000090 | O65: 蔡煌湖 | P65: 无配件
A66: 65 | B66: 温州铁塔党委会纪要〔2024〕第27期 | C66: 330300124925 | D66: 交流配电箱（散件） | E66: 交流配电箱（散件） | F66: 450.25 | G66: 13.51 | H66: 436.74 | I66: 1.00 | J66: 个 | K66: NXK1 | L66: 正泰 | M66: 温州穗丰-2 | N66: 330304908000000010 | O66: 蔡煌湖 | P66: 散件实物壹排空开和小铁盒壹个
A67: 66 | B67: 温州铁塔党委会纪要〔2024〕第27期 | C67: 330300420516 | D67: 智能配电单元 | E67: 智能配电单元 | F67: 1169.78 | G67: 350.26 | H67: 819.52 | I67: 1.00 | J67: 个 | K67: / | L67: 无 | M67: 乐清城南乐成五环玉箫路口 | N67: 330382500000001940 | O67: 王智淳
A68: 67 | B68: 温州铁塔党委会纪要〔2024〕第27期 | C68: 330300378187 | D68: 交流配电箱 | E68: 交流配电箱 | F68: 2415.25 | G68: 72.46 | H68: 2342.79 | I68: 1.00 | J68: 个 | K68: 交流配电箱三相（含市电油机手动转换开关）380V/100A室内型 | L68: 无 | M68: 鹿城上戍渡头南路 | N68: 330302500000000260 | O68: 王智淳
A69: 68 | B69: 温州铁塔党委会纪要〔2024〕第27期 | C69: 330300378191 | D69: 配套综合柜 | E69: 配套综合柜 | F69: 2763.94 | G69: 82.92 | H69: 2681.02 | I69: 1.00 | J69: 台 | K69: 2000x600x600mm | L69: 无 | M69: 鹿城上戍渡头南路 | N69: 330302500000000260 | O69: 王智淳
A70: 69 | B70: 温州铁塔党委会纪要〔2024〕第27期 | C70: 330300378192 | D70: 2P空调 | E70: 2P空调 | F70: 3926.64 | G70: 117.8 | H70: 3808.84 | I70: 1.00 | J70: 台 | K70: 2P | L70: 无 | M70: 鹿城上戍渡头南路 | N70: 330302500000000260 | O70: 王智淳
A71: 70 | B71: 温州铁塔党委会纪要〔2024〕第27期 | C71: 330300378193 | D71: FSU | E71: FSU | F71: 3056.28 | G71: 91.69 | H71: 2964.59 | I71: 1.00 | J71: 个 | K71: 主设备室内型成套设备基本配置模型 | L71: 无 | M71: 鹿城上戍渡头南路 | N71: 330302500000000260 | O71: 王智淳
A72: 71 | B72: 温州铁塔党委会纪要〔2024〕第27期 | C72: 330300340291 | D72: 3P空调 | E72: 3P空调 | F72: 5428.87 | G72: 162.87 | H72: 5266 | I72: 1.00 | J72: 台 | K72: 3P | L72: 无 | M72: 乐清东辽农业基地 | N72: 330382500000000050 | O72: 王智淳
A73: 72 | B73: 温州铁塔党委会纪要〔2024〕第27期 | C73: 330300340293 | D73: 配套综合柜 | E73: 配套综合柜 | F73: 1047.74 | G73: 31.43 | H73: 1016.31 | I73: 1.00 | J73: 台 | K73: 600x600x2000mm | L73: 无 | M73: 乐清东辽农业基地 | N73: 330382500000000050 | O73: 王智淳
A74: 73 | B74: 温州铁塔党委会纪要〔2024〕第27期 | C74: 330300340295 | D74: 交流配电箱 | E74: 交流配电箱 | F74: 2621.7 | G74: 78.65 | H74: 2543.05 | I74: 1.00 | J74: 个 | K74: 壁挂式380V/100A内置120KASPD（1路输入） | L74: 无 | M74: 乐清东辽农业基地 | N74: 330382500000000050 | O74: 王智淳
A75: 74 | B75: 温州铁塔党委会纪要〔2024〕第27期 | C75: 330300340297 | D75: 组合式开关电源 | E75: 组合式开关电源 | F75: 8790.83 | G75: 263.72 | H75: 8527.11 | I75: 1.00 | J75: 架 | K75: 组合式 | L75: 中恒 | M75: 乐清东辽农业基地 | N75: 330382500000000050 | O75: 王智淳
A76: 75 | B76: 温州铁塔党委会纪要〔2024〕第27期 | C76: 330300380789 | D76: rru架 | E76: rru架 | F76: 1636.79 | G76: 49.1 | H76: 1587.69 | I76: 1.00 | J76: 个 | K76: RRU安装架室内RRU安装架 | L76: 无 | M76: 乐清东辽农业基地 | N76: 330382500000000050 | O76: 王智淳
A77: 76 | B77: 温州铁塔党委会纪要〔2024〕第27期 | C77: 330300397990 | D77: FSU | E77: FSU | F77: 2980.76 | G77: 330.28 | H77: 2650.48 | I77: 1.00 | J77: 个 | K77: 主设备室内型成套设备基本配置模型 | L77: 高新兴 | M77: 乐清东辽农业基地 | N77: 330382500000000050 | O77: 王智淳
A78: 77 | B78: 温州铁塔党委会纪要〔2024〕第27期 | C78: 330300407960 | D78: 门禁模块 | E78: 门禁模块 | F78: 291.38 | G78: 55.84 | H78: 235.54 | I78: 1.00 | J78: 个 | K78: 监控传感器智能门禁配套物资电源转换模块 | L78: 无 | M78: 乐清东辽农业基地 | N78: 330382500000000050 | O78: 王智淳
A79: 78 | B79: 温州铁塔党委会纪要〔2024〕第27期 | C79: 330300104074 | D79: 3P空调 | E79: 3P空调 | F79: 873 | G79: 26.19 | H79: 846.81 | I79: 1.00 | J79: 台 | K79: 3P | L79: 大金 | M79: 平阳钱仓文化中心 | N79: 330326908000000994 | O79: 王智淳
A80: 79 | B80: 温州铁塔党委会纪要〔2024〕第27期 | C80: 330300108097 | D80: 组合式开关电源 | E80: 组合式开关电源 | F80: 302.4 | G80: 9.07 | H80: 293.33 | I80: 1.00 | J80: 架 | K80: 组合式 | L80: 艾默生 | M80: 平阳钱仓文化中心 | N80: 330326908000000994 | O80: 王智淳
A81: 80 | B81: 温州铁塔党委会纪要〔2024〕第27期 | C81: 330300140729 | D81: 交流配电箱 | E81: 交流配电箱 | F81: 1550.14 | G81: 46.5 | H81: 1503.64 | I81: 1.00 | J81: 台 | K81: PZ30 | L81: 杭开电气 | M81: 平阳钱仓文化中心 | N81: 330326908000000994 | O81: 王智淳
A82: 81 | B82: 温州铁塔党委会纪要〔2024〕第27期 | C82: 330300171407 | D82: 交流配电箱 | E82: 交流配电箱 | F82: 980.07 | G82: 29.4 | H82: 950.67 | I82: 1.00 | J82: 个 | K82: PZ30 | L82: 杭开电气 | M82: 平阳钱仓文化中心 | N82: 330326908000000994 | O82: 王智淳
A83: 82 | B83: 温州铁塔党委会纪要〔2024〕第27期 | C83: 330300303674 | D83: 交流配电箱 | E83: 交流配电箱 | F83: 504.09 | G83: 15.12 | H83: 488.97 | I83: 1.00 | J83: 台 | K83: 3×16+1×10 | L83: 俊知 | M83: 平阳钱仓文化中心 | N83: 330326908000000994 | O83: 王智淳
A84: 83 | B84: 温州铁塔党委会纪要〔2024〕第27期 | C84: 330300327335 | D84: 3P空调 | E84: 3P空调 | F84: 8645.71 | G84: 259.37 | H84: 8386.34 | I84: 1.00 | J84: 台 | K84: 3P | L84: 融和创 | M84: 平阳钱仓文化中心 | N84: 330326908000000994 | O84: 王智淳
A85: 84 | B85: 温州铁塔党委会纪要〔2024〕第27期 | C85: 330300379324 | D85: rru架 | E85: rru架 | F85: 1631.9 | G85: 48.96 | H85: 1582.94 | I85: 1.00 | J85: 个 | K85: RRU安装架室内RRU安装架 | L85: 无 | M85: 平阳钱仓文化中心 | N85: 330326908000000994 | O85: 王智淳
A86: 85 | B86: 温州铁塔党委会纪要〔2024〕第27期 | C86: 330300445809 | D86: 空调控制器 | E86: 空调控制器 | F86: 329.29 | G86: 142.93 | H86: 186.36 | I86: 1.00 | J86: 个 | K86: 普通空调基站智能空调控制器 | L86: 无 | M86: 平阳钱仓文化中心 | N86: 330326908000000994 | O86: 王智淳
A87: 86 | B87: 温州铁塔党委会纪要〔2024〕第27期 | C87: 330300106902 | D87: 3P空调 | E87: 3P空调 | F87: 1471.51 | G87: 44.15 | H87: 1427.36 | I87: 1.00 | J87: 台 | K87: 3P | L87: 大金 | M87: 温州双堡西路 | N87: 330304908000000049 | O87: 王智淳
A88: 87 | B88: 温州铁塔党委会纪要〔2024〕第27期 | C88: 330300106903 | D88: 3P空调 | E88: 3P空调 | F88: 291 | G88: 8.73 | H88: 282.27 | I88: 1.00 | J88: 台 | K88: 3P | L88: 大金 | M88: 温州双堡西路 | N88: 330304908000000049 | O88: 王智淳
A89: 88 | B89: 温州铁塔党委会纪要〔2024〕第27期 | C89: 330300107509 | D89: 组合式开关电源 | E89: 组合式开关电源 | F89: 1509.88 | G89: 45.3 | H89: 1464.58 | I89: 1.00 | J89: 架 | K89: 组合式 | L89: 中兴 | M89: 温州双堡西路 | N89: 330304908000000049 | O89: 王智淳
A90: 89 | B90: 温州铁塔党委会纪要〔2024〕第27期 | C90: 330300126903 | D90: 电表箱 | E90: 电表箱 | F90: 2032.15 | G90: 60.96 | H90: 1971.19 | I90: 1.00 | J90: 个 | K90: NXK1 | L90: 正泰 | M90: 温州双堡西路 | N90: 330304908000000049 | O90: 王智淳
A91: 90 | B91: 温州铁塔党委会纪要〔2024〕第27期 | C91: 330300159246 | D91: 交流配电箱 | E91: 交流配电箱 | F91: 292.32 | G91: 8.77 | H91: 283.55 | I91: 1.00 | J91: 个 | K91: PZ30 | L91: 杭开电气 | M91: 温州双堡西路 | N91: 330304908000000049 | O91: 王智淳
A92: 91 | B92: 温州铁塔党委会纪要〔2024〕第27期 | C92: 330300388388 | D92: 门禁模块 | E92: 门禁模块 | F92: 294.82 | G92: 16.79 | H92: 278.03 | I92: 1.00 | J92: 个 | K92: 监控传感器智能门禁配套物资电源转换模块 | L92: 无 | M92: 温州双堡西路 | N92: 330304908000000049 | O92: 王智淳
A93: 92 | B93: 温州铁塔党委会纪要〔2024〕第27期 | C93: 330300396988 | D93: 空调控制器 | E93: 空调控制器 | F93: 520.4 | G93: 57.7 | H93: 462.7 | I93: 1.00 | J93: 个 | K93: 普通空调基站智能空调控制器 | L93: 无 | M93: 温州双堡西路 | N93: 330304908000000049 | O93: 王智淳
A94: 93 | B94: 温州铁塔党委会纪要〔2024〕第27期 | C94: 330300398016 | D94: FSU | E94: FSU | F94: 2662.8 | G94: 295.01 | H94: 2367.79 | I94: 1.00 | J94: 个 | K94: 主设备室内型成套设备基本配置模型 | L94: 大华 | M94: 温州双堡西路 | N94: 330304908000000049 | O94: 王智淳
A95: 94 | B95: 温州铁塔党委会纪要〔2024〕第27期 | C95: 330300398180 | D95: 电表箱 | E95: 电表箱 | F95: 714.02 | G95: 88.72 | H95: 625.3 | I95: 1.00 | J95: 个 | K95: 通用配件电表箱250mm*400mm*140mm | L95: 无 | M95: 温州双堡西路 | N95: 330304908000000049 | O95: 王智淳
A96: 95 | B96: 温州铁塔党委会纪要〔2024〕第27期 | C96: 330300387020 | D96: 门禁模块 | E96: 门禁模块 | F96: 292.32 | G96: 12.7 | H96: 279.62 | I96: 1 | J96: 个 | K96: 监控传感器智能门禁配套物资电源转换模块 | L96: 无 | M96: 永嘉瓯北三桥工业区 | N96: 330324908000000700 | O96: 王智淳
A97: 96 | B97: 温州铁塔党委会纪要〔2024〕第27期 | C97: 330300145058 | D97: 组合式开关电源 | E97: 组合式开关电源 | F97: 11670.25 | G97: 350.11 | H97: 11320.14 | I97: 1 | J97: 架 | K97: 组合式 | L97: 中恒 | M97: 永嘉瓯北三桥工业区 | N97: 330324908000000700 | O97: 王智淳
A98: 97 | B98: 温州铁塔党委会纪要〔2024〕第27期 | C98: 330300402737 | D98: 整流模块 | E98: 整流模块 | F98: 1331.57 | G98: 201.36 | H98: 1130.21 | I98: 1.00 | J98: 个 | K98: 30A高效 | L98: 无 | M98: 永嘉瓯北三桥工业区 | N98: 330324908000000700 | O98: 王智淳
A99: 98 | B99: 温州铁塔党委会纪要〔2024〕第27期 | C99: 330300415369 | D99: 整流模块 | E99: 整流模块 | F99: 2890.24 | G99: 629.42 | H99: 2260.82 | I99: 3.00 | J99: 个 | K99: 30A高效 | L99: 无 | M99: 永嘉瓯北三桥工业区 | N99: 330324908000000700 | O99: 王智淳
A100: 99 | B100: 温州铁塔党委会纪要〔2024〕第27期 | C100: 330300149357 | D100: 3P空调 | E100: 3P空调 | F100: 3633.76 | G100: 109.01 | H100: 3524.75 | I100: 1 | J100: 台 | K100: 3P | L100: 广州华凌空调设备有限公司 | M100: 永嘉瓯北三桥工业区 | N100: 330324908000000700 | O100: 王智淳
A101: 100 | B101: 温州铁塔党委会纪要〔2024〕第27期 | C101: 330300162282 | D101: 交流配电箱 | E101: 交流配电箱 | F101: 4607.25 | G101: 138.22 | H101: 4469.03 | I101: 1.00 | J101: 个 | K101: 配电箱-48V-100A | L101: 公司定制 | M101: 永嘉瓯北三桥工业区 | N101: 330324908000000700 | O101: 王智淳
A102: 101 | B102: 温州铁塔党委会纪要〔2024〕第27期 | C102: 330300104279 | D102: 交流配电箱 | E102: 交流配电箱 | F102: 2448.3 | G102: 350.56 | H102: 2097.74 | I102: 1 | J102: 个 | K102: JXK | L102: 华润 | M102: 温州龙湾龙湾宏兴钢管 | N102: 330303908000000335 | O102: 王智淳
A103: 102 | B103: 温州铁塔党委会纪要〔2024〕第27期 | C103: 330300157124 | D103: 组合式开关电源 | E103: 组合式开关电源 | F103: 5263.36 | G103: 157.9 | H103: 5105.46 | I103: 1.00 | J103: 架 | K103: 组合式 | L103: 施威特克电源（中国）公司 | M103: 温州龙湾龙湾宏兴钢管 | N103: 330303908000000335 | O103: 王智淳
A104: 103 | B104: 温州铁塔党委会纪要〔2024〕第27期 | C104: 330300423637 | D104: 整流模块 | E104: 整流模块 | F104: 4294.4 | G104: 1228.07 | H104: 3066.33 | I104: 4.00 | J104: 个 | K104: 30A高效 | L104: 无 | M104: 温州龙湾龙湾宏兴钢管 | N104: 330303908000000335 | O104: 王智淳
A105: 104 | B105: 温州铁塔党委会纪要〔2024〕第27期 | C105: 330300409578 | D105: 门禁模块 | E105: 门禁模块 | F105: 291.38 | G105: 55.84 | H105: 235.54 | I105: 1.00 | J105: 个 | K105: 监控传感器智能门禁配套物资电源转换模块 | L105: 无 | M105: 温州龙湾龙湾宏兴钢管 | N105: 330303908000000335 | O105: 王智淳
A106: 105 | B106: 温州铁塔党委会纪要〔2024〕第27期 | C106: 330300427865 | D106: 空调控制器 | E106: 空调控制器 | F106: 650.22 | G106: 203.36 | H106: 446.86 | I106: 1.00 | J106: 个 | K106: 普通空调基站智能空调控制器 | L106: 无 | M106: 温州龙湾龙湾宏兴钢管 | N106: 330303908000000335 | O106: 王智淳
A107: 106 | B107: 温州铁塔党委会纪要〔2024〕第27期 | C107: 330300109573 | D107: 组合式开关电源 | E107: 组合式开关电源 | F107: 11387.1 | G107: 341.61 | H107: 11045.49 | I107: 1.00 | J107: 架 | K107: 组合式 | L107: 中达 | M107: 瑞安董五路口 | N107: 330381908000000907 | O107: 王智淳
A108: 107 | B108: 温州铁塔党委会纪要〔2024〕第27期 | C108: 330300127530 | D108: 3P空调 | E108: 3P空调 | F108: 932.65 | G108: 27.98 | H108: 904.67 | I108: 1.00 | J108: 台 | K108: 3P | L108: 三菱 | M108: 瑞安董五路口 | N108: 330381908000000907 | O108: 王智淳
A109: 108 | B109: 温州铁塔党委会纪要〔2024〕第27期 | C109: 330300134446 | D109: 3P空调 | E109: 3P空调 | F109: 932.65 | G109: 27.98 | H109: 904.67 | I109: 1.00 | J109: 台 | K109: 3P | L109: 三菱 | M109: 瑞安董五路口 | N109: 330381908000000907 | O109: 王智淳
A110: 109 | B110: 温州铁塔党委会纪要〔2024〕第27期 | C110: 330300170200 | D110: 交流配电箱 | E110: 交流配电箱 | F110: 5230.48 | G110: 156.91 | H110: 5073.57 | I110: 1.00 | J110: 个 | K110: 直流配电箱 | L110: 邮电 | M110: 瑞安董五路口 | N110: 330381908000000907 | O110: 王智淳
A111: 110 | B111: 温州铁塔党委会纪要〔2024〕第27期 | C111: 330300364770 | D111: 门禁模块 | E111: 门禁模块 | F111: 94.79 | G111: 2.84 | H111: 91.95 | I111: 1.00 | J111: 个 | K111: 监控传感器智能门禁配套物资电源转换模块 | L111: 无 | M111: 瑞安董五路口 | N111: 330381908000000907 | O111: 王智淳
A112: 111 | B112: 温州铁塔党委会纪要〔2024〕第27期 | C112: 330300410004 | D112: FSU | E112: FSU | F112: 2678.04 | G112: 513.12 | H112: 2164.92 | I112: 1.00 | J112: 个 | K112: 主设备室内型成套设备基本配置模型 | L112: 大华 | M112: 瑞安董五路口 | N112: 330381908000000907 | O112: 王智淳
A113: 112 | B113: 温州铁塔党委会纪要〔2024〕第27期 | C113: 330300416842 | D113: 空调控制器 | E113: 空调控制器 | F113: 739.82 | G113: 181.63 | H113: 558.19 | I113: 1.00 | J113: 个 | K113: 普通空调基站智能空调控制器 | L113: 无 | M113: 瑞安董五路口 | N113: 330381908000000907 | O113: 王智淳
A114: 113 | B114: 温州铁塔党委会纪要〔2024〕第27期 | C114: 330300359116 | D114: FSU | E114: FSU | F114: 3054.23 | G114: 91.63 | H114: 2962.6 | I114: 1.00 | J114: 个 | K114: 主设备室内型成套设备基本配置模型 | L114: 高新兴 | M114: 乐清白石天堂村 | N114: 330382500000000327 | O114: 王智淳
A115: 114 | B115: 温州铁塔党委会纪要〔2024〕第27期 | C115: 330300359120 | D115: 交流配电箱 | E115: 交流配电箱 | F115: 2354.53 | G115: 70.64 | H115: 2283.89 | I115: 1.00 | J115: 个 | K115: 交流配电箱三相（含市电油机手动转换开关）380V/100A室内型 | L115: 无 | M115: 乐清白石天堂村 | N115: 330382500000000327 | O115: 王智淳
A116: 115 | B116: 温州铁塔党委会纪要〔2024〕第27期 | C116: 330300359121 | D116: 油机切换箱 | E116: 油机切换箱 | F116: 1748.49 | G116: 52.45 | H116: 1696.04 | I116: 1.00 | J116: 个 | K116: 油机切换箱(三相)-100A/380V | L116: 无 | M116: 乐清白石天堂村 | N116: 330382500000000327 | O116: 王智淳
A117: 116 | B117: 温州铁塔党委会纪要〔2024〕第27期 | C117: 330300359122 | D117: 3P空调 | E117: 3P空调 | F117: 7714.09 | G117: 231.42 | H117: 7482.67 | I117: 1.00 | J117: 台 | K117: 3P | L117: 无 | M117: 乐清白石天堂村 | N117: 330382500000000327 | O117: 王智淳
A118: 117 | B118: 温州铁塔党委会纪要〔2024〕第27期 | C118: 330300359123 | D118: 组合式开关电源 | E118: 组合式开关电源 | F118: 6188.3 | G118: 185.65 | H118: 6002.65 | I118: 1.00 | J118: 架 | K118: 组合式 | L118: 中恒 | M118: 乐清白石天堂村 | N118: 330382500000000327 | O118: 王智淳
A119: 118 | B119: 温州铁塔党委会纪要〔2024〕第27期 | C119: 330300359124 | D119: 走线架 | E119: 走线架 | F119: 93950.69 | G119: 68600.37 | H119: 25350.32 | I119: 3.00 | J119: 个 | K119: / | L119: / | M119: 乐清白石天堂村 | N119: 330382500000000327 | O119: 王智淳
A120: 119 | B120: 温州铁塔党委会纪要〔2024〕第27期 | C120: 330300121619 | D120: 3P空调 | E120: 3P空调 | F120: 4685.68 | G120: 140.57 | H120: 4545.11 | I120: 1.00 | J120: 台 | K120: 3P | L120: 华凌 | M120: 乐清大荆安然 | N120: 330382908000000924 | O120: 王智淳
A121: 120 | B121: 温州铁塔党委会纪要〔2024〕第27期 | C121: 330300157127 | D121: 组合式开关电源 | E121: 组合式开关电源 | F121: 8371.49 | G121: 251.14 | H121: 8120.35 | I121: 1.00 | J121: 架 | K121: 组合式 | L121: 中恒 | M121: 乐清大荆安然 | N121: 330382908000000924 | O121: 王智淳
A122: 121 | B122: 温州铁塔党委会纪要〔2024〕第27期 | C122: 330300164493 | D122: 交流配电箱 | E122: 交流配电箱 | F122: 2149.6 | G122: 64.49 | H122: 2085.11 | I122: 1.00 | J122: 个 | K122: XL-21 | L122: 无 | M122: 乐清大荆安然 | N122: 330382908000000924 | O122: 王智淳
A123: 122 | B123: 温州铁塔党委会纪要〔2024〕第27期 | C123: 330300378638 | D123: rru架 | E123: rru架 | F123: 1636.79 | G123: 49.1 | H123: 1587.69 | I123: 1.00 | J123: 个 | K123: RRU安装架室内RRU安装架 | L123: 无 | M123: 乐清大荆安然 | N123: 330382908000000924 | O123: 王智淳
A124: 123 | B124: 温州铁塔党委会纪要〔2024〕第27期 | C124: 330300407740 | D124: 门禁模块 | E124: 门禁模块 | F124: 291.38 | G124: 55.84 | H124: 235.54 | I124: 1.00 | J124: 个 | K124: 监控传感器智能门禁配套物资电源转换模块 | L124: 无 | M124: 乐清大荆安然 | N124: 330382908000000924 | O124: 王智淳
A125: 124 | B125: 温州铁塔党委会纪要〔2024〕第27期 | C125: 330300410301 | D125: FSU | E125: FSU | F125: 2678.04 | G125: 513.12 | H125: 2164.92 | I125: 1.00 | J125: 个 | K125: 主设备室内型成套设备基本配置模型 | L125: 大华 | M125: 乐清大荆安然 | N125: 330382908000000924 | O125: 王智淳
A126: 125 | B126: 温州铁塔党委会纪要〔2024〕第27期 | C126: 330300419183 | D126: 空调控制器 | E126: 空调控制器 | F126: 362.3 | G126: 93.9 | H126: 268.4 | I126: 1.00 | J126: 个 | K126: 普通空调基站智能空调控制器控制器红外模块 | L126: 无 | M126: 乐清大荆安然 | N126: 330382908000000924 | O126: 王智淳
A127: 126 | B127: 温州铁塔党委会纪要〔2024〕第27期 | C127: 330300328064 | D127: 配套综合柜 | E127: 配套综合柜 | F127: 1509.25 | G127: 45.28 | H127: 1463.97 | I127: 1.00 | J127: 台 | K127: / | L127: 无 | M127: 乐清中雁西漈 | N127: 330382010000000375 | O127: 王智淳
A128: 127 | B128: 温州铁塔党委会纪要〔2024〕第27期 | C128: 330300328066 | D128: 组合式开关电源 | E128: 组合式开关电源 | F128: 10383.99 | G128: 311.52 | H128: 10072.47 | I128: 1.00 | J128: 架 | K128: 组合式 | L128: 无 | M128: 乐清中雁西漈 | N128: 330382010000000375 | O128: 王智淳
A129: 128 | B129: 温州铁塔党委会纪要〔2024〕第27期 | C129: 330300328068 | D129: 3P空调 | E129: 3P空调 | F129: 7554.26 | G129: 226.63 | H129: 7327.63 | I129: 1.00 | J129: 台 | K129: 3P | L129: 无 | M129: 乐清中雁西漈 | N129: 330382010000000375 | O129: 王智淳
A130: 129 | B130: 温州铁塔党委会纪要〔2024〕第27期 | C130: 330300331599 | D130: 交流配电箱 | E130: 交流配电箱 | F130: 3776.52 | G130: 113.3 | H130: 3663.22 | I130: 1.00 | J130: 个 | K130: 壁挂式380V/100A内置120KASPD（1路输入，需另配油机切换箱） | L130: 无 | M130: 乐清中雁西漈 | N130: 330382010000000375 | O130: 王智淳
A131: 130 | B131: 温州铁塔党委会纪要〔2024〕第27期 | C131: 330300368435 | D131: 电表 | E131: 电表 | F131: 241.97 | G131: 7.26 | H131: 234.71 | I131: 1.00 | J131: 个 | K131: 供电计量设备 | L131: 无 | M131: 乐清中雁西漈 | N131: 330382010000000375 | O131: 王智淳
A132: 131 | B132: 温州铁塔党委会纪要〔2024〕第27期 | C132: 330300369477 | D132: FSU | E132: FSU | F132: 2905.33 | G132: 87.16 | H132: 2818.17 | I132: 1.00 | J132: 个 | K132: 主设备室内型成套设备 | L132: 无 | M132: 乐清中雁西漈 | N132: 330382010000000375 | O132: 王智淳
A133: 132 | B133: 温州铁塔党委会纪要〔2024〕第27期 | C133: 330300379793 | D133: rru架 | E133: rru架 | F133: 1636.79 | G133: 49.1 | H133: 1587.69 | I133: 1.00 | J133: 个 | K133: RRU安装架室内RRU安装架 | L133: 无 | M133: 乐清中雁西漈 | N133: 330382010000000375 | O133: 王智淳
A134: 133 | B134: 温州铁塔党委会纪要〔2024〕第27期 | C134: 330300421290 | D134: 霍尔传感器 | E134: 霍尔传感器 | F134: 495.43 | G134: 279.19 | H134: 216.24 | I134: 1.00 | J134: 个 | K134: 霍尔传感器电流型输入200A/输出4-20mA | L134: 无 | M134: 乐清中雁西漈 | N134: 330382010000000375 | O134: 王智淳
A135: 134 | B135: 温州铁塔党委会纪要〔2024〕第27期 | C135: 330300124492 | D135: 3P空调 | E135: 3P空调 | F135: 231.75 | G135: 6.95 | H135: 224.8 | I135: 1.00 | J135: 台 | K135: 3P | L135: 华凌 | M135: 乐清白石凤凰工业区 | N135: 330382908000001251 | O135: 王智淳
A136: 135 | B136: 温州铁塔党委会纪要〔2024〕第27期 | C136: 330300169496 | D136: 组合式开关电源 | E136: 组合式开关电源 | F136: 12833.68 | G136: 385.01 | H136: 12448.67 | I136: 1.00 | J136: 架 | K136: 组合式 | L136: 中恒 | M136: 乐清白石凤凰工业区 | N136: 330382908000001251 | O136: 王智淳
A137: 136 | B137: 温州铁塔党委会纪要〔2024〕第27期 | C137: 330300169499 | D137: 交流配电箱 | E137: 交流配电箱 | F137: 2463.56 | G137: 73.91 | H137: 2389.65 | I137: 1.00 | J137: 个 | K137: JXK | L137: 中天 | M137: 乐清白石凤凰工业区 | N137: 330382908000001251 | O137: 王智淳
A138: 137 | B138: 温州铁塔党委会纪要〔2024〕第27期 | C138: 330300378568 | D138: rru架 | E138: rru架 | F138: 1636.79 | G138: 49.1 | H138: 1587.69 | I138: 1.00 | J138: 个 | K138: RRU安装架室内RRU安装架 | L138: 无 | M138: 乐清白石凤凰工业区 | N138: 330382908000001251 | O138: 王智淳
A139: 138 | B139: 温州铁塔党委会纪要〔2024〕第27期 | C139: 330300413078 | D139: FSU | E139: FSU | F139: 2663.61 | G139: 582.3 | H139: 2081.31 | I139: 1.00 | J139: 个 | K139: 主设备室内型成套设备基本配置模型 | L139: 无 | M139: 乐清白石凤凰工业区 | N139: 330382908000001251 | O139: 王智淳
A140: 139 | B140: 温州铁塔党委会纪要〔2024〕第27期 | C140: 330300445123 | D140: 空调控制器 | E140: 空调控制器 | F140: 362.3 | G140: 152.31 | H140: 209.99 | I140: 1.00 | J140: 个 | K140: 普通空调基站智能空调控制器控制器红外模块 | L140: 无 | M140: 乐清白石凤凰工业区 | N140: 330382908000001251 | O140: 王智淳
A141: 140 | B141: 温州铁塔党委会纪要〔2024〕第27期 | C141: 330300103212 | D141: 交流配电箱 | E141: 交流配电箱 | F141: 2325.85 | G141: 69.78 | H141: 2256.07 | I141: 1.00 | J141: 个 | K141: ZBX5-F | L141: 无 | M141: 文成龙川马岙头 | N141: 330328908000000021 | O141: 王智淳
A142: 141 | B142: 温州铁塔党委会纪要〔2024〕第27期 | C142: 330300116044 | D142: 油机切换箱 | E142: 油机切换箱 | F142: 2179.06 | G142: 65.37 | H142: 2113.69 | I142: 1.00 | J142: 个 | K142: NXK1 | L142: 无 | M142: 文成龙川马岙头 | N142: 330328908000000021 | O142: 王智淳
A143: 142 | B143: 温州铁塔党委会纪要〔2024〕第27期 | C143: 330300136800 | D143: 组合式开关电源 | E143: 组合式开关电源 | F143: 1433.08 | G143: 42.99 | H143: 1390.09 | I143: 1.00 | J143: 架 | K143: 组合式 | L143: 无 | M143: 文成龙川马岙头 | N143: 330328908000000021 | O143: 王智淳
A144: 143 | B144: 温州铁塔党委会纪要〔2024〕第27期 | C144: 330300164985 | D144: 3P空调 | E144: 3P空调 | F144: 291 | G144: 8.73 | H144: 282.27 | I144: 1.00 | J144: 台 | K144: 3P | L144: 无 | M144: 文成龙川马岙头 | N144: 330328908000000021 | O144: 王智淳
A145: 144 | B145: 温州铁塔党委会纪要〔2024〕第27期 | C145: 330300390519 | D145: 电控锁 | E145: 电控锁 | F145: 655 | G145: 497.5 | H145: 157.5 | I145: 1.00 | J145: 个 | K145: 电控锁 | L145: 无 | M145: 文成龙川马岙头 | N145: 330328908000000021 | O145: 王智淳
A146: 145 | B146: 温州铁塔党委会纪要〔2024〕第27期 | C146: 330300100621 | D146: 3P空调 | E146: 3P空调 | F146: 291 | G146: 8.73 | H146: 282.27 | I146: 1.00 | J146: 台 | K146: 3P | L146: 大金 | M146: 温州度山强宇管件 | N146: 330303908000000860 | O146: 王智淳
A147: 146 | B147: 温州铁塔党委会纪要〔2024〕第27期 | C147: 330300100622 | D147: 3P空调 | E147: 3P空调 | F147: 291 | G147: 8.73 | H147: 282.27 | I147: 1.00 | J147: 台 | K147: 3P | L147: 大金 | M147: 温州度山强宇管件 | N147: 330303908000000860 | O147: 王智淳
A148: 147 | B148: 温州铁塔党委会纪要〔2024〕第27期 | C148: 330300100969 | D148: 交流配电箱 | E148: 交流配电箱 | F148: 2757.71 | G148: 82.73 | H148: 2674.98 | I148: 1.00 | J148: 个 | K148: 含浪涌抑制器位置 | L148: 浙宝 | M148: 温州度山强宇管件 | N148: 330303908000000860 | O148: 王智淳
A149: 148 | B149: 温州铁塔党委会纪要〔2024〕第27期 | C149: 330300137816 | D149: 组合式开关电源 | E149: 组合式开关电源 | F149: 2667.55 | G149: 80.03 | H149: 2587.52 | I149: 1.00 | J149: 架 | K149: 组合式 | L149: 中兴 | M149: 温州度山强宇管件 | N149: 330303908000000860 | O149: 王智淳
A150: 149 | B150: 温州铁塔党委会纪要〔2024〕第27期 | C150: 330300147660 | D150: 交流配电箱 | E150: 交流配电箱 | F150: 2757.71 | G150: 82.73 | H150: 2674.98 | I150: 1.00 | J150: 个 | K150: ZBX5-F | L150: 浙宝 | M150: 温州度山强宇管件 | N150: 330303908000000860 | O150: 王智淳
A151: 150 | B151: 温州铁塔党委会纪要〔2024〕第27期 | C151: 330300383379 | D151: FSU | E151: FSU | F151: 2792.54 | G151: 83.78 | H151: 2708.76 | I151: 1.00 | J151: 个 | K151: 主设备室内型成套设备基本配置模型 | L151: 无 | M151: 温州度山强宇管件 | N151: 330303908000000860 | O151: 王智淳
A152: 151 | B152: 温州铁塔党委会纪要〔2024〕第27期 | C152: 330300399570 | D152: 空调控制器 | E152: 空调控制器 | F152: 583.76 | G152: 72.56 | H152: 511.2 | I152: 1.00 | J152: 个 | K152: 普通空调基站智能空调控制器 | L152: 无 | M152: 温州度山强宇管件 | N152: 330303908000000860 | O152: 王智淳
A153: 152 | B153: 温州铁塔党委会纪要〔2024〕第27期 | C153: 330300306685 | D153: 智能通风设备 | E153: 智能通风设备 | F153: 2377.81 | G153: 71.33 | H153: 2306.48 | I153: 1.00 | J153: 个 | K153: 风量1800 | L153: 奥维 | M153: 温州度山强宇管件 | N153: 330303908000000860 | O153: 王智淳
A154: 153 | B154: 温州铁塔党委会纪要〔2024〕第27期 | C154: 330300445447 | D154: 空调控制器 | E154: 空调控制器 | F154: 837.99 | G154: 352.4 | H154: 485.59 | I154: 1.00 | J154: 个 | K154: 普通空调基站智能空调控制器 | L154: 无 | M154: 温州龙湾沙前街-2 | N154: 330303908000001025 | O154: 王智淳
A155: 154 | B155: 温州铁塔党委会纪要〔2024〕第27期 | C155: 330300112438 | D155: 组合式开关电源 | E155: 组合式开关电源 | F155: 2020.89 | G155: 60.63 | H155: 1960.26 | I155: 1.00 | J155: 架 | K155: 组合式 | L155: 艾默生 | M155: 温州龙湾沙前街-2 | N155: 330303908000001025 | O155: 王智淳
A156: 155 | B156: 温州铁塔党委会纪要〔2024〕第27期 | C156: 330300143108 | D156: 3P空调 | E156: 3P空调 | F156: 291 | G156: 8.73 | H156: 282.27 | I156: 1.00 | J156: 台 | K156: 3P | L156: 大金 | M156: 温州龙湾沙前街-2 | N156: 330303908000001025 | O156: 王智淳
A157: 156 | B157: 温州铁塔党委会纪要〔2024〕第27期 | C157: 330300143109 | D157: 3P空调 | E157: 3P空调 | F157: 857.86 | G157: 25.74 | H157: 832.12 | I157: 1.00 | J157: 台 | K157: 3P | L157: 大金 | M157: 温州龙湾沙前街-2 | N157: 330303908000001025 | O157: 王智淳
A158: 157 | B158: 温州铁塔党委会纪要〔2024〕第27期 | C158: 330300169965 | D158: 交流配电箱 | E158: 交流配电箱 | F158: 2757.71 | G158: 82.73 | H158: 2674.98 | I158: 1.00 | J158: 个 | K158: 双投开关：HS11-200-4P×1 | L158: 浙宝 | M158: 温州龙湾沙前街-2 | N158: 330303908000001025 | O158: 王智淳
A159: 158 | B159: 温州铁塔党委会纪要〔2024〕第27期 | C159: 330300171293 | D159: 交流配电箱 | E159: 交流配电箱 | F159: 2757.71 | G159: 82.73 | H159: 2674.98 | I159: 1.00 | J159: 个 | K159: 双投开关：HS11-200-4P×1 | L159: 浙宝 | M159: 温州龙湾沙前街-2 | N159: 330303908000001025 | O159: 王智淳
A160: 159 | B160: 温州铁塔党委会纪要〔2024〕第27期 | C160: 330300300377 | D160: 铜线 | E160: 铜线 | F160: 2385.89 | G160: 71.58 | H160: 2314.31 | I160: 3.00 | J160: 米 | K160: / | L160: / | M160: 温州龙湾沙前街-2 | N160: 330303908000001025 | O160: 王智淳 | P160: 3米
A161: 160 | B161: 温州铁塔党委会纪要〔2024〕第27期 | C161: 330300007956 | D161: 组合式开关电源 | E161: 组合式开关电源 | F161: 10551.06 | G161: 316.53 | H161: 10234.53 | I161: 1.00 | J161: 架 | K161: 组合式 | L161: 中恒 | M161: 乐清雁荡杨树坑 | N161: 330382500000000045 | O161: 王智淳
A162: 161 | B162: 温州铁塔党委会纪要〔2024〕第27期 | C162: 330300007957 | D162: 3P空调 | E162: 3P空调 | F162: 6721.56 | G162: 201.65 | H162: 6519.91 | I162: 1.00 | J162: 台 | K162: 3P | L162: 美的 | M162: 乐清雁荡杨树坑 | N162: 330382500000000045 | O162: 王智淳
A163: 162 | B163: 温州铁塔党委会纪要〔2024〕第27期 | C163: 330300007963 | D163: 交流配电箱 | E163: 交流配电箱 | F163: 3797.35 | G163: 113.92 | H163: 3683.43 | I163: 1.00 | J163: 个 | K163: 壁挂式380V/100A 内置120KA SPD（1路输入） | L163: 无 | M163: 乐清雁荡杨树坑 | N163: 330382500000000045 | O163: 王智淳
A164: 163 | B164: 温州铁塔党委会纪要〔2024〕第27期 | C164: 330300311262 | D164: 交流配电箱 | E164: 交流配电箱 | F164: 16817.67 | G164: 504.53 | H164: 16313.14 | I164: 1.00 | J164: 个 | K164: 华为第三方及其它设备配电柜--48V-130000 | L164: 无 | M164: 乐清雁荡杨树坑 | N164: 330382500000000045 | O164: 王智淳
A165: 164 | B165: 温州铁塔党委会纪要〔2024〕第27期 | C165: 330300360972 | D165: 配套综合柜 | E165: 配套综合柜 | F165: 1328.53 | G165: 39.86 | H165: 1288.67 | I165: 1.00 | J165: 台 | K165: / | L165: 无 | M165: 乐清雁荡杨树坑 | N165: 330382500000000045 | O165: 王智淳
A166: 165 | B166: 温州铁塔党委会纪要〔2024〕第27期 | C166: 330300371828 | D166: 电表 | E166: 电表 | F166: 1744.22 | G166: 246.86 | H166: 1497.36 | I166: 1.00 | J166: 个 | K166: 交直流配电设备交流计量箱 | L166: 无 | M166: 乐清雁荡杨树坑 | N166: 330382500000000045 | O166: 王智淳
A167: 166 | B167: 温州铁塔党委会纪要〔2024〕第27期 | C167: 330300137916 | D167: 交流配电箱 | E167: 交流配电箱 | F167: 2806.99 | G167: 84.21 | H167: 2722.78 | I167: 1.00 | J167: 个 | K167: ZBX5-F | L167: 浙宝 | M167: 瑞安塘下新陈西路-2 | N167: 330381908000001479 | O167: 王智淳
A168: 167 | B168: 温州铁塔党委会纪要〔2024〕第27期 | C168: 330300151032 | D168: 交流配电箱 | E168: 交流配电箱 | F168: 2806.99 | G168: 84.21 | H168: 2722.78 | I168: 1.00 | J168: 个 | K168: 含浪涌抑制器位置 | L168: 浙宝 | M168: 瑞安塘下新陈西路-2 | N168: 330381908000001479 | O168: 王智淳
A169: 168 | B169: 温州铁塔党委会纪要〔2024〕第27期 | C169: 330300161870 | D169: 组合式开关电源 | E169: 组合式开关电源 | F169: 2082.83 | G169: 62.48 | H169: 2020.35 | I169: 1.00 | J169: 架 | K169: 组合式 | L169: 艾默生 | M169: 瑞安塘下新陈西路-2 | N169: 330381908000001479 | O169: 王智淳
A170: 169 | B170: 温州铁塔党委会纪要〔2024〕第27期 | C170: 330300301956 | D170: 铝线 | E170: 铝线 | F170: 2859 | G170: 85.77 | H170: 2773.23 | I170: 10.00 | J170: 米 | K170: / | L170: / | M170: 瑞安塘下新陈西路-2 | N170: 330381908000001479 | O170: 王智淳 | P170: 10米
A171: 170 | B171: 温州铁塔党委会纪要〔2024〕第27期 | C171: 330300327300 | D171: 3P空调 | E171: 3P空调 | F171: 8648.25 | G171: 259.45 | H171: 8388.8 | I171: 1.00 | J171: 台 | K171: 3P | L171: 无 | M171: 瑞安塘下新陈西路-2 | N171: 330381908000001479 | O171: 王智淳
A172: 171 | B172: 温州铁塔党委会纪要〔2024〕第27期 | C172: 330300397995 | D172: FSU | E172: FSU | F172: 2577.44 | G172: 285.55 | H172: 2291.89 | I172: 1.00 | J172: 个 | K172: 主设备室内型成套设备基本配置模型 | L172: 无 | M172: 瑞安塘下新陈西路-2 | N172: 330381908000001479 | O172: 王智淳
A173: 172 | B173: 温州铁塔党委会纪要〔2024〕第27期 | C173: 330300431873 | D173: 空调控制器 | E173: 空调控制器 | F173: 324.29 | G173: 105.76 | H173: 218.53 | I173: 1.00 | J173: 个 | K173: 普通空调基站智能空调控制器 | L173: 无 | M173: 瑞安塘下新陈西路-2 | N173: 330381908000001479 | O173: 王智淳
A174: 173 | B174: 温州铁塔党委会纪要〔2024〕第27期 | C174: 330300309887 | D174: 交流配电箱 | E174: 交流配电箱 | F174: 2903.73 | G174: 87.11 | H174: 2816.62 | I174: 1.00 | J174: 个 | K174: 配电箱（100A） | L174: 无 | M174: 乐清岭底潘公龙 | N174: 33038200000158 | O174: 王智淳
A175: 174 | B175: 温州铁塔党委会纪要〔2024〕第27期 | C175: 330300357476 | D175: 组合式开关电源 | E175: 组合式开关电源 | F175: 9922.22 | G175: 297.67 | H175: 9624.55 | I175: 1.00 | J175: 架 | K175: 组合式 | L175: 无 | M175: 乐清岭底潘公龙 | N175: 33038200000158 | O175: 王智淳
A176: 175 | B176: 温州铁塔党委会纪要〔2024〕第27期 | C176: 330300357477 | D176: 交流配电箱 | E176: 交流配电箱 | F176: 5006.36 | G176: 150.19 | H176: 4856.17 | I176: 1.00 | J176: 个 | K176: 交流配电箱（整机或机箱） | L176: 无 | M176: 乐清岭底潘公龙 | N176: 33038200000158 | O176: 王智淳
A177: 176 | B177: 温州铁塔党委会纪要〔2024〕第27期 | C177: 330300380573 | D177: rru架 | E177: rru架 | F177: 1636.79 | G177: 49.1 | H177: 1587.69 | I177: 1.00 | J177: 个 | K177: RRU安装架室内RRU安装架 | L177: 无 | M177: 乐清岭底潘公龙 | N177: 33038200000158 | O177: 王智淳
A178: 177 | B178: 温州铁塔党委会纪要〔2024〕第27期 | C178: 330300390860 | D178: 电控锁 | E178: 电控锁 | F178: 421.23 | G178: 321.35 | H178: 99.88 | I178: 1.00 | J178: 个 | K178: 电控锁 | L178: 无 | M178: 乐清岭底潘公龙 | N178: 33038200000158 | O178: 王智淳
A179: 178 | B179: 温州铁塔党委会纪要〔2024〕第27期 | C179: 330300390861 | D179: 门禁模块 | E179: 门禁模块 | F179: 292.32 | G179: 16.64 | H179: 275.68 | I179: 1.00 | J179: 个 | K179: 监控传感器智能门禁配套物资电源转换模块 | L179: 无 | M179: 乐清岭底潘公龙 | N179: 33038200000158 | O179: 王智淳
A180: 179 | B180: 温州铁塔党委会纪要〔2024〕第27期 | C180: 330300399245 | D180: 3P空调 | E180: 3P空调 | F180: 5043.64 | G180: 151.31 | H180: 4892.33 | I180: 1.00 | J180: 台 | K180: 3P | L180: 无 | M180: 乐清岭底潘公龙 | N180: 33038200000158 | O180: 王智淳
A181: 180 | B181: 温州铁塔党委会纪要〔2024〕第27期 | C181: 330300123977 | D181: 交流配电箱 | E181: 交流配电箱 | F181: 442.86 | G181: 13.29 | H181: 429.57 | I181: 1.00 | J181: 个 | K181: 基站配电箱 | L181: 正泰 | M181: 永嘉桥头白垟村 | N181: 330324908000000400 | O181: 王智淳
A182: 181 | B182: 温州铁塔党委会纪要〔2024〕第27期 | C182: 330300123979 | D182: 油机切换箱 | E182: 油机切换箱 | F182: 306.65 | G182: 9.2 | H182: 297.45 | I182: 1.00 | J182: 个 | K182: 基站交流切换箱 | L182: 正泰 | M182: 永嘉桥头白垟村 | N182: 330324908000000400 | O182: 王智淳
A183: 182 | B183: 温州铁塔党委会纪要〔2024〕第27期 | C183: 330300136840 | D183: 交流配电箱 | E183: 交流配电箱 | F183: 883.91 | G183: 26.52 | H183: 857.39 | I183: 1.00 | J183: 台 | K183: PS48400-2C-50 | L183: 艾默生 | M183: 永嘉桥头白垟村 | N183: 330324908000000400 | O183: 王智淳
A184: 183 | B184: 温州铁塔党委会纪要〔2024〕第27期 | C184: 330300149854 | D184: 3P空调 | E184: 3P空调 | F184: 873 | G184: 26.19 | H184: 846.81 | I184: 1.00 | J184: 台 | K184: 3P | L184: 焕增工贸 | M184: 永嘉桥头白垟村 | N184: 330324908000000400 | O184: 王智淳
A185: 184 | B185: 温州铁塔党委会纪要〔2024〕第27期 | C185: 330300149855 | D185: 3P空调 | E185: 3P空调 | F185: 786.78 | G185: 23.6 | H185: 763.18 | I185: 1.00 | J185: 台 | K185: 3P | L185: 大金 | M185: 永嘉桥头白垟村 | N185: 330324908000000400 | O185: 王智淳
A186: 185 | B186: 温州铁塔党委会纪要〔2024〕第27期 | C186: 330300169444 | D186: 组合式开关电源 | E186: 组合式开关电源 | F186: 4610.7 | G186: 138.32 | H186: 4472.38 | I186: 1.00 | J186: 架 | K186: 组合式 | L186: 杭州中恒电气股份有限公司 | M186: 永嘉桥头白垟村 | N186: 330324908000000400 | O186: 王智淳
A187: 186 | B187: 温州铁塔党委会纪要〔2024〕第27期 | C187: 330300364089 | D187: 门禁模块 | E187: 门禁模块 | F187: 94.39 | G187: 2.83 | H187: 91.56 | I187: 1.00 | J187: 个 | K187: 监控传感器智能门禁配套物资电源转换模块 | L187: 无 | M187: 永嘉桥头白垟村 | N187: 330324908000000400 | O187: 王智淳
A188: 187 | B188: 温州铁塔党委会纪要〔2024〕第27期 | C188: 330300393038 | D188: 空调控制器 | E188: 空调控制器 | F188: 520.4 | G188: 50.68 | H188: 469.72 | I188: 1.00 | J188: 个 | K188: 普通空调基站智能空调控制器 | L188: 无 | M188: 永嘉桥头白垟村 | N188: 330324908000000400 | O188: 王智淳
A189: 188 | B189: 温州铁塔党委会纪要〔2024〕第27期 | C189: 330300146866 | D189: 交流配电箱 | E189: 交流配电箱 | F189: 2370.69 | G189: 71.12 | H189: 2299.57 | I189: 1.00 | J189: 个 | K189: 标配63A三相 | L189: 无 | M189: 温州江心西园 | N189: 330302908000000457 | O189: 王智淳
A190: 189 | B190: 温州铁塔党委会纪要〔2024〕第27期 | C190: 330300146867 | D190: 油机切换箱 | E190: 油机切换箱 | F190: 559.77 | G190: 16.79 | H190: 542.98 | I190: 1.00 | J190: 个 | K190: 标配63A三相 | L190: 科研所 | M190: 温州江心西园 | N190: 330302908000000457 | O190: 王智淳
A191: 190 | B191: 温州铁塔党委会纪要〔2024〕第27期 | C191: 330300304052 | D191: 组合式开关电源 | E191: 组合式开关电源 | F191: 1226.95 | G191: 36.81 | H191: 1190.14 | I191: 1.00 | J191: 架 | K191: 组合式 | L191: 艾默生 | M191: 温州江心西园 | N191: 330302908000000457 | O191: 王智淳
A192: 191 | B192: 温州铁塔党委会纪要〔2024〕第27期 | C192: 330300304106 | D192: 3P空调 | E192: 3P空调 | F192: 7271.46 | G192: 218.14 | H192: 7053.32 | I192: 1.00 | J192: 台 | K192: 3P | L192: 澳星 | M192: 温州江心西园 | N192: 330302908000000457 | O192: 王智淳
A193: 192 | B193: 温州铁塔党委会纪要〔2024〕第27期 | C193: 330300110640 | D193: 3P空调 | E193: 3P空调 | F193: 315 | G193: 9.45 | H193: 305.55 | I193: 1.00 | J193: 台 | K193: 3P | L193: 三菱 | M193: 温州江心西园 | N193: 330302908000000457 | O193: 王智淳
A194: 193 | B194: 温州铁塔党委会纪要〔2024〕第27期 | C194: 330300365562 | D194: 门禁模块 | E194: 门禁模块 | F194: 94.79 | G194: 2.84 | H194: 91.95 | I194: 1.00 | J194: 个 | K194: 监控传感器智能门禁配套物资电源转换模块 | L194: 无 | M194: 温州江心西园 | N194: 330302908000000457 | O194: 王智淳
A195: 194 | B195: 温州铁塔党委会纪要〔2024〕第27期 | C195: 330300428988 | D195: 空调控制器 | E195: 空调控制器 | F195: 361.48 | G195: 117.87 | H195: 243.61 | I195: 1.00 | J195: 个 | K195: 普通空调基站智能空调控制器控制器红外模块 | L195: 无 | M195: 温州江心西园 | N195: 330302908000000457 | O195: 王智淳
A196: 195 | B196: 温州铁塔党委会纪要〔2024〕第27期 | C196: 330300369602 | D196: FSU | E196: FSU | F196: 2475.46 | G196: 74.26 | H196: 2401.2 | I196: 1.00 | J196: 个 | K196: 主设备室外型成套设备 | L196: 邦讯 | M196: 苍南马站中魁 | N196: 330327908000000981 | O196: 王智淳 | P196: 无配件
A197: 196 | B197: 温州铁塔党委会纪要〔2024〕第27期 | C197: 330300370399 | D197: FSU | E197: FSU | F197: 2918.68 | G197: 87.56 | H197: 2831.12 | I197: 1.00 | J197: 个 | K197: 主设备室外型成套设备 | L197: 邦讯 | M197: 瓯海鹅湖搬迁 | N197: 33030401000149 | O197: 王智淳 | P197: 无配件
A198: 197 | B198: 温州铁塔党委会纪要〔2024〕第27期 | C198: 330300369377 | D198: FSU | E198: FSU | F198: 2469.45 | G198: 74.08 | H198: 2395.37 | I198: 1.00 | J198: 个 | K198: 主设备室外型成套设备 | L198: 邦讯 | M198: 瑞安安阳银都花苑搬迁 | N198: 330381500000000012 | O198: 王智淳 | P198: 无配件
A199: 198 | B199: 温州铁塔党委会纪要〔2024〕第27期 | C199: 330300401931 | D199: FSU | E199: FSU | F199: 2662.59 | G199: 402.75 | H199: 2259.84 | I199: 1.00 | J199: 个 | K199: 主设备室内型成套设备基本配置模型 | L199: 邦讯 | M199: 瑞安飞云工业区-2 | N199: 330381908000001183 | O199: 王智淳 | P199: 无配件
A200: 199 | B200: 温州铁塔党委会纪要〔2024〕第27期 | C200: 330300367999 | D200: FSU | E200: FSU | F200: 2773.9 | G200: 83.22 | H200: 2690.68 | I200: 1.00 | J200: 个 | K200: 主设备室内型成套设备基本配置模型 | L200: 邦讯 | M200: 瑞安龙湖中学 | N200: 330381908000001674 | O200: 王智淳 | P200: 无配件
... 160 more rows

Sheet 台州
A1: 序号 | B1: 报废批复文号 | C1: 资产编号 | D1: 资产来源 | E1: 资产名称 | F1: 资产类别名称 | G1: 资产原值 （元，不含税） | H1: 资产净值 （元，不含税） | I1: 累计折旧 | J1: 资产数量 | K1: 计量单位 （个/吨/米等） | L1: 单节电池电压（2V/12V） | M1: 规格型号 | N1: 生产厂家 | O1: 站点名称 | P1: 站点编码
A2: 1 | B2: 2024年台州公司第二十一次党委会会议纪要 | C2: 331000160826 | D2: 工程转入 | E2: 基站舒适空调3匹（柜式）（三相）-整机（单冷） | F2: 3匹室内外成套 | G2: 7925.35 | H2: 237.76 | I2: 7687.59 | J2: 1 | K2: 台 | M2: 基站舒适空调3匹（柜式）（三相）-整机（单冷） | O2: 玉环沙门纳克铸造公司 | P2: 331002908000000681
A3: 2 | B3: 2024年台州公司第二十一次党委会会议纪要 | C3: 331000210913_1 | D3: 工程转入 | E3: 一体化电源电池综合柜 | F3: 一体化机柜（空调型） | G3: 15955.45 | H3: 2632.21 | I3: 13323.24 | J3: 1 | K3: 个 | M3: 800*800*18001500W交流空调+300W直流空调、内置嵌入式高频开关电源、PU | O3: 临海杜桥胜利村南 | P3: 331082908000000796
A4: 3 | B4: 2024年台州公司第二十一次党委会会议纪要 | C4: 331000165744_1 | D4: 工程转入 | E4: 一体化机柜 | F4: 一体化机柜（风扇型） | G4: 6140.39 | H4: 184.21 | I4: 5956.18 | J4: 1 | K4: 个 | M4: (杭州中恒)-户外一体化电源-户外一体化电源 | O4: 临海台州医院门口 | P4: 331002908000000681
A5: 4 | B5: 2024年台州公司第二十一次党委会会议纪要 | C5: 331000165379 | D5: 工程转入 | E5: 一体化机柜 | F5: 一体化机柜（风扇型） | G5: 7927.09 | H5: 237.81 | I5: 7689.28 | J5: 1 | K5: 个 | M5: (中达电通)-户外一体化电源-户外一体化电源 | O5: 临海杜桥杜东小区(理想家园） | P5: 331002908000000681
A6: 5 | B6: 2024年台州公司第二十一次党委会会议纪要 | C6: 331000165374 | D6: 工程转入 | E6: 嵌入式开关电源 | F6: 嵌入式开关电源 | G6: 3519.33 | H6: 105.58 | I6: 3413.75 | J6: 1 | K6: 架 | M6: (中达电通)-开关电源及电源模块-开关电源 | O6: 临海杜桥杜东小区(理想家园） | P6: 331002908000000681
A7: 6 | B7: 2024年台州公司第二十一次党委会会议纪要 | C7: 331000165744_2 | D7: 工程转入 | E7: 嵌入式开关电源 | F7: 嵌入式开关电源 | G7: 1535.1 | H7: 46.05 | I7: 1489.05 | J7: 1 | K7: 架 | M7: (杭州中恒)-户外一体化电源-户外一体化电源 | O7: 临海台州医院门口 | P7: 331002908000000681
A8: 7 | B8: 2024年台州公司第二十一次党委会会议纪要 | C8: 331000156007 | D8: 存量收购 | E8: 一体化机柜 | F8: 一体化机柜（空调型） | G8: 11100 | H8: 333 | I8: 10767 | J8: 1 | K8: 个 | M8: 一体化机柜 | O8: 临海供电局 | P8: 331002908000000681
A9: 8 | B9: 2024年台州公司第二十一次党委会会议纪要 | C9: 331000165352 | D9: 工程转入 | E9: 一体化机柜 | F9: 一体化机柜（风扇型） | G9: 3921.41 | H9: 117.64 | I9: 3803.77 | J9: 1 | K9: 个 | M9: (杭州中恒)-户外一体化电源-电池柜 | O9: 临海杜桥蓝庭宾馆 | P9: 331002908000000681
A10: 9 | B10: 2024年台州公司第二十一次党委会会议纪要 | C10: 331000111862 | D10: 存量收购 | E10: 嵌入式开关电源 | F10: 组合开关电源 | G10: 1304.1 | H10: 39.12 | I10: 1264.98 | J10: 1 | K10: 架 | M10: 48V-600A(50A模块)-150 | O10: 临海供电局 | P10: 331021908000000821
A11: 10 | B11: 2024年台州公司第二十一次党委会会议纪要 | C11: 331000210395 | D11: 工程转入 | E11: 机房配套扩容资产 | F11: 模块 | G11: 303.52 | H11: 49.96 | I11: 253.56 | J11: 1 | K11: 个 | M11: 普通空调基站智能空调控制器 | O11: 仙居现代工业园区4 | P11: 331082908000000796
A12: 11 | B12: 2024年台州公司第二十一次党委会会议纪要 | C12: 331000117689 | D12: 存量收购 | E12: 组合开关电源 | F12: 组合开关电源 | G12: 899.35 | H12: 26.98 | I12: 872.37 | J12: 1 | K12: 架 | M12: 48V-450A(50A模块)-150 | O12: 临海汛桥二 | P12: 331082908001900931
A13: 12 | B13: 2024年台州公司第二十一次党委会会议纪要 | C13: 331000192933 | D13: 工程转入 | E13: 基站机房扩容资产 | F13: 走线架 | G13: 1373.4 | H13: 1035.96 | I13: 337.44 | J13: 1 | K13: 个 | M13: 室内走线架400mm室内走线架 | O13: 临海汛桥二 | P13: 331021908000000172
A14: 13 | B14: 2024年台州公司第二十一次党委会会议纪要 | C14: 331000234989 | D14: 工程转入 | E14: 基站机房扩容资产 | F14: 铜芯电缆 | G14: 748.76 | H14: 637.44 | I14: 111.32 | J14: 1 | K14: 根 | M14: 1KV以下电力电缆铜芯阻燃聚氯乙烯绝缘聚氯乙烯护套软电缆ZA-RVV 1*95mm2红 | O14: 临海汛桥二 | P14: 331082908000000796
A15: 14 | B15: 2024年台州公司第二十一次党委会会议纪要 | C15: 331000209671 | D15: 工程转入 | E15: 机房配套扩容资产 | F15: 模块 | G15: 302.65 | H15: 49.83 | I15: 252.82 | J15: 1 | K15: 个 | M15: 监控传感器智能门禁配套物资电源转换模块 | O15: 临海汛桥二 | P15: 331082908000000796
A16: 15 | B16: 2024年台州公司第二十一次党委会会议纪要 | C16: 331000164379 | D16: 工程转入 | E16: 一体化机柜 | F16: 一体化机柜（空调型） | G16: 10348.63 | H16: 310.46 | I16: 10038.17 | J16: 1 | K16: 个 | M16: —48V/200A(32A/3P*1预留4套BBU安装空间热交换) | O16: 天台实验小学附近 | P16: 331002908000000681
A17: 16 | B17: 2024年台州公司第二十一次党委会会议纪要 | C17: 331000157893 | D17: 工程转入 | E17: 外市电引入 | F17: 铜芯电缆 | G17: 11293.6 | H17: 1078.62 | I17: 10214.98 | J17: 1 | K17: 根 | M17: 0 | O17: 天台实验小学附近 | P17: 331002908000000681
A18: 17 | B18: 2024年台州公司第二十一次党委会会议纪要 | C18: 331000172255 | D18: 工程转入 | E18: 动力及环境监控单元 | F18: 动环监控 | G18: 4429.98 | H18: 132.9 | I18: 4297.08 | J18: 1 | K18: 个 | M18: 0 | O18: 天台实验小学附近 | P18: 331082908001901247
A19: 18 | B19: 2024年台州公司第二十一次党委会会议纪要 | C19: 331000271633 | D19: 工程转入 | E19: 变压器 | F19: 变压器（铜芯）S11-油式 | G19: 36106.24 | H19: 28446.44 | I19: 7659.8 | J19: 1 | K19: 台 | M19: 非模块化外市电引入高压（非模块化） | O19: 温岭太平北门 | P19: 331082908000000590
A20: 19 | B20: 2024年台州公司第二十一次党委会会议纪要 | C20: 331000135534 | D20: 存量收购 | E20: 交流配电箱 | F20: 交流配电箱 | G20: 509.57 | H20: 15.29 | I20: 494.28 | J20: 1 | K20: 个 | M20: JFF1 | O20: 临海大洋五家殿村-2 | P20: 331003908000000700
A21: 20 | B21: 2024年台州公司第二十一次党委会会议纪要 | C21: 331000120348 | D21: 存量收购 | E21: 空调-普通空调× | F21: 3匹室内外成套 | G21: 873 | H21: 26.19 | I21: 846.81 | J21: 1 | K21: 台 | M21: FVY71DQV2CB(柜机) | O21: 临海大洋五家殿村-2 | P21: 331082908001900147
A22: 21 | B22: 2024年台州公司第二十一次党委会会议纪要 | C22: 331000118792 | D22: 存量收购 | E22: 直流分配箱 | F22: 壁挂配电箱 | G22: 3958.2 | H22: 118.75 | I22: 3839.45 | J22: 1 | K22: 台 | M22: 63A | O22: 临海大洋五家殿村-2 | P22: 331004908000000051
A23: 22 | B23: 2024年台州公司第二十一次党委会会议纪要 | C23: 331000229491 | D23: 工程转入 | E23: 生产用房屋装修支出 | F23: 铜芯电缆 | G23: 413.4 | H23: 230.81 | I23: 182.59 | J23: 1 | K23: 根 | M23: 0 | O23: 临海大洋五家殿村-2 | P23: 331082908000000796
A24: 23 | B24: 2024年台州公司第二十一次党委会会议纪要 | C24: 331000135530 | D24: 存量收购 | E24: 油机转换箱 | F24: 油机转换箱 | G24: 224.51 | H24: 6.74 | I24: 217.77 | J24: 1 | K24: 个 | M24: NXK1 | O24: 临海大洋五家殿村-2 | P24: 331003908000000700
A25: 24 | B25: 2024年台州公司第二十一次党委会会议纪要 | C25: 331000202343 | D25: 工程转入 | E25: 机房配套扩容资产 | F25: 模块 | G25: 317.02 | H25: 26.61 | I25: 290.41 | J25: 1 | K25: 个 | M25: 普通空调基站智能空调控制器 | O25: 临海大洋五家殿村-2 | P25: 331082908000000796
A26: 25 | B26: 2024年台州公司第二十一次党委会会议纪要 | C26: 331000155717 | D26: 存量收购 | E26: 1KV以下电力电缆 | F26: 铜芯电缆 | G26: 3649.33 | H26: 551.9 | I26: 3097.43 | J26: 1 | K26: 根 | M26: RVV22-3×16+1×10 | O26: 临海大洋三期二 | P26: 331002908000000681
A27: 26 | B27: 2024年台州公司第二十一次党委会会议纪要 | C27: 331000144127 | D27: 存量收购 | E27: 组合开关电源 | F27: 组合开关电源 | G27: 6111.88 | H27: 183.36 | I27: 5928.52 | J27: 1 | K27: 架 | M27: 48V-600A(50A模块)-150 | O27: 临海大洋三期二 | P27: 331081908000001222
A28: 27 | B28: 2024年台州公司第二十一次党委会会议纪要 | C28: 331000119833 | D28: 存量收购 | E28: 专用空调 | F28: 3匹室内外成套 | G28: 3705.62 | H28: 111.17 | I28: 3594.45 | J28: 1 | K28: 台 | M28: KF-72LW-JH1SN（R2） | O28: 临海大洋三期二 | P28: 331002908000000179
A29: 28 | B29: 2024年台州公司第二十一次党委会会议纪要 | C29: 331000227098 | D29: 工程转入 | E29: 基站机房扩容资产 | F29: 铜芯电缆 | G29: 125.49 | H29: 103.79 | I29: 21.7 | J29: 1 | K29: 根 | M29: 1KV以下电力电缆铜芯阻燃聚氯乙烯绝缘聚氯乙烯护套软电缆ZA-RVV 1*16mm2红 | O29: 临海大洋三期二 | P29: 331082908000000796
A30: 29 | B30: 2024年台州公司第二十一次党委会会议纪要 | C30: 331000215605 | D30: 工程转入 | E30: 机房配套扩容资产 | F30: 模块 | G30: 305 | H30: 58.41 | I30: 246.59 | J30: 1 | K30: 个 | M30: 监控传感器智能门禁配套物资电源转换模块 | O30: 临海大洋三期二 | P30: 331082908000000796
A31: 30 | B31: 2024年台州公司第二十一次党委会会议纪要 | C31: 331000136317 | D31: 存量收购 | E31: 交流配电箱 | F31: 交流配电箱 | G31: 3901.91 | H31: 117.06 | I31: 3784.85 | J31: 1 | K31: 个 | M31: ZBX5-24 | O31: 路桥螺洋看守所 | P31: 331082908000000222
A32: 31 | B32: 2024年台州公司第二十一次党委会会议纪要 | C32: 331000140556 | D32: 存量收购 | E32: 组合开关电源 | F32: 组合开关电源 | G32: 898.2 | H32: 26.95 | I32: 871.25 | J32: 1 | K32: 架 | M32: PS48600-3-2900 | O32: 路桥螺洋看守所 | P32: 331021908000000291
A33: 32 | B33: 2024年台州公司第二十一次党委会会议纪要 | C33: 331000197341 | D33: 工程转入 | E33: 机房配套扩容资产 | F33: 模块 | G33: 65 | H33: 2.82 | I33: 62.18 | J33: 1 | K33: 个 | M33: 监控传感器智能门禁配套物资电源转换模块 | O33: 路桥螺洋看守所 | P33: 331021908000000172
A34: 33 | B34: 2024年台州公司第二十一次党委会会议纪要 | C34: 331000129821 | D34: 存量收购 | E34: 1KV以下电力电缆 | F34: 铝芯电缆 | G34: 3435.16 | H34: 519.52 | I34: 2915.64 | J34: 1 | K34: 根 | M34: RYY-4×25 | O34: 路桥螺洋看守所 | P34: 331082908000000545
A35: 34 | B35: 2024年台州公司第二十一次党委会会议纪要 | C35: 331000107142 | D35: 存量收购 | E35: 油机转换箱 | F35: 油机转换箱 | G35: 2518.84 | H35: 75.57 | I35: 2443.27 | J35: 1 | K35: 个 | M35: ZBX5-F | O35: 路桥螺洋看守所 | P35: 331081908000000847
A36: 35 | B36: 2024年台州公司第二十一次党委会会议纪要 | C36: 331000138683 | D36: 存量收购 | E36: 交流配电箱 | F36: 交流配电箱 | G36: 3901.91 | H36: 117.06 | I36: 3784.85 | J36: 1 | K36: 个 | M36: ZBX5-24 | O36: 温岭松门南港村 | P36: 331081908000000297
A37: 36 | B37: 2024年台州公司第二十一次党委会会议纪要 | C37: 331000303800 | D37: 工程转入 | E37: 基站机房扩容资产 | F37: 铜芯电缆 | G37: 91.28 | H37: 87.7 | I37: 3.58 | J37: 1 | K37: 根 | M37: 0 | O37: 温岭松门南港村 | P37: 331004500010002084
A38: 37 | B38: 2024年台州公司第二十一次党委会会议纪要 | C38: 331000129617 | D38: 存量收购 | E38: 油机转换箱 | F38: 油机转换箱 | G38: 2518.84 | H38: 75.57 | I38: 2443.27 | J38: 1 | K38: 个 | M38: ZBX5-F | O38: 温岭松门南港村 | P38: 331082908000000776
A39: 38 | B39: 2024年台州公司第二十一次党委会会议纪要 | C39: 331000116665 | D39: 存量收购 | E39: 组合开关电源 | F39: 组合开关电源 | G39: 899.35 | H39: 26.98 | I39: 872.37 | J39: 1 | K39: 架 | M39: 48V-600A(50A模块)-150 | O39: 温岭南港 | P39: 331024908000000085
A40: 39 | B40: 2024年台州公司第二十一次党委会会议纪要 | C40: 331000169741 | D40: 工程转入 | E40: 普通空调柜式 | F40: 3匹室内外成套 | G40: 4795.73 | H40: 143.87 | I40: 4651.86 | J40: 1 | K40: 台 | M40: 3P单冷单相整机 | O40: 温岭南港 | P40: 331082908001901247
A41: 40 | B41: 2024年台州公司第二十一次党委会会议纪要 | C41: 331000229838 | D41: 工程转入 | E41: 基站机房扩容资产 | F41: 铜芯电缆 | G41: 62.83 | H41: 53.01 | I41: 9.82 | J41: 1 | K41: 根 | M41: 1KV以下电力电缆铜芯阻燃聚氯乙烯绝缘聚氯乙烯护套软电缆ZA-RVV 1*16mm2浅蓝 | O41: 温岭南港 | P41: 331082908000000796
A42: 41 | B42: 2024年台州公司第二十一次党委会会议纪要 | C42: 331000250439 | D42: 工程转入 | E42: 外市电引入 | F42: 油机转换箱 | G42: 395 | H42: 266.69 | I42: 128.31 | J42: 1 | K42: 个 | M42: 工程服务存量整治施工外市电引入外市电线路整治零星整治交流配电箱/油机切换箱整治无 | O42: 临海大洋五家殿村-2 | P42: 331082908000000590
A43: 42 | B43: 2024年台州公司第二十一次党委会会议纪要 | C43: 331000189176 | D43: 工程转入 | E43: 动力及环境监控单元 | F43: 动环监控 | G43: 4692.91 | H43: 140.79 | I43: 4552.12 | J43: 1 | K43: 个 | M43: 0 | O43: 黄岩西街小区搬迁 | P43: 331021908000000172
A44: 43 | B44: 2024年台州公司第二十一次党委会会议纪要 | C44: 331000201563 | D44: 工程转入 | E44: 动力及环境监控单元 | F44: 动环监控 | G44: 2862.1 | H44: 240.08 | I44: 2622.02 | J44: 1 | K44: 个 | M44: 主设备室内型成套设备基本配置模型 | O44: 黄岩西街小区搬迁 | P44: 331082908000000796
A45: 44 | B45: 2024年台州公司第二十一次党委会会议纪要 | C45: 331000164736 | D45: 工程转入 | E45: 组合式开关电源 | F45: 组合开关电源 | G45: 7115.76 | H45: 213.47 | I45: 6902.29 | J45: 1 | K45: 架 | M45: (杭州中恒)-开关电源及电源模块-开关电源 | O45: 黄岩西街小区搬迁 | P45: 331002908000000681
A46: 45 | B46: 2024年台州公司第二十一次党委会会议纪要 | C46: 331000143220 | D46: 存量收购 | E46: 1KV以下电力电缆 | F46: 铜芯电缆 | G46: 844.79 | H46: 127.71 | I46: 717.08 | J46: 1 | K46: 根 | M46: RYY-4×25 | O46: 天台小商品市场 | P46: 331081908000000146
A47: 46 | B47: 2024年台州公司第二十一次党委会会议纪要 | C47: 331000129564 | D47: 存量收购 | E47: 交流配电箱 | F47: 交流配电箱 | G47: 450.25 | H47: 13.51 | I47: 436.74 | J47: 1 | K47: 个 | M47: G2 | O47: 天台小商品市场 | P47: 331082908000000776
A48: 47 | B48: 2024年台州公司第二十一次党委会会议纪要 | C48: 331000109470 | D48: 存量收购 | E48: 组合开关电源 | F48: 组合开关电源 | G48: 1000.8 | H48: 30.02 | I48: 970.78 | J48: 1 | K48: 架 | M48: 开关电源模块48V-50A | O48: 天台小商品市场 | P48: 331003908000000304
A49: 48 | B49: 2024年台州公司第二十一次党委会会议纪要 | C49: 331000203614 | D49: 工程转入 | E49: 外市电引入 | F49: 直流电能计量终端 | G49: 122.73 | H49: 52.27 | I49: 70.46 | J49: 1 | K49: 个 | M49: 更换电表 | O49: 天台小商品市场 | P49: 331082908000000796
A50: 49 | B50: 2024年台州公司第二十一次党委会会议纪要 | C50: 331000203615 | D50: 工程转入 | E50: 电源扩容资产 | F50: 供电计量设备 | G50: 603.45 | H50: 50.6 | I50: 552.85 | J50: 1 | K50: 个 | M50: 供电计量设备 | O50: 天台小商品市场 | P50: 331082908000000796
A51: 50 | B51: 2024年台州公司第二十一次党委会会议纪要 | C51: 331000197109 | D51: 工程转入 | E51: 机房配套扩容资产 | F51: 模块 | G51: 65 | H51: 2.82 | I51: 62.18 | J51: 1 | K51: 个 | M51: 监控传感器智能门禁配套物资电源转换模块 | O51: 天台小商品市场 | P51: 331021908000000172
A52: 51 | B52: 2024年台州公司第二十一次党委会会议纪要 | C52: 331000233524 | D52: 工程转入 | E52: 机房配套扩容资产 | F52: 模块 | G52: 531.99 | H52: 173.37 | I52: 358.62 | J52: 1 | K52: 个 | M52: 配套设备零星（模块）扩容 | O52: 天台小商品市场 | P52: 331082908000000796
A53: 52 | B53: 2024年台州公司第二十一次党委会会议纪要 | C53: 331000129567 | D53: 存量收购 | E53: 油机转换箱 | F53: 油机转换箱 | G53: 384.38 | H53: 11.53 | I53: 372.85 | J53: 1 | K53: 个 | M53: JFF1 | O53: 天台小商品市场 | P53: 331082908000000776
A54: 53 | B54: 2024年台州公司第二十一次党委会会议纪要 | C54: 331000143600 | D54: 存量收购 | E54: 交流配电箱 | F54: 交流配电箱 | G54: 2836.14 | H54: 85.08 | I54: 2751.06 | J54: 1 | K54: 个 | M54: G3 | O54: 天台坝头橡胶厂-2 | P54: 331082908000000810
A55: 54 | B55: 2024年台州公司第二十一次党委会会议纪要 | C55: 331000140642 | D55: 存量收购 | E55: 空调-普通空调× | F55: 3匹室内外成套 | G55: 873 | H55: 26.19 | I55: 846.81 | J55: 1 | K55: 台 | M55: FVY71DQV2CB(柜机) | O55: 天台坝头橡胶厂-2 | P55: 331004908000000316
A56: 55 | B56: 2024年台州公司第二十一次党委会会议纪要 | C56: 331000116558 | D56: 存量收购 | E56: 直流分配箱 | F56: 壁挂配电箱 | G56: 3958.2 | H56: 118.75 | I56: 3839.45 | J56: 1 | K56: 台 | M56: 63A | O56: 天台坝头橡胶厂-2 | P56: 331024908000000085
A57: 56 | B57: 2024年台州公司第二十一次党委会会议纪要 | C57: 331000198849 | D57: 工程转入 | E57: 机房配套扩容资产 | F57: 模块 | G57: 65 | H57: 12.45 | I57: 52.55 | J57: 1 | K57: 个 | M57: 监控传感器智能门禁配套物资电源转换模块 | O57: 天台坝头橡胶厂-2 | P57: 331021908000000172
A58: 57 | B58: 2024年台州公司第二十一次党委会会议纪要 | C58: 331000143601 | D58: 存量收购 | E58: 油机转换箱 | F58: 油机转换箱 | G58: 1249.19 | H58: 37.48 | I58: 1211.71 | J58: 1 | K58: 个 | M58: NXK1 | O58: 天台坝头橡胶厂-2 | P58: 331082908000000810
A59: 58 | B59: 2024年台州公司第二十一次党委会会议纪要 | C59: 331000203765 | D59: 工程转入 | E59: 机房配套扩容资产 | F59: 模块 | G59: 317.02 | H59: 69.23 | I59: 247.79 | J59: 1 | K59: 个 | M59: 普通空调基站智能空调控制器 | O59: 天台坝头橡胶厂-2 | P59: 331082908000000796
A60: 59 | B60: 2024年台州公司第二十一次党委会会议纪要 | C60: 331000138208 | D60: 存量收购 | E60: 交流配电箱 | F60: 交流配电箱 | G60: 3901.91 | H60: 117.06 | I60: 3784.85 | J60: 1 | K60: 个 | M60: ZBX5-24 | O60: 临海杜桥厂横村 | P60: 331081908000000297
A61: 60 | B61: 2024年台州公司第二十一次党委会会议纪要 | C61: 331000147245 | D61: 存量收购 | E61: 组合开关电源 | F61: 组合开关电源 | G61: 1073.95 | H61: 32.22 | I61: 1041.73 | J61: 1 | K61: 架 | M61: MCS3000H | O61: 临海杜桥厂横村 | P61: 331082908000000390
A62: 61 | B62: 2024年台州公司第二十一次党委会会议纪要 | C62: 331000198484 | D62: 工程转入 | E62: 机房配套扩容资产 | F62: 模块 | G62: 65 | H62: 3.7 | I62: 61.3 | J62: 1 | K62: 个 | M62: 监控传感器智能门禁配套物资电源转换模块 | O62: 临海杜桥厂横村 | P62: 331021908000000172
A63: 62 | B63: 2024年台州公司第二十一次党委会会议纪要 | C63: 331000129075 | D63: 存量收购 | E63: 油机转换箱 | F63: 油机转换箱 | G63: 2518.84 | H63: 75.57 | I63: 2443.27 | J63: 1 | K63: 个 | M63: ZBX5-F | O63: 临海杜桥厂横村 | P63: 331082908000000776
A64: 63 | B64: 2024年台州公司第二十一次党委会会议纪要 | C64: 331000130710 | D64: 存量收购 | E64: 1KV以下电力电缆 | F64: 铜芯电缆 | G64: 1177.05 | H64: 187.55 | I64: 989.5 | J64: 1 | K64: 根 | M64: RVV22-3×16+1×10 | O64: 温岭温峤琛山 | P64: 331004908000000223
A65: 64 | B65: 2024年台州公司第二十一次党委会会议纪要 | C65: 331000126640 | D65: 存量收购 | E65: 交流配电箱 | F65: 交流配电箱 | G65: 3652.27 | H65: 109.57 | I65: 3542.7 | J65: 1 | K65: 个 | M65: NXK1 | O65: 温岭温峤琛山 | P65: 331082908000000776
A66: 65 | B66: 2024年台州公司第二十一次党委会会议纪要 | C66: 331000107906 | D66: 存量收购 | E66: 组合开关电源 | F66: 组合开关电源 | G66: 898.2 | H66: 26.95 | I66: 871.25 | J66: 1 | K66: 架 | M66: PS48400-2B-50 | O66: 温岭温峤琛山 | P66: 33102200000042
A67: 66 | B67: 2024年台州公司第二十一次党委会会议纪要 | C67: 331000150191 | D67: 存量收购 | E67: 组合开关电源 | F67: 组合开关电源 | G67: 899.35 | H67: 26.98 | I67: 872.37 | J67: 1 | K67: 架 | M67: 48V-600A(50A模块)-150 | O67: 温岭肖村工业区 | P67: 331082908000000390
A68: 67 | B68: 2024年台州公司第二十一次党委会会议纪要 | C68: 331000121942 | D68: 存量收购 | E68: 专用空调 | F68: 3匹室内外成套 | G68: 103 | H68: 3.09 | I68: 99.91 | J68: 1 | K68: 台 | M68: 3P | O68: 温岭肖村工业区 | P68: 331003908000000331
A69: 68 | B69: 2024年台州公司第二十一次党委会会议纪要 | C69: 331000219433_2 | D69: 工程转入 | E69: 嵌入式开关电源 | F69: 嵌入式开关电源 | G69: 4987.73 | H69: 1091.34 | I69: 3896.39 | J69: 1 | K69: 架 | M69: 一体化综合柜650*650*14001500W交流空调+300W直流空调、内置嵌入式高频开关电源、PU | O69: 黄岩宁溪木坑岙村 | P69: 331082908000000796
A70: 69 | B70: 2024年台州公司第二次党委会会议纪要 | C70: 331000204710 | D70: 工程转入 | E70: 壁挂式开关电源 | F70: 壁挂式开关电源 | G70: 6702.68 | H70: 1016.01 | I70: 5686.67 | J70: 1 | K70: 架 | M70: 小微站开关电源30A自冷型 | O70: 温岭松门沙镬村 | P70: 331082908000000796
A71: 70 | B71: 2024年台州公司第十三次党委会会议纪要 | C71: 331000186873 | D71: 工程转入 | E71: 普通空调壁挂 | F71: 2P及2P以下成套空调 | G71: 3693.29 | H71: 110.8 | I71: 3582.49 | J71: 1 | K71: 台 | M71: 1.5P单冷单相整机 | O71: 临海前王 | P71: 331021908000000172
A72: 71 | B72: 2024年台州公司第二十一次党委会会议纪要 | C72: 331000205568 | D72: 工程转入 | E72: 普通空调壁挂 | F72: 2P及2P以下成套空调 | G72: 4405.48 | H72: 488.11 | I72: 3917.37 | J72: 1 | K72: 台 | M72: 2P单冷单相整机 | O72: 临海杜桥下八年 | P72: 331082908000000796
A73: 72 | B73: 2024年台州公司第十六次党委会会议纪要 | C73: 331000168655 | D73: 工程转入 | E73: 普通空调柜式 | F73: 3匹室内外成套 | G73: 6806.15 | H73: 204.18 | I73: 6601.97 | J73: 1 | K73: 台 | M73: 3P单冷三相整机 | O73: 临海白水洋祥里-2 | P73: 331082908001901247
A74: 73 | B74: 2024年台州公司第十六次党委会会议纪要 | C74: 331000110526 | D74: 存量收购 | E74: 专用空调 | F74: 3匹室内外成套 | G74: 103 | H74: 3.09 | I74: 99.91 | J74: 1 | K74: 台 | M74: SPW-VC253DHL5 | O74: 临海北涧 | P74: 331082908000000261
A75: 74 | B75: 2024年台州公司第十六次党委会会议纪要 | C75: 331000155637 | D75: 存量收购 | E75: 专用空调 | F75: 3匹室内外成套 | G75: 810 | H75: 24.3 | I75: 785.7 | J75: 1 | K75: 台 | M75: 3P | O75: 临海北涧 | P75: 331002908000000681
A76: 75 | B76: 2024年台州公司第十六次党委会会议纪要 | C76: 331000120776 | D76: 存量收购 | E76: 专用空调 | F76: 3匹室内外成套 | G76: 204 | H76: 6.12 | I76: 197.88 | J76: 1 | K76: 台 | M76: 3P | O76: 临海春天宾馆 | P76: 331082908000001265
A77: 76 | B77: 2024年台州公司第十三次党委会会议纪要 | C77: 331000227700 | D77: 工程转入 | E77: 普通空调柜式 | F77: 3匹室内外成套 | G77: 3667.65 | H77: 1345.38 | I77: 2322.27 | J77: 1 | K77: 台 | M77: 3P单冷三相整机 | O77: 临海东塍康谷 | P77: 331082908000000796
A78: 77 | B78: 2024年台州公司第十六次党委会会议纪要 | C78: 331000195741 | D78: 工程转入 | E78: 普通空调柜式 | F78: 3匹室内外成套 | G78: 6795.27 | H78: 295.4 | I78: 6499.87 | J78: 1 | K78: 台 | M78: 3P单冷三相整机 | O78: 临海杜桥开井村山上 | P78: 331021908000000172
A79: 78 | B79: 2024年台州公司第十六次党委会会议纪要 | C79: 331000110938 | D79: 存量收购 | E79: 分体空调 | F79: 3匹室内外成套 | G79: 315 | H79: 9.45 | I79: 305.55 | J79: 1 | K79: 台 | M79: PS-3JAKT-S（7.5KW） | O79: 临海杜桥西坑-2 | P79: 331021908000000688
A80: 79 | B80: 2024年台州公司第十六次党委会会议纪要 | C80: 331000110939 | D80: 存量收购 | E80: 分体空调 | F80: 3匹室内外成套 | G80: 315 | H80: 9.45 | I80: 305.55 | J80: 1 | K80: 台 | M80: PS-3JAKT-S（7.5KW） | O80: 临海杜桥西坑-2 | P80: 331021908000000688
A81: 80 | B81: 2024年台州公司第十六次党委会会议纪要 | C81: 331000123281 | D81: 存量收购 | E81: 专用空调 | F81: 3匹室内外成套 | G81: 1913.35 | H81: 57.4 | I81: 1855.95 | J81: 1 | K81: 台 | M81: 3P | O81: 临海方家岭 | P81: 331082908000000776
A82: 81 | B82: 2024年台州公司第十六次党委会会议纪要 | C82: 331000185972 | D82: 工程转入 | E82: 普通空调柜式 | F82: 3匹室内外成套 | G82: 6207.03 | H82: 186.21 | I82: 6020.82 | J82: 1 | K82: 台 | M82: 3P单冷三相整机 | O82: 临海河头羊岩山-2 | P82: 331021908000000172
A83: 82 | B83: 2024年台州公司第十六次党委会会议纪要 | C83: 331000169487 | D83: 工程转入 | E83: 普通空调柜式 | F83: 3匹室内外成套 | G83: 5858.64 | H83: 175.76 | I83: 5682.88 | J83: 1 | K83: 台 | M83: 3P单冷三相整机 | O83: 临海贺家 | P83: 331082908001901247
A84: 83 | B84: 2024年台州公司第十六次党委会会议纪要 | C84: 331000111932 | D84: 存量收购 | E84: 分体空调 | F84: 3匹室内外成套 | G84: 315 | H84: 9.45 | I84: 305.55 | J84: 1 | K84: 台 | M84: PS-3JAKT-S（7.5KW） | O84: 临海汇溪两头门 | P84: 331021908000000092
A85: 84 | B85: 2024年台州公司第十六次党委会会议纪要 | C85: 331000121380 | D85: 存量收购 | E85: 专用空调 | F85: 3匹室内外成套 | G85: 1004.4 | H85: 30.13 | I85: 974.27 | J85: 1 | K85: 台 | M85: 3P | O85: 临海老局 | P85: 331003908000000032
A86: 85 | B86: 2024年台州公司第十六次党委会会议纪要 | C86: 331000121381 | D86: 存量收购 | E86: 专用空调 | F86: 3匹室内外成套 | G86: 4458.67 | H86: 133.76 | I86: 4324.91 | J86: 1 | K86: 台 | M86: 3P | O86: 临海老局 | P86: 331003908000000032
A87: 86 | B87: 2024年台州公司第十六次党委会会议纪要 | C87: 331000175229 | D87: 工程转入 | E87: 普通空调柜式 | F87: 3匹室内外成套 | G87: 8006.73 | H87: 240.2 | I87: 7766.53 | J87: 1 | K87: 台 | M87: 0 | O87: 临海山水一品北面山坡 | P87: 331082908001901247
A88: 87 | B88: 2024年台州公司第十六次党委会会议纪要 | C88: 331000120112 | D88: 存量收购 | E88: 专用空调 | F88: 3匹室内外成套 | G88: 3618 | H88: 108.54 | I88: 3509.46 | J88: 1 | K88: 台 | M88: 3P | O88: 临海双坑里程 | P88: 331082908000001224
A89: 88 | B89: 2024年台州公司第十六次党委会会议纪要 | C89: 331000166803 | D89: 工程转入 | E89: 普通空调柜式 | F89: 3匹室内外成套 | G89: 6268.43 | H89: 188.05 | I89: 6080.38 | J89: 1 | K89: 台 | M89: 空调3P | O89: 临海头门面丈山 | P89: 331082908001901247
A90: 89 | B90: 2024年台州公司第十六次党委会会议纪要 | C90: 331000166804 | D90: 工程转入 | E90: 普通空调柜式 | F90: 3匹室内外成套 | G90: 6268.44 | H90: 188.05 | I90: 6080.39 | J90: 1 | K90: 台 | M90: 空调3P | O90: 临海头门面丈山 | P90: 331082908001901247
A91: 90 | B91: 2024年台州公司第十六次党委会会议纪要 | C91: 331000155851 | D91: 存量收购 | E91: 空调 | F91: 3匹室内外成套 | G91: 5500 | H91: 165 | I91: 5335 | J91: 1 | K91: 台 | M91: KF-72LW-JH1SN(R2) | O91: 临海小岙 | P91: 331002908000000681
A92: 91 | B92: 2024年台州公司第十六次党委会会议纪要 | C92: 331000120320 | D92: 存量收购 | E92: 专用空调 | F92: 3匹室内外成套 | G92: 358.54 | H92: 10.76 | I92: 347.78 | J92: 1 | K92: 台 | M92: KF-72LW-JH1SN（R2） | O92: 临海汛桥渡头 | P92: 331082908001900147
A93: 92 | B93: 2024年台州公司第十六次党委会会议纪要 | C93: 331000122342 | D93: 存量收购 | E93: 通用空调 | F93: 3匹室内外成套 | G93: 291 | H93: 8.73 | I93: 282.27 | J93: 1 | K93: 台 | M93: FVY71DQV2CB（柜机） | O93: 临海沿江水洋电信支局 | P93: 331002908000000301
A94: 93 | B94: 2024年台州公司第十六次党委会会议纪要 | C94: 331000122346 | D94: 存量收购 | E94: 通用空调 | F94: 3匹室内外成套 | G94: 291 | H94: 8.73 | I94: 282.27 | J94: 1 | K94: 台 | M94: FVY71DQV2CB（柜机） | O94: 临海沿江水洋电信支局 | P94: 331002908000000301
A95: 94 | B95: 2024年台州公司第二十一次党委会会议纪要 | C95: 331000125376 | D95: 存量收购 | E95: 动力及环境监控单元 | F95: 动环监控 | G95: 378.7 | H95: 11.36 | I95: 367.34 | J95: 1 | K95: 个 | M95: DAM-2160 | O95: 临海柏叶路 | P95: 331082908000000776
A96: 95 | B96: 2024年台州公司第二十一次党委会会议纪要 | C96: 331000105466 | D96: 存量收购 | E96: 动力及环境监控单元 | F96: 动环监控 | G96: 1129.62 | H96: 33.89 | I96: 1095.73 | J96: 1 | K96: 个 | M96: ZXM10EISU(48) | O96: 临海东矶岛-2 | P96: 331023908001900568
A97: 96 | B97: 2024年台州公司第二十一次党委会会议纪要 | C97: 331000104749 | D97: 存量收购 | E97: 动力及环境监控单元 | F97: 动环监控 | G97: 468 | H97: 14.04 | I97: 453.96 | J97: 1 | K97: 个 | M97: DAM-2160 | O97: 临海河头二 | P97: 331082908000000101
A98: 97 | B98: 2024年台州公司第二十一次党委会会议纪要 | C98: 331000125470 | D98: 存量收购 | E98: 动力及环境监控单元 | F98: 动环监控 | G98: 725.3 | H98: 21.76 | I98: 703.54 | J98: 1 | K98: 个 | M98: AM-1-高新兴2160 | O98: 临海能仁 | P98: 331082908000000776
A99: 98 | B99: 2024年台州公司第二十一次党委会会议纪要 | C99: 331000155808 | D99: 存量收购 | E99: 动力及环境监控单元 | F99: 动环监控 | G99: 6069 | H99: 182.07 | I99: 5886.93 | J99: 1 | K99: 个 | M99: DAM-2160 | O99: 临海台州医院-2 | P99: 331002908000000681
A100: 99 | B100: 2024年台州公司第二十一次党委会会议纪要 | C100: 331000176277 | D100: 工程转入 | E100: 动力及环境监控单元 | F100: 动环监控 | G100: 9577.26 | H100: 287.32 | I100: 9289.94 | J100: 1 | K100: 个 | M100: 0 | O100: 临海半坑 | P100: 331082908001901247
A101: 100 | B101: 2024年台州公司第二十一次党委会会议纪要 | C101: 331000200976 | D101: 工程转入 | E101: 动力及环境监控单元 | F101: 动环监控 | G101: 2776.26 | H101: 232.91 | I101: 2543.35 | J101: 1 | K101: 个 | M101: 主设备室内型成套设备基本配置模型 | O101: 临海杜桥禾欣高分子 | P101: 331082500000001541
A102: 101 | B102: 2024年台州公司第二十一次党委会会议纪要 | C102: 331000189316 | D102: 工程转入 | E102: 动力及环境监控单元 | F102: 动环监控 | G102: 4743.17 | H102: 142.3 | I102: 4600.87 | J102: 1 | K102: 个 | M102: 0 | O102: 临海小芝天灯洋堂 | P102: 331021908000000172
A103: 102 | B103: 2024年台州公司第二十一次党委会会议纪要 | C103: 331000195032 | D103: 工程转入 | E103: 动力及环境监控单元 | F103: 动环监控 | G103: 3339.72 | H103: 100.19 | I103: 3239.53 | J103: 1 | K103: 个 | M103: 主设备室内型成套设备基本配置模型 | O103: 临海张家渡山上-2 | P103: 331021908000000172
A104: 103 | B104: 2024年台州公司第二十一次党委会会议纪要 | C104: 331000199177 | D104: 工程转入 | E104: 动力及环境监控单元 | F104: 动环监控 | G104: 4762.62 | H104: 142.88 | I104: 4619.74 | J104: 1 | K104: 个 | M104: 主设备室内型成套设备双柜配置模型 | O104: 临海杜桥第二小学南门 | P104: 331021908000000172
A105: 104 | B105: 2024年台州公司第二十一次党委会会议纪要 | C105: 331000188005 | D105: 工程转入 | E105: 动力及环境监控单元 | F105: 动环监控 | G105: 2774.77 | H105: 83.24 | I105: 2691.53 | J105: 1 | K105: 个 | M105: 主设备室内型成套设备基本配置模型 | O105: 临海杜桥马宅 | P105: 331021908000000172
A106: 105 | B106: 2024年台州公司第二十一次党委会会议纪要 | C106: 331000200360 | D106: 工程转入 | E106: 动力及环境监控单元 | F106: 动环监控 | G106: 4000.53 | H106: 173.9 | I106: 3826.63 | J106: 1 | K106: 个 | M106: 主设备室内型成套设备双柜配置模型 | O106: 临海江南金家汇村南 | P106: 331021908000000172
A107: 106 | B107: 2024年台州公司第二十一次党委会会议纪要 | C107: 331000218582 | D107: 工程转入 | E107: 动力及环境监控单元 | F107: 动环监控 | G107: 2580.55 | H107: 598.89 | I107: 1981.66 | J107: 1 | K107: 个 | M107: 主设备室内型成套设备基本配置模型 | O107: 临海花街 | P107: 331082908000000796
A108: 107 | B108: 2024年台州公司第二十一次党委会会议纪要 | C108: 331000212204 | D108: 工程转入 | E108: 动力及环境监控单元 | F108: 动环监控 | G108: 2588.06 | H108: 461.15 | I108: 2126.91 | J108: 1 | K108: 个 | M108: 主设备室内型成套设备基本配置模型 | O108: 临海里洋 | P108: 331082908000000796
A109: 108 | B109: 2024年台州公司第二十一次党委会会议纪要 | C109: 331000187982 | D109: 工程转入 | E109: 动力及环境监控单元 | F109: 动环监控 | G109: 2774.77 | H109: 83.24 | I109: 2691.53 | J109: 1 | K109: 个 | M109: 主设备室内型成套设备基本配置模型 | O109: 临海溪口 | P109: 331021908000000172
A110: 109 | B110: 2024年台州公司第二十一次党委会会议纪要 | C110: 331000218274 | D110: 工程转入 | E110: 动力及环境监控单元 | F110: 动环监控 | G110: 2580.55 | H110: 563.97 | I110: 2016.58 | J110: 1 | K110: 个 | M110: 主设备室内型成套设备基本配置模型 | O110: 临海项庄 | P110: 331082908000000796
A111: 110 | B111: 2024年台州公司第二十一次党委会会议纪要 | C111: 331000204122 | D111: 工程转入 | E111: 动力及环境监控单元 | F111: 动环监控 | G111: 3668.91 | H111: 307.69 | I111: 3361.22 | J111: 1 | K111: 个 | M111: 主设备室内型成套设备基本配置模型 | O111: 临海尤溪长加山 | P111: 331082908000000796
A112: 111 | B112: 2024年台州公司第二十一次党委会会议纪要 | C112: 331000201905 | D112: 工程转入 | E112: 动力及环境监控单元 | F112: 动环监控 | G112: 2514.84 | H112: 210.99 | I112: 2303.85 | J112: 1 | K112: 个 | M112: 主设备室外型成套设备双柜配置模型（不含烟感及红外） | O112: 临海尤溪长加山-2 | P112: 331082908000000796
A113: 112 | B113: 2024年台州公司第二十一次党委会会议纪要 | C113: 331000230312 | D113: 工程转入 | E113: 动力及环境监控单元 | F113: 动环监控 | G113: 3842.09 | H113: 1358.1 | I113: 2483.99 | J113: 1 | K113: 个 | M113: 主设备室内型成套设备基本配置模型 | O113: 仙居白塔镇政府 | P113: 331082908000000796
A114: 113 | B114: 2024年台州公司第二十一次党委会会议纪要 | C114: 331000214654 | D114: 工程转入 | E114: 动力及环境监控单元 | F114: 动环监控 | G114: 2659.99 | H114: 509.82 | I114: 2150.17 | J114: 1 | K114: 个 | M114: 主设备室内型成套设备基本配置模型 | O114: 仙居大爿地 | P114: 331082908000000796
A115: 114 | B115: 2024年台州公司第二十一次党委会会议纪要 | C115: 331000215617 | D115: 工程转入 | E115: 动力及环境监控单元 | F115: 动环监控 | G115: 2590.47 | H115: 496.33 | I115: 2094.14 | J115: 1 | K115: 个 | M115: 主设备室内型成套设备基本配置模型 | O115: 仙居横溪横岩 | P115: 331082908000000796
A116: 115 | B116: 2024年台州公司第二十一次党委会会议纪要 | C116: 331000125054 | D116: 存量收购 | E116: 动力及环境监控单元 | F116: 动环监控 | G116: 3027.55 | H116: 90.83 | I116: 2936.72 | J116: 1 | K116: 个 | M116: DAM-2160 | O116: 仙居路坑 | P116: 331082908000000776
A117: 116 | B117: 2024年台州公司第二十一次党委会会议纪要 | C117: 331000210696 | D117: 工程转入 | E117: 动力及环境监控单元 | F117: 动环监控 | G117: 2655.4 | H117: 437.41 | I117: 2217.99 | J117: 1 | K117: 个 | M117: 主设备室内型成套设备基本配置模型 | O117: 仙居七里村 | P117: 331082908000000796
A118: 117 | B118: 2024年台州公司第二十一次党委会会议纪要 | C118: 331000207174 | D118: 工程转入 | E118: 动力及环境监控单元 | F118: 动环监控 | G118: 3675.86 | H118: 456.95 | I118: 3218.91 | J118: 1 | K118: 个 | M118: 主设备室内型成套设备基本配置模型 | O118: 仙居上张邵弄村 | P118: 331082908000000796
A119: 118 | B119: 2024年台州公司第二十一次党委会会议纪要 | C119: 331000203888 | D119: 工程转入 | E119: 动力及环境监控单元 | F119: 动环监控 | G119: 3102.39 | H119: 260.17 | I119: 2842.22 | J119: 1 | K119: 个 | M119: 主设备室内型成套设备基本配置模型 | O119: 仙居双庙西马西村 | P119: 331082908000000796
A120: 119 | B120: 2024年台州公司第二十一次党委会会议纪要 | C120: 331000154590 | D120: 存量收购 | E120: 动力及环境监控单元 | F120: 动环监控 | G120: 10069 | H120: 302.07 | I120: 9766.93 | J120: 1 | K120: 个 | M120: ASC-100-CR16 | O120: 仙居桐圆 | P120: 331002908000000681
A121: 120 | B121: 2024年台州公司第二十一次党委会会议纪要 | C121: 331000205616 | D121: 工程转入 | E121: 动力及环境监控单元 | F121: 动环监控 | G121: 2594.39 | H121: 287.56 | I121: 2306.83 | J121: 1 | K121: 个 | M121: 主设备室内型成套设备基本配置模型 | O121: 仙居下叶 | P121: 331082908000000796
A122: 121 | B122: 2024年台州公司第二十一次党委会会议纪要 | C122: 331000221527 | D122: 工程转入 | E122: 动力及环境监控单元 | F122: 动环监控 | G122: 4210.68 | H122: 1034.25 | I122: 3176.43 | J122: 1 | K122: 个 | M122: 主设备室内型成套设备双柜配置模型 | O122: 仙居县上张乡塍山村 | P122: 331082908000000796
A123: 122 | B123: 2024年台州公司第二十一次党委会会议纪要 | C123: 331000217796 | D123: 工程转入 | E123: 动力及环境监控单元 | F123: 动环监控 | G123: 2585.83 | H123: 565.26 | I123: 2020.57 | J123: 1 | K123: 个 | M123: 主设备室内型成套设备基本配置模型 | O123: 仙居叶山 | P123: 331082908000000796
A124: 123 | B124: 2024年台州公司第二十一次党委会会议纪要 | C124: 331000242440_2 | D124: 工程转入 | E124: 嵌入式开关电源 | F124: 嵌入式开关电源 | G124: 5508.93 | H124: 2185.81 | I124: 3323.12 | J124: 1 | K124: 架 | M124: 一体化机柜一体化设备柜650*650*14001500W交流空调室外柜（内置智能电源）-电源设备柜（PU，1400，内置智能电源） | O124: 仙居金台黄榆弄隧道西口外打 | P124: 331082908000000590
A125: 124 | B125: 2024年台州公司第十六次党委会会议纪要 | C125: 331000121269 | D125: 存量收购 | E125: 分体一对一空调 | F125: 3匹室内外成套 | G125: 315 | H125: 9.45 | I125: 305.55 | J125: 1 | K125: 台 | M125: PS-3JAKT-S（7.5KW） | O125: 仙居埠头大陈 | P125: 331004908000000544
A126: 125 | B126: 2024年台州公司第十六次党委会会议纪要 | C126: 331000121270 | D126: 存量收购 | E126: 分体一对一空调 | F126: 3匹室内外成套 | G126: 315 | H126: 9.45 | I126: 305.55 | J126: 1 | K126: 台 | M126: PS-3JAKT-S（7.5KW） | O126: 仙居埠头大陈 | P126: 331004908000000544
A127: 126 | B127: 2024年台州公司第十六次党委会会议纪要 | C127: 331000110755 | D127: 存量收购 | E127: 分体一对一空调 | F127: 3匹室内外成套 | G127: 315 | H127: 9.45 | I127: 305.55 | J127: 1 | K127: 台 | M127: PS-3JAKT-S（7.5KW） | O127: 仙居下各村 | P127: 331081908000001212
A128: 127 | B128: 2024年台州公司第十六次党委会会议纪要 | C128: 331000110756 | D128: 存量收购 | E128: 分体一对一空调 | F128: 3匹室内外成套 | G128: 315 | H128: 9.45 | I128: 305.55 | J128: 1 | K128: 台 | M128: PS-3JAKT-S（7.5KW） | O128: 仙居下各村 | P128: 331081908000001212
A129: 128 | B129: 2024年台州公司第十六次党委会会议纪要 | C129: 331000122178 | D129: 存量收购 | E129: 专用空调 | F129: 3匹室内外成套 | G129: 257.5 | H129: 7.73 | I129: 249.77 | J129: 1 | K129: 台 | M129: KF-75LW-HV8S(5) | O129: 仙居仙居大水弄 | P129: 331021908000000520
A130: 129 | B130: 2024年台州公司第十六次党委会会议纪要 | C130: 331000122671 | D130: 存量收购 | E130: 分体空调 | F130: 3匹室内外成套 | G130: 5626.74 | H130: 168.8 | I130: 5457.94 | J130: 1 | K130: 台 | M130: KF72LW | O130: 仙居仙药路38号 | P130: 331022908000000470
A131: 130 | B131: 2024年台州公司第十六次党委会会议纪要 | C131: 331000194036 | D131: 工程转入 | E131: 普通空调柜式 | F131: 3匹室内外成套 | G131: 6169.24 | H131: 185.08 | I131: 5984.16 | J131: 1 | K131: 台 | M131: 3P单冷三相整机 | O131: 仙居县横溪镇溪头 | P131: 331021908000000172
A132: 131 | B132: 2024年台州公司第二十一次党委会会议纪要 | C132: 331000110967 | D132: 存量收购 | E132: 专用空调 | F132: 3匹室内外成套 | G132: 5134.15 | H132: 154.02 | I132: 4980.13 | J132: 1 | K132: 台 | M132: KF-72LW-JH1SN(R2) | O132: 玉环城关乐家建材超市搬迁 | P132: 331021908000000688
A133: 132 | B133: 2024年台州公司第二十一次党委会会议纪要 | C133: 331000254595 | D133: 工程转入 | E133: 基站机房扩容资产 | F133: 铜芯电缆 | G133: 407.76 | H133: 362.88 | I133: 44.88 | J133: 1 | K133: 根 | M133: 1KV以下电力电缆铜芯阻燃聚氯乙烯绝缘聚氯乙烯护套软电缆ZA-RVV 1*50mm2黑 | O133: 玉环城关乐家建材超市搬迁 | P133: 331082908000000590
A134: 133 | B134: 2024年台州公司第二十一次党委会会议纪要 | C134: 331000187745 | D134: 工程转入 | E134: 电源扩容资产 | F134: 供电计量设备 | G134: 200.78 | H134: 6.02 | I134: 194.76 | J134: 1 | K134: 个 | M134: 供电计量设备 | O134: 玉环城关乐家建材超市搬迁 | P134: 331021908000000172

Sheet 绍兴
A1: 序号 | B1: 报废批复文号 | C1: 资产编号 | D1: 资产名称 | E1: 资产类别名称 | F1: 资产原值 （元，不含税） | G1: 资产净值 （元，不含税） | H1: 累计折旧 | I1: 资产数量 | J1: 计量单位 （个/吨/米等） | K1: 规格型号 | L1: 生产厂家 | M1: 站点名称 | N1: 站点编码
A2: 1 | B2: 绍兴市分公司党委2024年第28次党委会会议纪要 | C2: 330600322174 | D2: 交流配电箱 | E2: 交流配电箱 | F2: 8295.44 | G2: 248.86 | H2: 8046.58 | I2: 1.000 | J2: 个 | K2: 直流分配箱 | M2: 绍兴市嵊州市剡湖街道里坂农贸市场 | N2: 330683908000000682
A3: 2 | B3: 绍兴市分公司党委2024年第28次党委会会议纪要 | C3: 330600303197 | D3: 交流配电箱 | E3: 交流配电箱 | F3: 1078.75 | G3: 32.36 | H3: 1046.39 | I3: 1.000 | J3: 个 | K3: 壁挂式直流分配箱 | M3: 绍兴瓦窑头 | N3: 330602908000001232
A4: 3 | B4: 绍兴市分公司党委2024年第28次党委会会议纪要 | C4: 330600129862 | D4: 开关电源 | E4: 开关电源 | F4: 360.54 | G4: 10.82 | H4: 349.72 | I4: 1.000 | J4: 架 | K4: 48V-450A(50A模块)-100A | M4: 绍兴市虚拟站 | N4: 330600880000000000
A5: 4 | B5: 绍兴市分公司党委2024年第28次党委会会议纪要 | C5: 330600105811 | D5: 开关电源 | E5: 开关电源 | F5: 739.8 | G5: 22.19 | H5: 717.61 | I5: 1.000 | J5: 架 | K5: 48V-600A(50A模块)-150A | M5: 绍兴市诸暨市牌头镇牌头夏宅埠 | N5: 330681908000000649
A6: 5 | B6: 绍兴市分公司党委2024年第28次党委会会议纪要 | C6: 330600361246 | D6: 开关电源 | E6: 开关电源 | F6: 9146.78 | G6: 2984.25 | H6: 6162.53 | I6: 1.000 | J6: 架 | K6: 48V/600A高效系统(50A高效模块)150A | M6: 绍兴市虚拟站 | N6: 330600880000000000
A7: 6 | B7: 绍兴市分公司党委2024年第28次党委会会议纪要 | C7: 330600352442_1 | D7: 开关电源 | E7: 开关电源 | F7: 13191.71 | G7: 2376.02 | H7: 10815.69 | I7: 1.000 | J7: 架 | K7: 一体化综合柜650*650*14001500W交流空调+300W直流空调、内置嵌入式高频开关电源、PU | M7: 绍兴市诸暨市店口镇店口工业园区 | N7: 330681908000000797
A8: 7 | B8: 绍兴市分公司党委2024年第28次党委会会议纪要 | C8: 330600112565 | D8: 开关电源 | E8: 开关电源 | F8: 1683.77 | G8: 50.51 | H8: 1633.26 | I8: 1.000 | J8: 架 | K8: 48V-600A(50A模块)-100 | M8: 上虞陈溪旧宅 | N8: 330682908000000167
A9: 8 | B9: 绍兴市分公司党委2024年第28次党委会会议纪要 | C9: 330600114004 | D9: 开关电源 | E9: 开关电源 | F9: 598.75 | G9: 17.96 | H9: 580.79 | I9: 1.000 | J9: 架 | K9: 48V-300A(50A模块)-100A | M9: 绍兴市上虞市岭南乡岭南白龙潭 | N9: 330682908000000370
A10: 9 | B10: 绍兴市分公司党委2024年第28次党委会会议纪要 | C10: 330600113937 | D10: 开关电源 | E10: 开关电源 | F10: 598.75 | G10: 17.96 | H10: 580.79 | I10: 1.000 | J10: 架 | K10: 48V-300A(50A模块)-100A | M10: 绍兴市上虞市上浦镇小坞 | N10: 330682908000000749
A11: 10 | B11: 绍兴市分公司党委2024年第28次党委会会议纪要 | C11: 330600106320 | D11: 开关电源 | E11: 开关电源 | F11: 631.15 | G11: 18.93 | H11: 612.22 | I11: 1.000 | J11: 架 | K11: 48V-450A(50A模块)-100A | M11: 绍兴市上虞市章镇秀峰寺 | N11: 330682908000000881
A12: 11 | B12: 绍兴市分公司党委2024年第28次党委会会议纪要 | C12: 330600336596 | D12: 开关电源 | E12: 开关电源 | F12: 17399.1 | G12: 521.97 | H12: 16877.13 | I12: 1.000 | J12: 架 | K12: 48V/600A高效系统(50A高效模块)150A | M12: 绍兴湖塘工业区 | N12: 330621700000123529
A13: 12 | B13: 绍兴市分公司党委2024年第28次党委会会议纪要 | C13: 330600113988 | D13: 开关电源 | E13: 开关电源 | F13: 848.95 | G13: 25.47 | H13: 823.48 | I13: 1.000 | J13: 架 | K13: 48V-450A(50A模块)-200A | M13: 绍兴市绍兴县柯岩街道塔牌酒厂 | N13: 330600908000000181
A14: 13 | B14: 绍兴市分公司党委2024年第28次党委会会议纪要 | C14: 330600106373 | D14: 开关电源 | E14: 开关电源 | F14: 598.75 | G14: 17.96 | H14: 580.79 | I14: 1.000 | J14: 架 | K14: 48V-300A(50A模块)-100A | M14: 绍兴市绍兴县杨汛桥镇上孙 | N14: 330600908000000235
A15: 14 | B15: 绍兴市分公司党委2024年第28次党委会会议纪要 | C15: 330600105860 | D15: 开关电源 | E15: 开关电源 | F15: 598.75 | G15: 17.96 | H15: 580.79 | I15: 1.000 | J15: 架 | K15: 48V-300A(50A模块)-100A | M15: 绍兴市新昌县梅渚镇苏秦 | N15: 330624908000000191
A16: 15 | B16: 绍兴市分公司党委2024年第28次党委会会议纪要 | C16: 330600110480 | D16: 开关电源 | E16: 开关电源 | F16: 898.2 | G16: 26.95 | H16: 871.25 | I16: 1.000 | J16: 架 | K16: 48V-400A(50A模块)-100 | M16: 新昌安山 | N16: 330624908000000614
A17: 16 | B17: 绍兴市分公司党委2024年第28次党委会会议纪要 | C17: 330600123499 | D17: 开关电源 | E17: 开关电源 | F17: 4021.72 | G17: 120.65 | H17: 3901.07 | I17: 1.000 | J17: 架 | K17: 48V-600A(50A模块)-200A | M17: 绍兴市新昌县城关镇九峰寺 | N17: 330624908000000340
A18: 17 | B18: 绍兴市分公司党委2024年第28次党委会会议纪要 | C18: 330600110792 | D18: 开关电源 | E18: 开关电源 | F18: 1021.75 | G18: 30.65 | H18: 991.1 | I18: 1.000 | J18: 架 | K18: PS48400-2C-50-艾默生 | M18: 嵊州楼家 | N18: 330683908000000100
A19: 18 | B19: 绍兴市分公司党委2024年第28次党委会会议纪要 | C19: 330600105647 | D19: 开关电源 | E19: 开关电源 | F19: 898.2 | G19: 26.95 | H19: 871.25 | I19: 1.000 | J19: 架 | K19: 48V-600A(50A模块)-100 | M19: 嵊州应桂岩 | N19: 330683908000001055
A20: 19 | B20: 绍兴市分公司党委2024年第28次党委会会议纪要 | C20: 330600124294 | D20: 开关电源 | E20: 开关电源 | F20: 598.75 | G20: 17.96 | H20: 580.79 | I20: 1.000 | J20: 架 | K20: 48V-300A(50A模块)-100A | M20: 绍兴市嵊州市石璜镇楼家（楼村） | N20: 330683908000000282
A21: 20 | B21: 绍兴市分公司党委2024年第28次党委会会议纪要 | C21: 330600114191 | D21: 开关电源 | E21: 开关电源 | F21: 816.55 | G21: 24.5 | H21: 792.05 | I21: 1.000 | J21: 架 | K21: 48V-300A(50A模块)-200A | M21: 绍兴市嵊州市崇仁镇王家年 | N21: 330683908000000580
A22: 21 | B22: 绍兴市分公司党委2024年第28次党委会会议纪要 | C22: 330600127652 | D22: 专用空调 | E22: 专用空调 | F22: 3465 | G22: 103.95 | H22: 3361.05 | I22: 1.00 | J22: 台 | K22: LF75WGT | M22: 绍兴市嵊州市崇仁镇崇仁西 | N22: 330683908000000501
A23: 22 | B23: 绍兴市分公司党委2024年第28次党委会会议纪要 | C23: 330600115781 | D23: 专用空调 | E23: 专用空调 | F23: 257.5 | G23: 7.73 | H23: 249.77 | I23: 1.00 | J23: 台 | K23: LF75WGT | M23: 绍兴市嵊州市石璜镇邮政 | N23: 330683908000000618
A24: 23 | B24: 绍兴市分公司党委2024年第28次党委会会议纪要 | C24: 330600115747 | D24: 专用空调 | E24: 专用空调 | F24: 206 | G24: 6.18 | H24: 199.82 | I24: 1.00 | J24: 台 | K24: RF73WDT | M24: 绍兴市新昌县巧英乡大雷 | N24: 330624908000000240
A25: 24 | B25: 绍兴市分公司党委2024年第28次党委会会议纪要 | C25: 330600115751 | D25: 专用空调 | E25: 专用空调 | F25: 2398.22 | G25: 71.95 | H25: 2326.27 | I25: 1.00 | J25: 台 | K25: RF73WDT | M25: 绍兴市新昌县巧英乡雪头 | N25: 330624908000000169
A26: 25 | B26: 绍兴市分公司党委2024年第28次党委会会议纪要 | C26: 330600326111 | D26: 专用空调 | E26: 专用空调 | F26: 5874.29 | G26: 176.23 | H26: 5698.06 | I26: 1.00 | J26: 台 | K26: 3P单冷三相整机 | M26: 新昌城关博大 | N26: 330624500000000025
A27: 26 | B27: 绍兴市分公司党委2024年第28次党委会会议纪要 | C27: 330600116172 | D27: 专用空调 | E27: 专用空调 | F27: 257.5 | G27: 7.73 | H27: 249.77 | I27: 1.00 | J27: 台 | K27: SPW-V254DH5 | M27: 新昌胡衣-2 | N27: 330624908000000765
A28: 27 | B28: 绍兴市分公司党委2024年第28次党委会会议纪要 | C28: 330600328891 | D28: 专用空调 | E28: 专用空调 | F28: 5508.37 | G28: 165.25 | H28: 5343.12 | I28: 1.00 | J28: 台 | K28: 3P单冷三相整机 | M28: 新昌龙山（电信） | N28: 330624700000123561
A29: 28 | B29: 绍兴市分公司党委2024年第28次党委会会议纪要 | C29: 330600327481 | D29: 专用空调 | E29: 专用空调 | F29: 5508.37 | G29: 165.25 | H29: 5343.12 | I29: 1.00 | J29: 台 | K29: 3P单冷三相整机 | M29: 新昌南门口 | N29: 330624908000000110
A30: 29 | B30: 绍兴市分公司党委2024年第28次党委会会议纪要 | C30: 330600003378 | D30: 专用空调 | E30: 专用空调 | F30: 8133.06 | G30: 243.99 | H30: 7889.07 | I30: 1.00 | J30: 台 | K30: 3P 三相柜式（单冷） | M30: 上虞百官龙柏集团西 | N30: 330682500000000020
A31: 30 | B31: 绍兴市分公司党委2024年第28次党委会会议纪要 | C31: 330600116270 | D31: 专用空调 | E31: 专用空调 | F31: 2398.22 | G31: 71.95 | H31: 2326.27 | I31: 1.00 | J31: 台 | K31: RF73WDT | M31: 绍兴市上虞市丁宅乡丁宅郭家弄 | N31: 330682908000000467
A32: 31 | B32: 绍兴市分公司党委2024年第28次党委会会议纪要 | C32: 330600127965 | D32: 专用空调 | E32: 专用空调 | F32: 231.75 | G32: 6.95 | H32: 224.8 | I32: 1.00 | J32: 台 | K32: LF75WGT | M32: 绍兴市上虞市丰惠镇三溪 | N32: 330682908000000573
A33: 32 | B33: 绍兴市分公司党委2024年第28次党委会会议纪要 | C33: 330600128215 | D33: 专用空调 | E33: 专用空调 | F33: 2398.22 | G33: 71.95 | H33: 2326.27 | I33: 1.00 | J33: 台 | K33: RF73WDT | M33: 绍兴市虚拟站 | N33: 330600880000000000
A34: 33 | B34: 绍兴市分公司党委2024年第28次党委会会议纪要 | C34: 330600327460 | D34: 专用空调 | E34: 专用空调 | F34: 6213.28 | G34: 186.4 | H34: 6026.88 | I34: 1.00 | J34: 台 | K34: 3P单冷三相整机 | M34: 绍兴嵇东大田岙 | N34: 330600908000000385
A35: 34 | B35: 绍兴市分公司党委2024年第28次党委会会议纪要 | C35: 330600328608 | D35: 专用空调 | E35: 专用空调 | F35: 3947.1 | G35: 118.41 | H35: 3828.69 | I35: 1.00 | J35: 台 | K35: 2P单冷单相整机 | M35: 柯桥华舍朱家湖 | N35: 330621500000000226
A36: 35 | B36: 绍兴市分公司党委2024年第28次党委会会议纪要 | C36: 330600330403 | D36: 专用空调 | E36: 专用空调 | F36: 3811.43 | G36: 114.34 | H36: 3697.09 | I36: 1.00 | J36: 台 | K36: 2P单冷单相整机 | M36: 嵊州城关东南村搬迁 | N36: 330683500000000132
A37: 36 | B37: 绍兴市分公司党委2024年第28次党委会会议纪要 | C37: 330600115886 | D37: 专用空调 | E37: 专用空调 | F37: 5911 | G37: 177.33 | H37: 5733.67 | I37: 1.00 | J37: 台 | K37: RFC73WDT（3匹）7.3KW | M37: 绍兴市嵊州市鹿山街道上舍 | N37: 330683908000000798
A38: 37 | B38: 绍兴市分公司党委2024年第28次党委会会议纪要 | C38: 330600331934 | D38: 专用空调 | E38: 专用空调 | F38: 8044.97 | G38: 241.35 | H38: 7803.62 | I38: 1.00 | J38: 台 | K38: 专用空调3P专用空调三相专用空调 | M38: 绍兴市嵊州市剡湖街道亨利领带 | N38: 330683908000000628
A39: 38 | B39: 绍兴市分公司党委2024年第28次党委会会议纪要 | C39: 330600325153 | D39: 专用空调 | E39: 专用空调 | F39: 5782.54 | G39: 173.48 | H39: 5609.06 | I39: 1.00 | J39: 台 | K39: 专用空调3P专用空调三相专用空调 | M39: 嵊州邮政 | N39: 330683908000000977
A40: 39 | B40: 绍兴市分公司党委2024年第28次党委会会议纪要 | C40: 330600116155 | D40: 专用空调 | E40: 专用空调 | F40: 354 | G40: 10.62 | H40: 343.38 | I40: 1.00 | J40: 台 | K40: SPW-V454DH5 | M40: 绍兴市嵊州市剡湖街道卓力转轴 | N40: 330683908000000353
A41: 40 | B41: 绍兴市分公司党委2024年第28次党委会会议纪要 | C41: 330600135746 | D41: 专用空调 | E41: 专用空调 | F41: 231.75 | G41: 6.95 | H41: 224.8 | I41: 1.00 | J41: 台 | K41: LF75WGT | M41: 绍兴市诸暨市直埠镇中赵 | N41: 330681908000000336
A42: 41 | B42: 绍兴市分公司党委2024年第28次党委会会议纪要 | C42: 330600323155 | D42: 专用空调 | E42: 专用空调 | F42: 5762.3 | G42: 172.87 | H42: 5589.43 | I42: 1.00 | J42: 台 | K42: 3P单冷三相整机 | M42: 上虞杜家 | N42: 330682908000000989
A43: 42 | B43: 绍兴市分公司党委2024年第28次党委会会议纪要 | C43: 330600335729 | D43: 专用空调 | E43: 专用空调 | F43: 5977.8 | G43: 179.33 | H43: 5798.47 | I43: 1.00 | J43: 台 | K43: 3P单冷三相整机 | M43: 上虞湖光 | N43: 330682908000000980
A44: 43 | B44: 绍兴市分公司党委2024年第28次党委会会议纪要 | C44: 330600333301 | D44: 专用空调 | E44: 专用空调 | F44: 6116.2 | G44: 183.49 | H44: 5932.71 | I44: 1.00 | J44: 台 | K44: 3P单冷三相整机 | M44: 绍兴市上虞市盖北镇盖北镇海 | N44: 330682908000000760
A45: 44 | B45: 绍兴市分公司党委2024年第28次党委会会议纪要 | C45: 330600127287 | D45: 专用空调 | E45: 专用空调 | F45: 1395.92 | G45: 41.88 | H45: 1354.04 | I45: 1.00 | J45: 台 | K45: RF73WDT | M45: 绍兴市上虞市崧厦镇白水洋 | N45: 330682908000000825
A46: 45 | B46: 绍兴市分公司党委2024年第28次党委会会议纪要 | C46: 330600000869 | D46: 专用空调 | E46: 专用空调 | F46: 5819.95 | G46: 174.6 | H46: 5645.35 | I46: 1.00 | J46: 台 | K46: 3P 三相柜式（单冷） | M46: 上虞滨海忠盛化工 | N46: 33068200000178
A47: 46 | B47: 绍兴市分公司党委2024年第28次党委会会议纪要 | C47: 330600128157 | D47: 专用空调 | E47: 专用空调 | F47: 231.75 | G47: 6.95 | H47: 224.8 | I47: 1.00 | J47: 台 | K47: RF73WDT | M47: 绍兴市上虞市百官镇东关径口 | N47: 330682908000000365
A48: 47 | B48: 绍兴市分公司党委2024年第28次党委会会议纪要 | C48: 330600115666 | D48: 专用空调 | E48: 专用空调 | F48: 257.5 | G48: 7.73 | H48: 249.77 | I48: 1.00 | J48: 台 | K48: RF73WDT | M48: 绍兴市上虞市谢塘镇谢塘岑仓 | N48: 330682908000000471
A49: 48 | B49: 绍兴市分公司党委2024年第28次党委会会议纪要 | C49: 330600327657 | D49: 机房配套扩容资产 | E49: 机房配套扩容资产 | F49: 1147.08 | G49: 34.41 | H49: 1112.67 | I49: 1.00 | J49: 台 | K49: 配电箱 | M49: 绍兴市越城区稽山街道波影大酒店 | N49: 330602908000000315
A50: 49 | B50: 绍兴市分公司党委2024年第28次党委会会议纪要 | C50: 330600348086 | D50: 动力及环境监控单元 | E50: 动力及环境监控单元 | F50: 2574.42 | G50: 458.76 | H50: 2115.66 | I50: 1.000 | J50: 个 | K50: 主设备室内型成套设备基本配置模型 | M50: 上虞百官牛山 | N50: 330682908000000406
A51: 50 | B51: 绍兴市分公司党委2024年第28次党委会会议纪要 | C51: 330600312044 | D51: 动力及环境监控单元 | E51: 动力及环境监控单元 | F51: 3727.93 | G51: 111.84 | H51: 3616.09 | I51: 1.000 | J51: 个 | K51: 主设备室内型成套设备基本配置模型 | M51: 上虞百官舜江建设北 | N51: 330682500000000140
A52: 51 | B52: 绍兴市分公司党委2024年第28次党委会会议纪要 | C52: 330600347846 | D52: 动力及环境监控单元 | E52: 动力及环境监控单元 | F52: 2574.42 | G52: 458.76 | H52: 2115.66 | I52: 1.000 | J52: 个 | K52: 主设备室内型成套设备基本配置模型 | M52: 上虞滨海贺村 | N52: 330682908000000886
A53: 52 | B53: 绍兴市分公司党委2024年第28次党委会会议纪要 | C53: 330600323969 | D53: 动力及环境监控单元 | E53: 动力及环境监控单元 | F53: 3679.8 | G53: 110.39 | H53: 3569.41 | I53: 1.000 | J53: 个 | K53: 主设备室内型成套设备基本配置模型 | M53: 上虞陈溪乡政府南 | N53: 330682500000000195
A54: 53 | B54: 绍兴市分公司党委2024年第28次党委会会议纪要 | C54: 330600316374 | D54: 动力及环境监控单元 | E54: 动力及环境监控单元 | F54: 3771.65 | G54: 113.15 | H54: 3658.5 | I54: 1.000 | J54: 个 | K54: 主设备室内型成套设备基本配置模型 | M54: 上虞道墟联浦村 | N54: 330682500000000148
A55: 54 | B55: 绍兴市分公司党委2024年第28次党委会会议纪要 | C55: 330600326720 | D55: 动力及环境监控单元 | E55: 动力及环境监控单元 | F55: 3561.23 | G55: 106.84 | H55: 3454.39 | I55: 1.000 | J55: 个 | K55: 主设备室内型成套设备基本配置模型 | M55: 上虞银河湾-2 | N55: 330682908000000186
A56: 55 | B56: 绍兴市分公司党委2024年第28次党委会会议纪要 | C56: 330600335171 | D56: 动力及环境监控单元 | E56: 动力及环境监控单元 | F56: 3716.24 | G56: 111.49 | H56: 3604.75 | I56: 1.000 | J56: 个 | K56: 主设备室内型成套设备基本配置模型 | M56: 上虞湖光 | N56: 330682908000000980
A57: 56 | B57: 绍兴市分公司党委2024年第28次党委会会议纪要 | C57: 330600341926 | D57: 动力及环境监控单元 | E57: 动力及环境监控单元 | F57: 3880.5 | G57: 274.59 | H57: 3605.91 | I57: 1.000 | J57: 个 | K57: 主设备室内型成套设备双柜配置模型 | M57: 上虞上浦南 | N57: 330682500000001617
A58: 57 | B58: 绍兴市分公司党委2024年第28次党委会会议纪要 | C58: 330600351505 | D58: 动力及环境监控单元 | E58: 动力及环境监控单元 | F58: 2586.54 | G58: 600.27 | H58: 1986.27 | I58: 1.000 | J58: 个 | K58: 主设备室内型成套设备基本配置模型 | M58: 绍兴市新昌县大市聚镇长诏 | N58: 330624908000000343
A59: 58 | B59: 绍兴市分公司党委2024年第28次党委会会议纪要 | C59: 330600333690 | D59: 动力及环境监控单元 | E59: 动力及环境监控单元 | F59: 3101.27 | G59: 93.04 | H59: 3008.23 | I59: 1.000 | J59: 个 | K59: 主设备室外型成套设备 | M59: 上虞章镇秀峰寺 | N59: 330682908000000057
A60: 59 | B60: 绍兴市分公司党委2024年第28次党委会会议纪要 | C60: 330600348263 | D60: 动力及环境监控单元 | E60: 动力及环境监控单元 | F60: 2574.42 | G60: 458.76 | H60: 2115.66 | I60: 1.000 | J60: 个 | K60: 主设备室内型成套设备基本配置模型 | M60: 绍兴市上虞市道墟镇道墟闰土化工 | N60: 330682908000000683
A61: 60 | B61: 绍兴市分公司党委2024年第28次党委会会议纪要 | C61: 330600344085 | D61: 动力及环境监控单元 | E61: 动力及环境监控单元 | F61: 2594.87 | G61: 252.57 | H61: 2342.3 | I61: 1.000 | J61: 个 | K61: 主设备室内型成套设备基本配置模型 | M61: 绍兴市上虞市崧厦镇雀咀 | N61: 330682908000000766
A62: 61 | B62: 绍兴市分公司党委2024年第28次党委会会议纪要 | C62: 330600348003 | D62: 动力及环境监控单元 | E62: 动力及环境监控单元 | F62: 2574.42 | G62: 458.76 | H62: 2115.66 | I62: 1.000 | J62: 个 | K62: 主设备室内型成套设备基本配置模型 | M62: 绍兴市上虞市章镇秀峰寺 | N62: 330682908000000881
A63: 62 | B63: 绍兴市分公司党委2024年第28次党委会会议纪要 | C63: 330600345987 | D63: 动力及环境监控单元 | E63: 动力及环境监控单元 | F63: 2590.4 | G63: 461.55 | H63: 2128.85 | I63: 1.000 | J63: 个 | K63: 主设备室内型成套设备基本配置模型 | M63: 新昌泰坦国际大酒店 | N63: 330624908000000253
A64: 63 | B64: 绍兴市分公司党委2024年第28次党委会会议纪要 | C64: 330600359744 | D64: 动力及环境监控单元 | E64: 动力及环境监控单元 | F64: 3472.88 | G64: 1086.46 | H64: 2386.42 | I64: 1.000 | J64: 个 | K64: 主设备室内型成套设备双柜配置模型 | M64: 绍兴市新昌县城南乡城南乡七盘仙谷网络资源点 | N64: 330624908000000547
A65: 64 | B65: 绍兴市分公司党委2024年第28次党委会会议纪要 | C65: 330600327090 | D65: 动力及环境监控单元 | E65: 动力及环境监控单元 | F65: 3545.11 | G65: 106.35 | H65: 3438.76 | I65: 1.000 | J65: 个 | K65: 主设备室内型成套设备基本配置模型 | M65: 绍兴市新昌县七星街道东岭头 | N65: 330624908000000483
A66: 65 | B66: 绍兴市分公司党委2024年第28次党委会会议纪要 | C66: 330600323717 | D66: 动环监控设备FSU | E66: 动环监控设备FSU | F66: 6993.25 | G66: 209.8 | H66: 6783.45 | I66: 1.000 | J66: 个 | K66: 动力及环境监控单元-双柜配置 | M66: 绍兴市新昌县七星街道青山雅苑 | N66: 330624908000000358
A67: 66 | B67: 绍兴市分公司党委2024年第28次党委会会议纪要 | C67: 330600351296 | D67: 动力及环境监控单元 | E67: 动力及环境监控单元 | F67: 2586.54 | G67: 495.74 | H67: 2090.8 | I67: 1.000 | J67: 个 | K67: 主设备室内型成套设备基本配置模型 | M67: 绍兴市新昌县七星街道瑞和 | N67: 330624908000000193
A68: 67 | B68: 绍兴市分公司党委2024年第28次党委会会议纪要 | C68: 330600336828 | D68: 动力及环境监控单元 | E68: 动力及环境监控单元 | F68: 2556.52 | G68: 76.7 | H68: 2479.82 | I68: 1.000 | J68: 个 | K68: 主设备室内型成套设备基本配置模型 | M68: 绍兴市新昌县七星街道西郊中学 | N68: 330624908000000233
A69: 68 | B69: 绍兴市分公司党委2024年第28次党委会会议纪要 | C69: 330600347519 | D69: 动力及环境监控单元 | E69: 动力及环境监控单元 | F69: 2574.42 | G69: 458.76 | H69: 2115.66 | I69: 1.000 | J69: 个 | K69: 主设备室内型成套设备基本配置模型 | M69: 绍兴市新昌县双彩乡双彩上贝 | N69: 330624908000000164
A70: 69 | B70: 绍兴市分公司党委2024年第28次党委会会议纪要 | C70: 330600313853 | D70: 动环监控设备FSU | E70: 动环监控设备FSU | F70: 3881.13 | G70: 116.43 | H70: 3764.7 | I70: 1.000 | J70: 个 | K70: 85套-复合包装 | M70: 新昌城关坟庵 | N70: 33062400000032
A71: 70 | B71: 绍兴市分公司党委2024年第28次党委会会议纪要 | C71: 330600323890 | D71: 动力及环境监控单元 | E71: 动力及环境监控单元 | F71: 3895.2 | G71: 116.86 | H71: 3778.34 | I71: 1.000 | J71: 个 | K71: 主设备室内型成套设备双柜配置模型 | M71: 新昌城关江滨广场西 | N71: 330624500000000044
A72: 71 | B72: 绍兴市分公司党委2024年第28次党委会会议纪要 | C72: 330600322396 | D72: 动环监控设备FSU | E72: 动环监控设备FSU | F72: 6825.98 | G72: 204.78 | H72: 6621.2 | I72: 1.000 | J72: 个 | K72: 动环监控设备FSU | M72: 新昌城关金山花园 | N72: 330624500000000033
A73: 72 | B73: 绍兴市分公司党委2024年第28次党委会会议纪要 | C73: 330600319399 | D73: 动环监控设备FSU | E73: 动环监控设备FSU | F73: 3909.13 | G73: 117.27 | H73: 3791.86 | I73: 1.000 | J73: 个 | K73: FSU-标准站 | M73: 新昌城关桃源南 | N73: 33062401000136
A74: 73 | B74: 绍兴市分公司党委2024年第28次党委会会议纪要 | C74: 330600316556 | D74: 动力及环境监控单元 | E74: 动力及环境监控单元 | F74: 3387.31 | G74: 101.62 | H74: 3285.69 | I74: 1.000 | J74: 个 | K74: 主设备室内型成套设备双柜配置模型 | M74: 新昌城关体育新村南 | N74: 330624500000000034
A75: 74 | B75: 绍兴市分公司党委2024年第28次党委会会议纪要 | C75: 330600314380 | D75: 动环监控设备FSU | E75: 动环监控设备FSU | F75: 4366.79 | G75: 131 | H75: 4235.79 | I75: 1.000 | J75: 个 | K75: 85套-复合包装 | M75: 新昌城关元岙东 | N75: 33062400000030
A76: 75 | B76: 绍兴市分公司党委2024年第28次党委会会议纪要 | C76: 330600336829 | D76: 动力及环境监控单元 | E76: 动力及环境监控单元 | F76: 2556.52 | G76: 76.7 | H76: 2479.82 | I76: 1.000 | J76: 个 | K76: 主设备室内型成套设备基本配置模型 | M76: 新昌城关竹篷头南 | N76: 33062401000134
A77: 76 | B77: 绍兴市分公司党委2024年第28次党委会会议纪要 | C77: 330600335614 | D77: 动力及环境监控单元 | E77: 动力及环境监控单元 | F77: 3429.96 | G77: 102.9 | H77: 3327.06 | I77: 1.000 | J77: 个 | K77: 主设备室内型成套设备基本配置模型 | M77: 新昌大市聚建斋 | N77: 330624500000001403
A78: 77 | B78: 绍兴市分公司党委2024年第28次党委会会议纪要 | C78: 330600326659 | D78: 动力及环境监控单元 | E78: 动力及环境监控单元 | F78: 2883.02 | G78: 86.49 | H78: 2796.53 | I78: 1.000 | J78: 个 | K78: 主设备室内型成套设备基本配置模型 | M78: 新昌大市聚岭头等 | N78: 330624908000000675
A79: 78 | B79: 绍兴市分公司党委2024年第28次党委会会议纪要 | C79: 330600316875 | D79: 高新兴动环监控（FSU) | E79: 高新兴动环监控（FSU) | F79: 4700.96 | G79: 141.03 | H79: 4559.93 | I79: 1.000 | J79: 个 | K79: DAM-2160I-T | M79: 绍兴市虚拟站 | N79: 330600880000000000
A80: 79 | B80: 绍兴市分公司党委2024年第28次党委会会议纪要 | C80: 330600335062 | D80: 动力及环境监控单元 | E80: 动力及环境监控单元 | F80: 3716.24 | G80: 111.49 | H80: 3604.75 | I80: 1.000 | J80: 个 | K80: 主设备室内型成套设备基本配置模型 | M80: 新昌眉岱 | N80: 330624908000000103
A81: 80 | B81: 绍兴市分公司党委2024年第28次党委会会议纪要 | C81: 330600319435 | D81: 动环监控设备FSU | E81: 动环监控设备FSU | F81: 4274.56 | G81: 128.24 | H81: 4146.32 | I81: 1.000 | J81: 个 | K81: FSU-标准站 | M81: 绍兴市虚拟站 | N81: 330600880000000000
A82: 81 | B82: 绍兴市分公司党委2024年第28次党委会会议纪要 | C82: 330600324781 | D82: 动力及环境监控单元 | E82: 动力及环境监控单元 | F82: 3586.99 | G82: 107.61 | H82: 3479.38 | I82: 1.000 | J82: 个 | K82: 主设备室内型成套设备双柜配置模型 | M82: 新昌庙前地东 | N82: 330624500000000062
A83: 82 | B83: 绍兴市分公司党委2024年第28次党委会会议纪要 | C83: 330600327377 | D83: 动力及环境监控单元 | E83: 动力及环境监控单元 | F83: 3545.99 | G83: 106.38 | H83: 3439.61 | I83: 1.000 | J83: 个 | K83: 主设备室内型成套设备基本配置模型 | M83: 新昌儒岙下坂山 | N83: 330624908000000574
A84: 83 | B84: 绍兴市分公司党委2024年第28次党委会会议纪要 | C84: 330600333116 | D84: 动力及环境监控单元 | E84: 动力及环境监控单元 | F84: 3194.47 | G84: 95.83 | H84: 3098.64 | I84: 1.000 | J84: 个 | K84: 主设备室内型成套设备 | M84: 新昌上任 | N84: 330624700000123896
A85: 84 | B85: 绍兴市分公司党委2024年第28次党委会会议纪要 | C85: 330600335064 | D85: 动力及环境监控单元 | E85: 动力及环境监控单元 | F85: 3716.24 | G85: 111.49 | H85: 3604.75 | I85: 1.000 | J85: 个 | K85: 主设备室内型成套设备基本配置模型 | M85: 新昌新富 | N85: 330624908000000774
A86: 85 | B86: 绍兴市分公司党委2024年第28次党委会会议纪要 | C86: 330600356497 | D86: 外市电引入 | E86: 外市电引入 | F86: 24100.88 | G86: 13252.04 | H86: 10848.84 | I86: 280.000 | J86: 米 | K86: 外市电线路整治 | M86: 绍兴柯东仓储 | N86: 330600908000001039
A87: 86 | B87: 绍兴市分公司党委2024年第28次党委会会议纪要 | C87: 330600379064 | D87: 外市电引入 | E87: 外市电引入 | F87: 33866.71 | G87: 23417.1 | H87: 10449.61 | I87: 50.000 | J87: 米 | K87: 外市电线路整治 | M87: 绍兴市绍兴县柯桥街道天胜轴承 | N87: 330600908000000194
A88: 87 | B88: 绍兴市分公司党委2024年第28次党委会会议纪要 | C88: 330600383650 | D88: 外市电引入 | E88: 外市电引入 | F88: 19238.45 | G88: 13812.26 | H88: 5426.19 | I88: 140.000 | J88: 米 | K88: 外市电线路整治 | M88: 绍兴市嵊州市剡湖街道里坂农贸市场 | N88: 330683908000000682
A89: 88 | B89: 绍兴市分公司党委2024年第28次党委会会议纪要 | C89: 330600397536 | D89: 室分扩容资产 | E89: 室分扩容资产 | F89: 131217.51 | G89: 97735.83 | H89: 33481.68 | I89: 30.000 | J89: 米 | K89: 0 | M89: 柯桥柯桥首越和天地SFNR | N89: 330621040010002078
A90: 89 | B90: 绍兴市分公司党委2024年第28次党委会会议纪要 | C90: 330600383850 | D90: 外市电引入 | E90: 外市电引入 | F90: 23042.79 | G90: 16507.77 | H90: 6535.02 | I90: 42.000 | J90: 米 | K90: 非模块化外市电引入直供380V（非模块化） | M90: 柯桥钱清于家埭NR | N90: 330621500010001921
A91: 90 | B91: 绍兴市分公司党委2024年第28次党委会会议纪要 | C91: 330600373500 | D91: 外市电引入 | E91: 外市电引入 | F91: 24150.06 | G91: 15490.47 | H91: 8659.59 | I91: 270.000 | J91: 米 | K91: 非模块化外市电引入直供380V（非模块化） | M91: 绍兴柯桥蝶庄 | N91: 330600908000000571
A92: 91 | B92: 绍兴市分公司党委2024年第28次党委会会议纪要 | C92: 330600418654 | D92: 施工-宏站-新建-外市电引入-施工服务包1 | E92: 施工-宏站-新建-外市电引入-施工服务包1 | F92: 2789.24 | G92: 2516.53 | H92: 272.71 | I92: 1.000 | J92: 米 | M92: 诸暨城关东渡玺悦 | N92: 330681500010002109
A93: 92 | B93: 绍兴市分公司党委2024年第28次党委会会议纪要 | C93: 330600343760 | D93: 机房配套扩容资产 | E93: 机房配套扩容资产 | F93: 317.02 | G93: 60.81 | H93: 256.21 | I93: 1.000 | J93: 个 | K93: 空开 | M93: 诸暨青塔-2 | N93: 330681908000000073
A94: 93 | B94: 绍兴市分公司党委2024年第28次党委会会议纪要 | C94: 330600373565 | D94: 电源扩容资产 | E94: 电源扩容资产 | F94: 6578.22 | G94: 2878.91 | H94: 3699.31 | I94: 1.000 | J94: 个 | K94: 低压智能电表三相四路 | M94: 上虞百官孝女庙村 | N94: 330682500000001768
A95: 94 | B95: 绍兴市分公司党委2024年第28次党委会会议纪要 | C95: 330600369133 | D95: 电源扩容资产 | E95: 电源扩容资产 | F95: 555.78 | G95: 211.28 | H95: 344.5 | I95: 1.000 | J95: 个 | K95: 低压智能电表三相四路 | M95: 绍兴金家 | N95: 330602908000000144
A96: 95 | B96: 绍兴市分公司党委2024年第28次党委会会议纪要 | C96: 330600340202 | D96: 基站构筑物扩容资产 | E96: 基站构筑物扩容资产 | F96: 655 | G96: 504.36 | H96: 150.64 | I96: 1.000 | J96: 个 | K96: 电控锁 | M96: 绍兴南钱清 | N96: 330600908000000041
A97: 96 | B97: 绍兴市分公司党委2024年第28次党委会会议纪要 | C97: 330600360974 | D97: 机房配套扩容资产 | E97: 机房配套扩容资产 | F97: 361.48 | G97: 122.85 | H97: 238.63 | I97: 1.000 | J97: 个 | K97: 普通空调基站智能空调控制器控制器红外模块 | M97: 绍兴市诸暨市牌头镇皇浦 | N97: 330681908000000890
A98: 97 | B98: 绍兴市分公司党委2024年第28次党委会会议纪要 | C98: 330600343012 | D98: 机房配套扩容资产 | E98: 机房配套扩容资产 | F98: 317.02 | G98: 30.98 | H98: 286.04 | I98: 1.000 | J98: 个 | K98: 普通空调基站智能空调控制器 | M98: 绍兴市越城区皋埠镇刁泥山村 | N98: 330602908000000319
A99: 98 | B99: 绍兴市分公司党委2024年第28次党委会会议纪要 | C99: 330600344295 | D99: 电力引入扩容资产 | E99: 电力引入扩容资产 | F99: 374.32 | G99: 171.55 | H99: 202.77 | I99: 1.000 | J99: 个 | K99: 直流计量终端6分路 | M99: 绍兴市越城区皋埠镇刁泥山村 | N99: 330602908000000319
A100: 99 | B100: 绍兴市分公司党委2024年第28次党委会会议纪要 | C100: 330600342068 | D100: 电力引入扩容资产 | E100: 电力引入扩容资产 | F100: 374.32 | G100: 168.53 | H100: 205.79 | I100: 1.000 | J100: 个 | K100: 霍尔传感器电流型输入100A/输出4-20mA | M100: 绍兴南钱清 | N100: 330600908000000041
A101: 100 | B101: 绍兴市分公司党委2024年第28次党委会会议纪要 | C101: 330600343156 | D101: 电力引入扩容资产 | E101: 电力引入扩容资产 | F101: 374.32 | G101: 171.55 | H101: 202.77 | I101: 1.000 | J101: 个 | K101: 霍尔传感器电流型输入50A/输出4-20mA | M101: 绍兴金家 | N101: 330602908000000144
A102: 101 | B102: 绍兴市分公司党委2024年第28次党委会会议纪要 | C102: 330600388808 | D102: 电源扩容资产 | E102: 电源扩容资产 | F102: 5436.25 | G102: 3239.06 | H102: 2197.19 | I102: 1.000 | J102: 个 | K102: 模块化开关电源小型50A配件直流配电单元（双运营商）集约化采购模块化电源 | M102: 绍兴城东京东方东NR | N102: 330602500010002186
A103: 102 | B103: 绍兴市分公司党委2024年第28次党委会会议纪要 | C103: 330600354741 | D103: 外市电引入 | E103: 外市电引入 | F103: 27068.35 | G103: 14210.86 | H103: =F103-G103 -> 12857.49 | I103: 220.000 | J103: 米 | K103: 外市电线路整治 | M103: 绍兴市虚拟站 | N103: 330600880000000000
A104: 103 | B104: 绍兴市分公司党委2024年第28次党委会会议纪要 | C104: 330600129726 | D104: 一体化机柜 | E104: 一体化机柜 | F104: 1025 | G104: 30.75 | H104: =F104-G104 -> 994.25 | I104: 1.000 | J104: 个 | M104: 嵊州城关茶坊庄东 | N104: 330683500000001544
